Body Name,Date Paid,Transaction Number,Amount,Supplier Name,Supplier Type,Invoice Number,Account,Expense Area,Cost Centre Description,Expense Type
Cambridgeshire County Council,17-Jun-19,51300978181,"-29,693.78",Ford Motor Company Ltd,COMPANY,5711155,C0000,Libraries - Support,Support  - Van (Camb East),Vehicle Purchases
Cambridgeshire County Council,03-Jun-19,51300923345,"-26,279.59",WYG ENGINEERING LTD,TRADE SUPPLIER,306894C,XB072,GCP - Chisholm Trail cycle links,GCP - Chisholm Trail cycle links,Cycleways
Cambridgeshire County Council,21-Jun-19,51300958309,"-22,099.71",RENTON COURT (VOYAGE),CARE ESTABLISHMENT,PAYC3_443_1055034,E7170,LD - Hunts Locality,LD - Huntigndonshire  - Special Needs,Supported Living
Cambridgeshire County Council,21-Jun-19,51300969481,"-21,223.98",VOYAGE,CARE ESTABLISHMENT,PAYC3_443_1055143,E7145,LD - East Locality,LD - East Cambs - Special Needs,Residential Care
Cambridgeshire County Council,18-Jun-19,51300988302,"-21,041.43",BROADLEIGH NURSING HOME (PETERBOROUGH CARE LTD),CARE ESTABLISHMENT,31706,E7145,OP - Fenland Locality,Older People - Fenland,Residential Care
Cambridgeshire County Council,19-Jun-19,51300985478,"-20,666.67",PRIORY COLLEGE WALES,EDUCATION,C444000065,E7180,SEN Placements,Placements - Education,Independent School Placements
Cambridgeshire County Council,18-Jun-19,51300987295,"-17,242.86",Little Sisters of the Poor - St Anne's Home,COMPANY,32663,E7145,OP - East Cambs Locality,East Cambs - O P Team,Residential Care
Cambridgeshire County Council,21-Jun-19,51300958600,"-14,368.66",VOYAGE (LICHFIELD),CARE ESTABLISHMENT,PAYC3_443_904809,E7170,LD - South Locality,LD - South Cambs - Care,Supported Living
Cambridgeshire County Council,21-Jun-19,51300963510,"-9,540.15",MENCAP PETERBOROUGH,CARE ESTABLISHMENT,PAYC3_443_1091461,E7150,Autism and Adult Support,Autism and Adult Support - Care,Domiciliary Care
Cambridgeshire County Council,21-Jun-19,51300969305,"-7,252.96",VOYAGE,CARE ESTABLISHMENT,PAYC3_443_1055058,E7170,LD - South Locality,LD - South Cambs - Care,Supported Living
Cambridgeshire County Council,27-Jun-19,51300923337,"-6,993.25",WYG ENGINEERING LTD,TRADE SUPPLIER,306892C,XB020,MID - Ely Crossing,MID - Ely Crossing,Construction - External Professional Fees
Cambridgeshire County Council,18-Jun-19,51300987891,"-6,325.35",WOODLANDS CARE CENTRE,CARE ESTABLISHMENT,31746,E7130,OP - City & South Locality,Older People - City & South,Nursing Care
Cambridgeshire County Council,21-Jun-19,51300965247,"-6,307.84",VOYAGE,CARE ESTABLISHMENT,PAYC3_443_1100921,E7145,LD - City Locality,LD - City - Special Needs,Residential Care
Cambridgeshire County Council,18-Jun-19,51300988253,"-6,082.55",OAK DOWN HOUSE,CARE ESTABLISHMENT,31147,J6205,LD - Hunts Locality,LD - Huntigndonshire  - Special Needs,Residential Client Care Contributions
Cambridgeshire County Council,11-Jun-19,51300922215,"-5,509.40",KIRKSTONE HOUSE SCHOOL,EDUCATION,INV.KHS1291-SPRINGTERM.CR,E7180,SEND High Needs Top Up,"SEND Specialist Services,High Needs Top Up,Other institutions",Independent School Placements
Cambridgeshire County Council,18-Jun-19,51300913456,"-5,305.17",ALDERWOOD LLA LTD,CARE ESTABLISHMENT,27140,E7145,LD - Hunts Locality,LD - Huntigndonshire  - Special Needs,Residential Care
Cambridgeshire County Council,18-Jun-19,51300913456,"-5,305.17",ALDERWOOD LLA LTD,CARE ESTABLISHMENT,27140,E7145,LD - Hunts Locality,LD - Huntigndonshire  - Special Needs,Residential Care
Cambridgeshire County Council,18-Jun-19,51300913456,"-5,305.17",ALDERWOOD LLA LTD,CARE ESTABLISHMENT,27140,E7145,LD - Hunts Locality,LD - Huntigndonshire  - Special Needs,Residential Care
Cambridgeshire County Council,18-Jun-19,51300913456,"-5,305.17",ALDERWOOD LLA LTD,CARE ESTABLISHMENT,27140,E7145,LD - Hunts Locality,LD - Huntigndonshire  - Special Needs,Residential Care
Cambridgeshire County Council,18-Jun-19,51300913456,"-5,305.17",ALDERWOOD LLA LTD,CARE ESTABLISHMENT,27140,E7145,LD - Hunts Locality,LD - Huntigndonshire  - Special Needs,Residential Care
Cambridgeshire County Council,18-Jun-19,51300913456,"-5,305.17",ALDERWOOD LLA LTD,CARE ESTABLISHMENT,27140,E7145,LD - Hunts Locality,LD - Huntigndonshire  - Special Needs,Residential Care
Cambridgeshire County Council,18-Jun-19,51300913456,"-5,305.17",ALDERWOOD LLA LTD,CARE ESTABLISHMENT,27140,E7145,LD - Hunts Locality,LD - Huntigndonshire  - Special Needs,Residential Care
Cambridgeshire County Council,18-Jun-19,51300913456,"-5,305.17",ALDERWOOD LLA LTD,CARE ESTABLISHMENT,27140,E7145,LD - Hunts Locality,LD - Huntigndonshire  - Special Needs,Residential Care
Cambridgeshire County Council,18-Jun-19,51300913456,"-5,305.17",ALDERWOOD LLA LTD,CARE ESTABLISHMENT,27140,E7145,LD - Hunts Locality,LD - Huntigndonshire  - Special Needs,Residential Care
Cambridgeshire County Council,18-Jun-19,51300913456,"-5,305.17",ALDERWOOD LLA LTD,CARE ESTABLISHMENT,27140,E7145,LD - Hunts Locality,LD - Huntigndonshire  - Special Needs,Residential Care
Cambridgeshire County Council,21-Jun-19,51300961841,"-5,117.53",VOYAGE,CARE ESTABLISHMENT,PAYC3_443_1100929,E7145,LD - City Locality,LD - City - Care,Residential Care
Cambridgeshire County Council,07-Jun-19,51300922347,"-5,071.54",ECON ENGINEERING LTD,TRADE SUPPLIER,C0201.CR,D4705,Insurance,Insurance Section,Insurance Claims Paid
Cambridgeshire County Council,18-Jun-19,51300913456,"-4,671.78",ALDERWOOD LLA LTD,CARE ESTABLISHMENT,27140,E7145,LD - Hunts Locality,LD - Huntigndonshire  - Special Needs,Residential Care
Cambridgeshire County Council,18-Jun-19,51300913456,"-4,671.78",ALDERWOOD LLA LTD,CARE ESTABLISHMENT,27140,E7145,LD - Hunts Locality,LD - Huntigndonshire  - Special Needs,Residential Care
Cambridgeshire County Council,18-Jun-19,51300913456,"-4,671.78",ALDERWOOD LLA LTD,CARE ESTABLISHMENT,27140,E7145,LD - Hunts Locality,LD - Huntigndonshire  - Special Needs,Residential Care
Cambridgeshire County Council,18-Jun-19,51300913456,"-4,671.78",ALDERWOOD LLA LTD,CARE ESTABLISHMENT,27140,E7145,LD - Hunts Locality,LD - Huntigndonshire  - Special Needs,Residential Care
Cambridgeshire County Council,18-Jun-19,51300913456,"-4,671.78",ALDERWOOD LLA LTD,CARE ESTABLISHMENT,27140,E7145,LD - Hunts Locality,LD - Huntigndonshire  - Special Needs,Residential Care
Cambridgeshire County Council,18-Jun-19,51300913456,"-4,671.78",ALDERWOOD LLA LTD,CARE ESTABLISHMENT,27140,E7145,LD - Hunts Locality,LD - Huntigndonshire  - Special Needs,Residential Care
Cambridgeshire County Council,18-Jun-19,51300913456,"-4,671.78",ALDERWOOD LLA LTD,CARE ESTABLISHMENT,27140,E7145,LD - Hunts Locality,LD - Huntigndonshire  - Special Needs,Residential Care
Cambridgeshire County Council,18-Jun-19,51300913456,"-4,671.78",ALDERWOOD LLA LTD,CARE ESTABLISHMENT,27140,E7145,LD - Hunts Locality,LD - Huntigndonshire  - Special Needs,Residential Care
Cambridgeshire County Council,18-Jun-19,51300913456,"-4,671.78",ALDERWOOD LLA LTD,CARE ESTABLISHMENT,27140,E7145,LD - Hunts Locality,LD - Huntigndonshire  - Special Needs,Residential Care
Cambridgeshire County Council,18-Jun-19,51300913456,"-4,671.78",ALDERWOOD LLA LTD,CARE ESTABLISHMENT,27140,E7145,LD - Hunts Locality,LD - Huntigndonshire  - Special Needs,Residential Care
Cambridgeshire County Council,18-Jun-19,51300913456,"-4,671.78",ALDERWOOD LLA LTD,CARE ESTABLISHMENT,27140,E7145,LD - Hunts Locality,LD - Huntigndonshire  - Special Needs,Residential Care
Cambridgeshire County Council,18-Jun-19,51300913456,"-4,671.78",ALDERWOOD LLA LTD,CARE ESTABLISHMENT,27140,E7145,LD - Hunts Locality,LD - Huntigndonshire  - Special Needs,Residential Care
Cambridgeshire County Council,18-Jun-19,51300913456,"-4,671.78",ALDERWOOD LLA LTD,CARE ESTABLISHMENT,27140,E7145,LD - Hunts Locality,LD - Huntigndonshire  - Special Needs,Residential Care
Cambridgeshire County Council,18-Jun-19,51300913456,"-4,671.78",ALDERWOOD LLA LTD,CARE ESTABLISHMENT,27140,E7145,LD - Hunts Locality,LD - Huntigndonshire  - Special Needs,Residential Care
Cambridgeshire County Council,18-Jun-19,51300913456,"-4,671.78",ALDERWOOD LLA LTD,CARE ESTABLISHMENT,27140,E7145,LD - Hunts Locality,LD - Huntigndonshire  - Special Needs,Residential Care
Cambridgeshire County Council,21-Jun-19,51300977098,"-4,655.00",Accomplish Group Support Limited,CARE ESTABLISHMENT,PAYC3_444_1081363,E7140,LD - Hunts Locality,LD - Huntigndonshire  - Special Needs,Rehabilitation And Respite Care
Cambridgeshire County Council,21-Jun-19,51301008834,"-4,655.00",Accomplish Group Support Limited,CARE ESTABLISHMENT,PAYC3_446_1103168,E7140,LD - Hunts Locality,LD - Huntigndonshire  - Special Needs,Rehabilitation And Respite Care
Cambridgeshire County Council,21-Jun-19,51301008830,"-4,655.00",Accomplish Group Support Limited,CARE ESTABLISHMENT,PAYC3_446_1103170,E7140,LD - Hunts Locality,LD - Huntigndonshire  - Special Needs,Rehabilitation And Respite Care
Cambridgeshire County Council,21-Jun-19,51300969500,"-4,655.00",Accomplish Group Support Limited,CARE ESTABLISHMENT,PAYC3_443_1089866,E7140,LD - Hunts Locality,LD - Huntigndonshire  - Special Needs,Rehabilitation And Respite Care
Cambridgeshire County Council,21-Jun-19,51300977100,"-4,655.00",Accomplish Group Support Limited,CARE ESTABLISHMENT,PAYC3_444_1081355,E7140,LD - Hunts Locality,LD - Huntigndonshire  - Special Needs,Rehabilitation And Respite Care
Cambridgeshire County Council,21-Jun-19,51300985033,"-4,655.00",Accomplish Group Support Limited,CARE ESTABLISHMENT,PAYC3_445_1081388,E7140,LD - Hunts Locality,LD - Huntigndonshire  - Special Needs,Rehabilitation And Respite Care
Cambridgeshire County Council,21-Jun-19,51300985040,"-4,655.00",Accomplish Group Support Limited,CARE ESTABLISHMENT,PAYC3_445_1081394,E7140,LD - Hunts Locality,LD - Huntigndonshire  - Special Needs,Rehabilitation And Respite Care
Cambridgeshire County Council,21-Jun-19,51300977093,"-4,655.00",Accomplish Group Support Limited,CARE ESTABLISHMENT,PAYC3_444_1081349,E7140,LD - Hunts Locality,LD - Huntigndonshire  - Special Needs,Rehabilitation And Respite Care
Cambridgeshire County Council,21-Jun-19,51300985027,"-4,655.00",Accomplish Group Support Limited,CARE ESTABLISHMENT,PAYC3_445_1081400,E7140,LD - Hunts Locality,LD - Huntigndonshire  - Special Needs,Rehabilitation And Respite Care
Cambridgeshire County Council,21-Jun-19,51301008816,"-4,655.00",Accomplish Group Support Limited,CARE ESTABLISHMENT,PAYC3_446_1103174,E7140,LD - Hunts Locality,LD - Huntigndonshire  - Special Needs,Rehabilitation And Respite Care
Cambridgeshire County Council,21-Jun-19,51300977102,"-4,655.00",Accomplish Group Support Limited,CARE ESTABLISHMENT,PAYC3_444_1081351,E7140,LD - Hunts Locality,LD - Huntigndonshire  - Special Needs,Rehabilitation And Respite Care
Cambridgeshire County Council,21-Jun-19,51301008831,"-4,655.00",Accomplish Group Support Limited,CARE ESTABLISHMENT,PAYC3_446_1103182,E7140,LD - Hunts Locality,LD - Huntigndonshire  - Special Needs,Rehabilitation And Respite Care
Cambridgeshire County Council,21-Jun-19,51300985030,"-4,655.00",Accomplish Group Support Limited,CARE ESTABLISHMENT,PAYC3_445_1081390,E7140,LD - Hunts Locality,LD - Huntigndonshire  - Special Needs,Rehabilitation And Respite Care
Cambridgeshire County Council,21-Jun-19,51301008823,"-4,655.00",Accomplish Group Support Limited,CARE ESTABLISHMENT,PAYC3_446_1103184,E7140,LD - Hunts Locality,LD - Huntigndonshire  - Special Needs,Rehabilitation And Respite Care
Cambridgeshire County Council,21-Jun-19,51300969498,"-4,655.00",Accomplish Group Support Limited,CARE ESTABLISHMENT,PAYC3_443_1089860,E7140,LD - Hunts Locality,LD - Huntigndonshire  - Special Needs,Rehabilitation And Respite Care
Cambridgeshire County Council,21-Jun-19,51301008840,"-4,655.00",Accomplish Group Support Limited,CARE ESTABLISHMENT,PAYC3_446_1103172,E7140,LD - Hunts Locality,LD - Huntigndonshire  - Special Needs,Rehabilitation And Respite Care
Cambridgeshire County Council,21-Jun-19,51300985037,"-4,655.00",Accomplish Group Support Limited,CARE ESTABLISHMENT,PAYC3_445_1081402,E7140,LD - Hunts Locality,LD - Huntigndonshire  - Special Needs,Rehabilitation And Respite Care
Cambridgeshire County Council,21-Jun-19,51300969505,"-4,655.00",Accomplish Group Support Limited,CARE ESTABLISHMENT,PAYC3_443_1089854,E7140,LD - Hunts Locality,LD - Huntigndonshire  - Special Needs,Rehabilitation And Respite Care
Cambridgeshire County Council,21-Jun-19,51300969513,"-4,655.00",Accomplish Group Support Limited,CARE ESTABLISHMENT,PAYC3_443_1089856,E7140,LD - Hunts Locality,LD - Huntigndonshire  - Special Needs,Rehabilitation And Respite Care
Cambridgeshire County Council,21-Jun-19,51300977103,"-4,655.00",Accomplish Group Support Limited,CARE ESTABLISHMENT,PAYC3_444_1081357,E7140,LD - Hunts Locality,LD - Huntigndonshire  - Special Needs,Rehabilitation And Respite Care
Cambridgeshire County Council,21-Jun-19,51300977108,"-4,655.00",Accomplish Group Support Limited,CARE ESTABLISHMENT,PAYC3_444_1081361,E7140,LD - Hunts Locality,LD - Huntigndonshire  - Special Needs,Rehabilitation And Respite Care
Cambridgeshire County Council,21-Jun-19,51300985046,"-4,655.00",Accomplish Group Support Limited,CARE ESTABLISHMENT,PAYC3_445_1081386,E7140,LD - Hunts Locality,LD - Huntigndonshire  - Special Needs,Rehabilitation And Respite Care
Cambridgeshire County Council,21-Jun-19,51300985044,"-4,655.00",Accomplish Group Support Limited,CARE ESTABLISHMENT,PAYC3_445_1081392,E7140,LD - Hunts Locality,LD - Huntigndonshire  - Special Needs,Rehabilitation And Respite Care
Cambridgeshire County Council,21-Jun-19,51300969516,"-4,655.00",Accomplish Group Support Limited,CARE ESTABLISHMENT,PAYC3_443_1089862,E7140,LD - Hunts Locality,LD - Huntigndonshire  - Care,Rehabilitation And Respite Care
Cambridgeshire County Council,21-Jun-19,51300977107,"-4,655.00",Accomplish Group Support Limited,CARE ESTABLISHMENT,PAYC3_444_1081359,E7140,LD - Hunts Locality,LD - Huntigndonshire  - Care,Rehabilitation And Respite Care
Cambridgeshire County Council,21-Jun-19,51300977109,"-4,655.00",Accomplish Group Support Limited,CARE ESTABLISHMENT,PAYC3_444_1081365,E7140,LD - Hunts Locality,LD - Huntigndonshire  - Care,Rehabilitation And Respite Care
Cambridgeshire County Council,21-Jun-19,51300985032,"-4,655.00",Accomplish Group Support Limited,CARE ESTABLISHMENT,PAYC3_445_1081396,E7140,LD - Hunts Locality,LD - Huntigndonshire  - Care,Rehabilitation And Respite Care
Cambridgeshire County Council,21-Jun-19,51301008805,"-4,655.00",Accomplish Group Support Limited,CARE ESTABLISHMENT,PAYC3_446_1103178,E7140,LD - Hunts Locality,LD - Huntigndonshire  - Care,Rehabilitation And Respite Care
Cambridgeshire County Council,21-Jun-19,51300977092,"-4,655.00",Accomplish Group Support Limited,CARE ESTABLISHMENT,PAYC3_444_1081353,E7140,LD - Hunts Locality,LD - Huntigndonshire  - Care,Rehabilitation And Respite Care
Cambridgeshire County Council,21-Jun-19,51301008811,"-4,655.00",Accomplish Group Support Limited,CARE ESTABLISHMENT,PAYC3_446_1103176,E7140,LD - Hunts Locality,LD - Huntigndonshire  - Care,Rehabilitation And Respite Care
Cambridgeshire County Council,21-Jun-19,51300969508,"-4,655.00",Accomplish Group Support Limited,CARE ESTABLISHMENT,PAYC3_443_1089852,E7140,LD - Hunts Locality,LD - Huntigndonshire  - Care,Rehabilitation And Respite Care
Cambridgeshire County Council,21-Jun-19,51300969509,"-4,655.00",Accomplish Group Support Limited,CARE ESTABLISHMENT,PAYC3_443_1089858,E7140,LD - Hunts Locality,LD - Huntigndonshire  - Care,Rehabilitation And Respite Care
Cambridgeshire County Council,21-Jun-19,51300969506,"-4,655.00",Accomplish Group Support Limited,CARE ESTABLISHMENT,PAYC3_443_1089864,E7140,LD - Hunts Locality,LD - Huntigndonshire  - Care,Rehabilitation And Respite Care
Cambridgeshire County Council,21-Jun-19,51300969502,"-4,655.00",Accomplish Group Support Limited,CARE ESTABLISHMENT,PAYC3_443_1089850,E7140,LD - Hunts Locality,LD - Huntigndonshire  - Care,Rehabilitation And Respite Care
Cambridgeshire County Council,21-Jun-19,51301008812,"-4,655.00",Accomplish Group Support Limited,CARE ESTABLISHMENT,PAYC3_446_1103180,E7140,LD - Hunts Locality,LD - Huntigndonshire  - Care,Rehabilitation And Respite Care
Cambridgeshire County Council,21-Jun-19,51300985036,"-4,655.00",Accomplish Group Support Limited,CARE ESTABLISHMENT,PAYC3_445_1081398,E7140,LD - Hunts Locality,LD - Huntigndonshire  - Care,Rehabilitation And Respite Care
Cambridgeshire County Council,03-Jun-19,51300923360,"-4,576.61",WYG ENGINEERING LTD,TRADE SUPPLIER,306907C,XB020,GCP - West of Cambridge Package,GCP - West of Cambridge Package,Construction - External Professional Fees
Cambridgeshire County Council,21-Jun-19,51300962027,"-4,547.28",VOYAGE,CARE ESTABLISHMENT,PAYC3_443_1055060,E7170,LD - South Locality,LD - South Cambs - Care,Supported Living
Cambridgeshire County Council,18-Jun-19,51300988246,"-4,230.82",CONGREGATION OF THE DAUGHTERS OF THE CROSS OF LIEGE (ST ELIZABETHS CENTRE),CARE ESTABLISHMENT,31127,J6205,LD - Hunts Locality,LD - Huntigndonshire  - Care,Residential Client Care Contributions
Cambridgeshire County Council,18-Jun-19,51300913456,"-4,004.38",ALDERWOOD LLA LTD,CARE ESTABLISHMENT,27140,E7145,LD - Hunts Locality,LD - Huntigndonshire  - Special Needs,Residential Care
Cambridgeshire County Council,24-Jun-19,51301011457,"-3,971.43",EXCEPTIONAL CARE LIMITED,CARE ESTABLISHMENT,CN-575,E7125,LAC Placements,Placements - residential homes,Agency Placements - Out of  County
Cambridgeshire County Council,18-Jun-19,51300913456,"-3,842.23",ALDERWOOD LLA LTD,CARE ESTABLISHMENT,27140,E7145,LD - Hunts Locality,LD - Huntigndonshire  - Special Needs,Residential Care
Cambridgeshire County Council,18-Jun-19,51300913456,"-3,842.23",ALDERWOOD LLA LTD,CARE ESTABLISHMENT,27140,E7145,LD - Hunts Locality,LD - Huntigndonshire  - Special Needs,Residential Care
Cambridgeshire County Council,18-Jun-19,51300913456,"-3,842.23",ALDERWOOD LLA LTD,CARE ESTABLISHMENT,27140,E7145,LD - Hunts Locality,LD - Huntigndonshire  - Special Needs,Residential Care
Cambridgeshire County Council,18-Jun-19,51300913456,"-3,842.23",ALDERWOOD LLA LTD,CARE ESTABLISHMENT,27140,E7145,LD - Hunts Locality,LD - Huntigndonshire  - Special Needs,Residential Care
Cambridgeshire County Council,18-Jun-19,51300913456,"-3,842.23",ALDERWOOD LLA LTD,CARE ESTABLISHMENT,27140,E7145,LD - Hunts Locality,LD - Huntigndonshire  - Special Needs,Residential Care
Cambridgeshire County Council,18-Jun-19,51300913456,"-3,842.23",ALDERWOOD LLA LTD,CARE ESTABLISHMENT,27140,E7145,LD - Hunts Locality,LD - Huntigndonshire  - Special Needs,Residential Care
Cambridgeshire County Council,18-Jun-19,51300913456,"-3,842.23",ALDERWOOD LLA LTD,CARE ESTABLISHMENT,27140,E7145,LD - Hunts Locality,LD - Huntigndonshire  - Special Needs,Residential Care
Cambridgeshire County Council,18-Jun-19,51300913456,"-3,842.23",ALDERWOOD LLA LTD,CARE ESTABLISHMENT,27140,E7145,LD - Hunts Locality,LD - Huntigndonshire  - Special Needs,Residential Care
Cambridgeshire County Council,18-Jun-19,51300913456,"-3,842.23",ALDERWOOD LLA LTD,CARE ESTABLISHMENT,27140,E7145,LD - Hunts Locality,LD - Huntigndonshire  - Special Needs,Residential Care
Cambridgeshire County Council,18-Jun-19,51300913456,"-3,842.23",ALDERWOOD LLA LTD,CARE ESTABLISHMENT,27140,E7145,LD - Hunts Locality,LD - Huntigndonshire  - Special Needs,Residential Care
Cambridgeshire County Council,18-Jun-19,51300913456,"-3,842.23",ALDERWOOD LLA LTD,CARE ESTABLISHMENT,27140,E7145,LD - Hunts Locality,LD - Huntigndonshire  - Special Needs,Residential Care
Cambridgeshire County Council,18-Jun-19,51300913456,"-3,842.23",ALDERWOOD LLA LTD,CARE ESTABLISHMENT,27140,E7145,LD - Hunts Locality,LD - Huntigndonshire  - Special Needs,Residential Care
Cambridgeshire County Council,18-Jun-19,51300913456,"-3,842.23",ALDERWOOD LLA LTD,CARE ESTABLISHMENT,27140,E7145,LD - Hunts Locality,LD - Huntigndonshire  - Special Needs,Residential Care
Cambridgeshire County Council,21-Jun-19,51300970650,"-3,655.21",VOYAGE,CARE ESTABLISHMENT,PAYC3_443_1055140,E7170,LD - City Locality,LD - City - Care,Supported Living
Cambridgeshire County Council,18-Jun-19,51300987947,"-3,649.96",DECOY FARM,CARE ESTABLISHMENT,31168,J6205,LD - Hunts Locality,LD - Huntigndonshire  - Special Needs,Residential Client Care Contributions
Cambridgeshire County Council,12-Jun-19,51300985419,"-3,619.50",NATIONAL TEACHING & ADVISORY SERVICE FOR LOOKED AFTER CHILDREN (NT & AS),OTHER PUBLIC BODIES,Out of School provision,E7180,Out of School Tuition,Out of School Provision - Education and Settings,Independent School Placements
Cambridgeshire County Council,18-Jun-19,51300978353,"-3,498.00",K RAVIVARUMAN T/A FAIR HAVEN CARE HOME,CARE ESTABLISHMENT,27639,E7145,OP - East Cambs Locality,East Cambs - O P Team,Residential Care
Cambridgeshire County Council,21-Jun-19,51300969490,"-3,429.87",VOYAGE,CARE ESTABLISHMENT,PAYC3_443_1055142,E7145,LD - East Locality,LD - East Cambs - Special Needs,Residential Care
Cambridgeshire County Council,21-Jun-19,51300969318,"-3,405.46",FLORIDA AVENUE (VOYAGE),CARE ESTABLISHMENT,PAYC3_443_1067128,E7170,LD - Hunts Locality,LD - Huntigndonshire  - Special Needs,Supported Living
Cambridgeshire County Council,21-Jun-19,51301008804,"-3,325.00",Accomplish Group Support Limited,CARE ESTABLISHMENT,PAYC3_446_1103166,E7140,LD - Hunts Locality,LD - Huntigndonshire  - Special Needs,Rehabilitation And Respite Care
Cambridgeshire County Council,21-Jun-19,51300985043,"-3,325.00",Accomplish Group Support Limited,CARE ESTABLISHMENT,PAYC3_445_1081384,E7140,LD - Hunts Locality,LD - Huntigndonshire  - Special Needs,Rehabilitation And Respite Care
Cambridgeshire County Council,21-Jun-19,51300977096,"-3,325.00",Accomplish Group Support Limited,CARE ESTABLISHMENT,PAYC3_444_1081347,E7140,LD - Hunts Locality,LD - Huntigndonshire  - Care,Rehabilitation And Respite Care
Cambridgeshire County Council,21-Jun-19,51300969496,"-3,325.00",Accomplish Group Support Limited,CARE ESTABLISHMENT,PAYC3_443_1089848,E7140,LD - Hunts Locality,LD - Huntigndonshire  - Care,Rehabilitation And Respite Care
Cambridgeshire County Council,18-Jun-19,51300913456,"-3,293.34",ALDERWOOD LLA LTD,CARE ESTABLISHMENT,27140,E7145,LD - Hunts Locality,LD - Huntigndonshire  - Special Needs,Residential Care
Cambridgeshire County Council,26-Jun-19,51300978841,"-3,240.00",SIXTEEN PLUS,CARE ESTABLISHMENT,7589CR,E7120,LAC Placements,Placements - supported accommodation,Agency Placements - In County
Cambridgeshire County Council,18-Jun-19,51300978351,"-3,111.72",DECOY FARM,CARE ESTABLISHMENT,27634,J6205,LD - Hunts Locality,LD - Huntigndonshire  - Special Needs,Residential Client Care Contributions
Cambridgeshire County Council,18-Jun-19,51300978351,"-3,111.72",DECOY FARM,CARE ESTABLISHMENT,27634,J6205,LD - Hunts Locality,LD - Huntigndonshire  - Special Needs,Residential Client Care Contributions
Cambridgeshire County Council,18-Jun-19,51300978351,"-3,111.72",DECOY FARM,CARE ESTABLISHMENT,27634,J6205,LD - Hunts Locality,LD - Huntigndonshire  - Special Needs,Residential Client Care Contributions
Cambridgeshire County Council,18-Jun-19,51300978351,"-3,111.72",DECOY FARM,CARE ESTABLISHMENT,27634,J6205,LD - Hunts Locality,LD - Huntigndonshire  - Special Needs,Residential Client Care Contributions
Cambridgeshire County Council,18-Jun-19,51300978351,"-3,111.72",DECOY FARM,CARE ESTABLISHMENT,27634,J6205,LD - Hunts Locality,LD - Huntigndonshire  - Special Needs,Residential Client Care Contributions
Cambridgeshire County Council,18-Jun-19,51300978351,"-3,111.72",DECOY FARM,CARE ESTABLISHMENT,27634,J6205,LD - Hunts Locality,LD - Huntigndonshire  - Special Needs,Residential Client Care Contributions
Cambridgeshire County Council,18-Jun-19,51300978351,"-3,111.72",DECOY FARM,CARE ESTABLISHMENT,27634,J6205,LD - Hunts Locality,LD - Huntigndonshire  - Special Needs,Residential Client Care Contributions
Cambridgeshire County Council,18-Jun-19,51300978351,"-3,111.72",DECOY FARM,CARE ESTABLISHMENT,27634,J6205,LD - Hunts Locality,LD - Huntigndonshire  - Special Needs,Residential Client Care Contributions
Cambridgeshire County Council,18-Jun-19,51300978351,"-3,111.72",DECOY FARM,CARE ESTABLISHMENT,27634,J6205,LD - Hunts Locality,LD - Huntigndonshire  - Special Needs,Residential Client Care Contributions
Cambridgeshire County Council,18-Jun-19,51300978351,"-3,111.72",DECOY FARM,CARE ESTABLISHMENT,27634,J6205,LD - Hunts Locality,LD - Huntigndonshire  - Special Needs,Residential Client Care Contributions
Cambridgeshire County Council,18-Jun-19,51300978351,"-3,111.72",DECOY FARM,CARE ESTABLISHMENT,27634,J6205,LD - Hunts Locality,LD - Huntigndonshire  - Special Needs,Residential Client Care Contributions
Cambridgeshire County Council,18-Jun-19,51300978351,"-3,111.72",DECOY FARM,CARE ESTABLISHMENT,27634,J6205,LD - Hunts Locality,LD - Huntigndonshire  - Special Needs,Residential Client Care Contributions
Cambridgeshire County Council,18-Jun-19,51300978351,"-3,111.72",DECOY FARM,CARE ESTABLISHMENT,27634,J6205,LD - Hunts Locality,LD - Huntigndonshire  - Special Needs,Residential Client Care Contributions
Cambridgeshire County Council,18-Jun-19,51300978351,"-3,111.72",DECOY FARM,CARE ESTABLISHMENT,27634,J6205,LD - Hunts Locality,LD - Huntigndonshire  - Special Needs,Residential Client Care Contributions
Cambridgeshire County Council,18-Jun-19,51300978351,"-3,111.72",DECOY FARM,CARE ESTABLISHMENT,27634,J6205,LD - Hunts Locality,LD - Huntigndonshire  - Special Needs,Residential Client Care Contributions
Cambridgeshire County Council,18-Jun-19,51300978351,"-3,111.72",DECOY FARM,CARE ESTABLISHMENT,27634,J6205,LD - Hunts Locality,LD - Huntigndonshire  - Special Needs,Residential Client Care Contributions
Cambridgeshire County Council,18-Jun-19,51300978351,"-3,111.72",DECOY FARM,CARE ESTABLISHMENT,27634,J6205,LD - Hunts Locality,LD - Huntigndonshire  - Special Needs,Residential Client Care Contributions
Cambridgeshire County Council,18-Jun-19,51300978351,"-3,111.72",DECOY FARM,CARE ESTABLISHMENT,27634,J6205,LD - Hunts Locality,LD - Huntigndonshire  - Special Needs,Residential Client Care Contributions
Cambridgeshire County Council,18-Jun-19,51300978351,"-3,111.72",DECOY FARM,CARE ESTABLISHMENT,27634,J6205,LD - Hunts Locality,LD - Huntigndonshire  - Special Needs,Residential Client Care Contributions
Cambridgeshire County Council,18-Jun-19,51300978351,"-3,111.72",DECOY FARM,CARE ESTABLISHMENT,27634,J6205,LD - Hunts Locality,LD - Huntigndonshire  - Special Needs,Residential Client Care Contributions
Cambridgeshire County Council,18-Jun-19,51300978351,"-3,111.72",DECOY FARM,CARE ESTABLISHMENT,27634,J6205,LD - Hunts Locality,LD - Huntigndonshire  - Special Needs,Residential Client Care Contributions
Cambridgeshire County Council,18-Jun-19,51300978351,"-3,111.72",DECOY FARM,CARE ESTABLISHMENT,27634,J6205,LD - Hunts Locality,LD - Huntigndonshire  - Special Needs,Residential Client Care Contributions
Cambridgeshire County Council,18-Jun-19,51300978351,"-3,111.72",DECOY FARM,CARE ESTABLISHMENT,27634,J6205,LD - Hunts Locality,LD - Huntigndonshire  - Special Needs,Residential Client Care Contributions
Cambridgeshire County Council,18-Jun-19,51300978351,"-3,111.72",DECOY FARM,CARE ESTABLISHMENT,27634,J6205,LD - Hunts Locality,LD - Huntigndonshire  - Special Needs,Residential Client Care Contributions
Cambridgeshire County Council,18-Jun-19,51300988215,"-3,108.76",CONQUEST CARE HOMES PETERBOROUGH,CARE ESTABLISHMENT,32763,J6205,LD - Hunts Locality,LD - Huntigndonshire  - Special Needs,Residential Client Care Contributions
Cambridgeshire County Council,19-Jun-19,51300985477,"-2,936.84",PRIORY COLLEGE WALES,EDUCATION,C444000064A,E7180,SEN Placements,Placements - Education,Independent School Placements
Cambridgeshire County Council,18-Jun-19,51300863788,"-2,607.66",SENSE (MIDLANDS),CARE ESTABLISHMENT,24174,J6205,LD - Hunts Locality,LD - Huntigndonshire  - Care,Residential Client Care Contributions
Cambridgeshire County Council,18-Jun-19,51300987951,"-2,607.66",SENSE (MIDLANDS),CARE ESTABLISHMENT,31179,J6205,LD - Hunts Locality,LD - Huntigndonshire  - Care,Residential Client Care Contributions
Cambridgeshire County Council,18-Jun-19,51300912921,"-2,607.66",SENSE (MIDLANDS),CARE ESTABLISHMENT,27103,J6205,LD - Hunts Locality,LD - Huntigndonshire  - Care,Residential Client Care Contributions
Cambridgeshire County Council,18-Jun-19,51300863788,"-2,607.66",SENSE (MIDLANDS),CARE ESTABLISHMENT,24174,J6205,LD - Hunts Locality,LD - Huntigndonshire  - Care,Residential Client Care Contributions
Cambridgeshire County Council,18-Jun-19,51300987951,"-2,607.66",SENSE (MIDLANDS),CARE ESTABLISHMENT,31179,J6205,LD - Hunts Locality,LD - Huntigndonshire  - Care,Residential Client Care Contributions
Cambridgeshire County Council,18-Jun-19,51300912921,"-2,607.66",SENSE (MIDLANDS),CARE ESTABLISHMENT,27103,J6205,LD - Hunts Locality,LD - Huntigndonshire  - Care,Residential Client Care Contributions
Cambridgeshire County Council,18-Jun-19,51300912921,"-2,607.66",SENSE (MIDLANDS),CARE ESTABLISHMENT,27103,J6205,LD - Hunts Locality,LD - Huntigndonshire  - Care,Residential Client Care Contributions
Cambridgeshire County Council,18-Jun-19,51300912921,"-2,607.66",SENSE (MIDLANDS),CARE ESTABLISHMENT,27103,J6205,LD - Hunts Locality,LD - Huntigndonshire  - Care,Residential Client Care Contributions
Cambridgeshire County Council,18-Jun-19,51300863788,"-2,607.66",SENSE (MIDLANDS),CARE ESTABLISHMENT,24174,J6205,LD - Hunts Locality,LD - Huntigndonshire  - Care,Residential Client Care Contributions
Cambridgeshire County Council,18-Jun-19,51300987951,"-2,607.66",SENSE (MIDLANDS),CARE ESTABLISHMENT,31179,J6205,LD - Hunts Locality,LD - Huntigndonshire  - Care,Residential Client Care Contributions
Cambridgeshire County Council,18-Jun-19,51300987951,"-2,607.66",SENSE (MIDLANDS),CARE ESTABLISHMENT,31179,J6205,LD - Hunts Locality,LD - Huntigndonshire  - Care,Residential Client Care Contributions
Cambridgeshire County Council,28-Jun-19,51301021281,"-2,484.00",TRANSITION CARE PETERBOROUGH LTD,CARE ESTABLISHMENT,TCP/6794.CR,E7120,LAC Placements,Placements - supported accommodation,Agency Placements - In County
Cambridgeshire County Council,21-Jun-19,51301002981,"-2,337.29",DIMENSIONS (UK) LTD,CARE ESTABLISHMENT,PAYC3_446_1074358,E7170,LD - City Locality,LD - City - Special Needs,Supported Living
Cambridgeshire County Council,21-Jun-19,51300975920,"-2,337.29",DIMENSIONS (UK) LTD,CARE ESTABLISHMENT,PAYC3_444_1054536,E7170,LD - City Locality,LD - City - Special Needs,Supported Living
Cambridgeshire County Council,21-Jun-19,51300965341,"-2,337.29",DIMENSIONS (UK) LTD,CARE ESTABLISHMENT,PAYC3_443_1062103,E7170,LD - City Locality,LD - City - Special Needs,Supported Living
Cambridgeshire County Council,21-Jun-19,51300983870,"-2,337.29",DIMENSIONS (UK) LTD,CARE ESTABLISHMENT,PAYC3_445_1054469,E7170,LD - City Locality,LD - City - Special Needs,Supported Living
Cambridgeshire County Council,21-Jun-19,51301002979,"-2,337.29",DIMENSIONS (UK) LTD,CARE ESTABLISHMENT,PAYC3_446_1074360,E7170,LD - City Locality,LD - City - Special Needs,Supported Living
Cambridgeshire County Council,21-Jun-19,51300965342,"-2,337.29",DIMENSIONS (UK) LTD,CARE ESTABLISHMENT,PAYC3_443_1062101,E7170,LD - City Locality,LD - City - Special Needs,Supported Living
Cambridgeshire County Council,21-Jun-19,51300965336,"-2,337.29",DIMENSIONS (UK) LTD,CARE ESTABLISHMENT,PAYC3_443_1062105,E7170,LD - City Locality,LD - City - Special Needs,Supported Living
Cambridgeshire County Council,21-Jun-19,51300965348,"-2,337.29",DIMENSIONS (UK) LTD,CARE ESTABLISHMENT,PAYC3_443_1062095,E7170,LD - City Locality,LD - City - Special Needs,Supported Living
Cambridgeshire County Council,21-Jun-19,51301002976,"-2,337.29",DIMENSIONS (UK) LTD,CARE ESTABLISHMENT,PAYC3_446_1074370,E7170,LD - City Locality,LD - City - Special Needs,Supported Living
Cambridgeshire County Council,21-Jun-19,51300965349,"-2,337.29",DIMENSIONS (UK) LTD,CARE ESTABLISHMENT,PAYC3_443_1062093,E7170,LD - City Locality,LD - City - Special Needs,Supported Living
Cambridgeshire County Council,21-Jun-19,51300965340,"-2,337.29",DIMENSIONS (UK) LTD,CARE ESTABLISHMENT,PAYC3_443_1062091,E7170,LD - City Locality,LD - City - Special Needs,Supported Living
Cambridgeshire County Council,21-Jun-19,51300975932,"-2,337.29",DIMENSIONS (UK) LTD,CARE ESTABLISHMENT,PAYC3_444_1054530,E7170,LD - City Locality,LD - City - Special Needs,Supported Living
Cambridgeshire County Council,21-Jun-19,51301002983,"-2,337.29",DIMENSIONS (UK) LTD,CARE ESTABLISHMENT,PAYC3_446_1074362,E7170,LD - City Locality,LD - City - Special Needs,Supported Living
Cambridgeshire County Council,21-Jun-19,51301002982,"-2,337.29",DIMENSIONS (UK) LTD,CARE ESTABLISHMENT,PAYC3_446_1074364,E7170,LD - City Locality,LD - City - Special Needs,Supported Living
Cambridgeshire County Council,21-Jun-19,51300983866,"-2,337.29",DIMENSIONS (UK) LTD,CARE ESTABLISHMENT,PAYC3_445_1054471,E7170,LD - City Locality,LD - City - Special Needs,Supported Living
Cambridgeshire County Council,21-Jun-19,51300975925,"-2,337.29",DIMENSIONS (UK) LTD,CARE ESTABLISHMENT,PAYC3_444_1054528,E7170,LD - City Locality,LD - City - Special Needs,Supported Living
Cambridgeshire County Council,21-Jun-19,51300975930,"-2,337.29",DIMENSIONS (UK) LTD,CARE ESTABLISHMENT,PAYC3_444_1054534,E7170,LD - City Locality,LD - City - Special Needs,Supported Living
Cambridgeshire County Council,21-Jun-19,51300983862,"-2,337.29",DIMENSIONS (UK) LTD,CARE ESTABLISHMENT,PAYC3_445_1054465,E7170,LD - City Locality,LD - City - Special Needs,Supported Living
Cambridgeshire County Council,21-Jun-19,51300983868,"-2,337.29",DIMENSIONS (UK) LTD,CARE ESTABLISHMENT,PAYC3_445_1054459,E7170,LD - City Locality,LD - City - Special Needs,Supported Living
Cambridgeshire County Council,21-Jun-19,51301002990,"-2,337.29",DIMENSIONS (UK) LTD,CARE ESTABLISHMENT,PAYC3_446_1074368,E7170,LD - City Locality,LD - City - Special Needs,Supported Living
Cambridgeshire County Council,21-Jun-19,51300975926,"-2,337.29",DIMENSIONS (UK) LTD,CARE ESTABLISHMENT,PAYC3_444_1054538,E7170,LD - South Locality,LD - South Cambs - Special Needs,Supported Living
Cambridgeshire County Council,21-Jun-19,51300983875,"-2,337.29",DIMENSIONS (UK) LTD,CARE ESTABLISHMENT,PAYC3_445_1054463,E7170,LD - South Locality,LD - South Cambs - Special Needs,Supported Living
Cambridgeshire County Council,21-Jun-19,51300965334,"-2,337.29",DIMENSIONS (UK) LTD,CARE ESTABLISHMENT,PAYC3_443_1062097,E7170,LD - South Locality,LD - South Cambs - Special Needs,Supported Living
Cambridgeshire County Council,21-Jun-19,51300983865,"-2,337.29",DIMENSIONS (UK) LTD,CARE ESTABLISHMENT,PAYC3_445_1054467,E7170,LD - South Locality,LD - South Cambs - Special Needs,Supported Living
Cambridgeshire County Council,21-Jun-19,51301002993,"-2,337.29",DIMENSIONS (UK) LTD,CARE ESTABLISHMENT,PAYC3_446_1074366,E7170,LD - South Locality,LD - South Cambs - Special Needs,Supported Living
Cambridgeshire County Council,21-Jun-19,51300975927,"-2,337.29",DIMENSIONS (UK) LTD,CARE ESTABLISHMENT,PAYC3_444_1054532,E7170,LD - South Locality,LD - South Cambs - Special Needs,Supported Living
Cambridgeshire County Council,21-Jun-19,51300983873,"-2,337.29",DIMENSIONS (UK) LTD,CARE ESTABLISHMENT,PAYC3_445_1054461,E7170,LD - South Locality,LD - South Cambs - Special Needs,Supported Living
Cambridgeshire County Council,21-Jun-19,51301002978,"-2,337.29",DIMENSIONS (UK) LTD,CARE ESTABLISHMENT,PAYC3_446_1074356,E7170,LD - South Locality,LD - South Cambs - Special Needs,Supported Living
Cambridgeshire County Council,21-Jun-19,51300975929,"-2,337.29",DIMENSIONS (UK) LTD,CARE ESTABLISHMENT,PAYC3_444_1054524,E7170,LD - South Locality,LD - South Cambs - Special Needs,Supported Living
Cambridgeshire County Council,21-Jun-19,51300983860,"-2,337.29",DIMENSIONS (UK) LTD,CARE ESTABLISHMENT,PAYC3_445_1054473,E7170,LD - South Locality,LD - South Cambs - Special Needs,Supported Living
Cambridgeshire County Council,21-Jun-19,51300975917,"-2,337.29",DIMENSIONS (UK) LTD,CARE ESTABLISHMENT,PAYC3_444_1054526,E7170,LD - South Locality,LD - South Cambs - Special Needs,Supported Living
Cambridgeshire County Council,21-Jun-19,51300965335,"-2,337.29",DIMENSIONS (UK) LTD,CARE ESTABLISHMENT,PAYC3_443_1062099,E7170,LD - South Locality,LD - South Cambs - Special Needs,Supported Living
Cambridgeshire County Council,18-Jun-19,51300987259,"-2,321.43",CLAYBURN COURT (DUAL RES/NURS (LA/NHS))(67049),CARE ESTABLISHMENT,32430,E7145,OP - Fenland Locality,Older People - Fenland,Residential Care
Cambridgeshire County Council,18-Jun-19,51300913456,"-2,273.64",ALDERWOOD LLA LTD,CARE ESTABLISHMENT,27140,E7145,LD - Hunts Locality,LD - Huntigndonshire  - Special Needs,Residential Care
Cambridgeshire County Council,17-Jun-19,51300935020,"-2,023.50",FUTURES FOR CHILDREN LTD,CARE ESTABLISHMENT,34246,E7125,LAC Placements,Placements - independent fostering,Agency Placements - Out of  County
Cambridgeshire County Council,17-Jun-19,51300935021,"-2,003.36",FUTURES FOR CHILDREN LTD,CARE ESTABLISHMENT,34247,E7125,LAC Placements,Placements - independent fostering,Agency Placements - Out of  County
Cambridgeshire County Council,27-Jun-19,51301021362,"-1,980.00",PEOPLE AND BUSINESS DEVELOPMENT LTD,TRADE SUPPLIER,589.CR,D4110,EY - Workforce Development,Qualifications,Professional Fees and Hired Services
Cambridgeshire County Council,18-Jun-19,51300988234,"-1,902.33",GRIFFIN LODGE,CARE ESTABLISHMENT,31087,E7145,LD - South Locality,LD - South Cambs - Care,Residential Care
Cambridgeshire County Council,18-Jun-19,51300988234,"-1,902.33",GRIFFIN LODGE,CARE ESTABLISHMENT,31087,E7145,LD - South Locality,LD - South Cambs - Care,Residential Care
Cambridgeshire County Council,18-Jun-19,51300988234,"-1,902.33",GRIFFIN LODGE,CARE ESTABLISHMENT,31087,E7145,LD - South Locality,LD - South Cambs - Care,Residential Care
Cambridgeshire County Council,18-Jun-19,51300988234,"-1,902.33",GRIFFIN LODGE,CARE ESTABLISHMENT,31087,E7145,LD - South Locality,LD - South Cambs - Care,Residential Care
Cambridgeshire County Council,18-Jun-19,51300988234,"-1,902.33",GRIFFIN LODGE,CARE ESTABLISHMENT,31087,E7145,LD - South Locality,LD - South Cambs - Care,Residential Care
Cambridgeshire County Council,18-Jun-19,51300988234,"-1,902.33",GRIFFIN LODGE,CARE ESTABLISHMENT,31087,E7145,LD - South Locality,LD - South Cambs - Care,Residential Care
Cambridgeshire County Council,18-Jun-19,51300988234,"-1,902.33",GRIFFIN LODGE,CARE ESTABLISHMENT,31087,E7145,LD - South Locality,LD - South Cambs - Care,Residential Care
Cambridgeshire County Council,18-Jun-19,51300988234,"-1,902.33",GRIFFIN LODGE,CARE ESTABLISHMENT,31087,E7145,LD - South Locality,LD - South Cambs - Care,Residential Care
Cambridgeshire County Council,18-Jun-19,51300988234,"-1,902.33",GRIFFIN LODGE,CARE ESTABLISHMENT,31087,E7145,LD - South Locality,LD - South Cambs - Care,Residential Care
Cambridgeshire County Council,18-Jun-19,51300988234,"-1,902.33",GRIFFIN LODGE,CARE ESTABLISHMENT,31087,E7145,LD - South Locality,LD - South Cambs - Care,Residential Care
Cambridgeshire County Council,18-Jun-19,51300988234,"-1,902.33",GRIFFIN LODGE,CARE ESTABLISHMENT,31087,E7145,LD - South Locality,LD - South Cambs - Care,Residential Care
Cambridgeshire County Council,18-Jun-19,51300988234,"-1,902.33",GRIFFIN LODGE,CARE ESTABLISHMENT,31087,E7145,LD - South Locality,LD - South Cambs - Care,Residential Care
Cambridgeshire County Council,18-Jun-19,51300988234,"-1,902.33",GRIFFIN LODGE,CARE ESTABLISHMENT,31087,E7145,LD - South Locality,LD - South Cambs - Care,Residential Care
Cambridgeshire County Council,18-Jun-19,51300988234,"-1,902.33",GRIFFIN LODGE,CARE ESTABLISHMENT,31087,E7145,LD - South Locality,LD - South Cambs - Care,Residential Care
Cambridgeshire County Council,18-Jun-19,51300988234,"-1,902.33",GRIFFIN LODGE,CARE ESTABLISHMENT,31087,E7145,LD - South Locality,LD - South Cambs - Care,Residential Care
Cambridgeshire County Council,18-Jun-19,51300988234,"-1,902.33",GRIFFIN LODGE,CARE ESTABLISHMENT,31087,E7145,LD - South Locality,LD - South Cambs - Care,Residential Care
Cambridgeshire County Council,18-Jun-19,51300988234,"-1,902.33",GRIFFIN LODGE,CARE ESTABLISHMENT,31087,E7145,LD - South Locality,LD - South Cambs - Care,Residential Care
Cambridgeshire County Council,18-Jun-19,51300988234,"-1,902.33",GRIFFIN LODGE,CARE ESTABLISHMENT,31087,E7145,LD - South Locality,LD - South Cambs - Care,Residential Care
Cambridgeshire County Council,18-Jun-19,51300988234,"-1,902.33",GRIFFIN LODGE,CARE ESTABLISHMENT,31087,E7145,LD - South Locality,LD - South Cambs - Care,Residential Care
Cambridgeshire County Council,18-Jun-19,51300988234,"-1,902.33",GRIFFIN LODGE,CARE ESTABLISHMENT,31087,E7145,LD - South Locality,LD - South Cambs - Care,Residential Care
Cambridgeshire County Council,18-Jun-19,51300988234,"-1,902.33",GRIFFIN LODGE,CARE ESTABLISHMENT,31087,E7145,LD - South Locality,LD - South Cambs - Care,Residential Care
Cambridgeshire County Council,18-Jun-19,51300988234,"-1,902.33",GRIFFIN LODGE,CARE ESTABLISHMENT,31087,E7145,LD - South Locality,LD - South Cambs - Care,Residential Care
Cambridgeshire County Council,18-Jun-19,51300988234,"-1,902.33",GRIFFIN LODGE,CARE ESTABLISHMENT,31087,E7145,LD - South Locality,LD - South Cambs - Care,Residential Care
Cambridgeshire County Council,18-Jun-19,51300988234,"-1,902.33",GRIFFIN LODGE,CARE ESTABLISHMENT,31087,E7145,LD - South Locality,LD - South Cambs - Care,Residential Care
Cambridgeshire County Council,18-Jun-19,51300988234,"-1,902.33",GRIFFIN LODGE,CARE ESTABLISHMENT,31087,E7145,LD - South Locality,LD - South Cambs - Care,Residential Care
Cambridgeshire County Council,18-Jun-19,51300988234,"-1,902.33",GRIFFIN LODGE,CARE ESTABLISHMENT,31087,E7145,LD - South Locality,LD - South Cambs - Care,Residential Care
Cambridgeshire County Council,18-Jun-19,51300988234,"-1,902.33",GRIFFIN LODGE,CARE ESTABLISHMENT,31087,E7145,LD - South Locality,LD - South Cambs - Care,Residential Care
Cambridgeshire County Council,18-Jun-19,51300988234,"-1,902.33",GRIFFIN LODGE,CARE ESTABLISHMENT,31087,E7145,LD - South Locality,LD - South Cambs - Care,Residential Care
Cambridgeshire County Council,18-Jun-19,51300988234,"-1,902.33",GRIFFIN LODGE,CARE ESTABLISHMENT,31087,E7145,LD - South Locality,LD - South Cambs - Care,Residential Care
Cambridgeshire County Council,18-Jun-19,51300988234,"-1,902.33",GRIFFIN LODGE,CARE ESTABLISHMENT,31087,E7145,LD - South Locality,LD - South Cambs - Care,Residential Care
Cambridgeshire County Council,18-Jun-19,51300988234,"-1,902.33",GRIFFIN LODGE,CARE ESTABLISHMENT,31087,E7145,LD - South Locality,LD - South Cambs - Care,Residential Care
Cambridgeshire County Council,18-Jun-19,51300988234,"-1,902.33",GRIFFIN LODGE,CARE ESTABLISHMENT,31087,E7145,LD - South Locality,LD - South Cambs - Care,Residential Care
Cambridgeshire County Council,18-Jun-19,51300988234,"-1,902.33",GRIFFIN LODGE,CARE ESTABLISHMENT,31087,E7145,LD - South Locality,LD - South Cambs - Care,Residential Care
Cambridgeshire County Council,18-Jun-19,51300988234,"-1,902.33",GRIFFIN LODGE,CARE ESTABLISHMENT,31087,E7145,LD - South Locality,LD - South Cambs - Care,Residential Care
Cambridgeshire County Council,18-Jun-19,51300988234,"-1,902.33",GRIFFIN LODGE,CARE ESTABLISHMENT,31087,E7145,LD - South Locality,LD - South Cambs - Care,Residential Care
Cambridgeshire County Council,18-Jun-19,51300988234,"-1,902.33",GRIFFIN LODGE,CARE ESTABLISHMENT,31087,E7145,LD - South Locality,LD - South Cambs - Care,Residential Care
Cambridgeshire County Council,18-Jun-19,51300988234,"-1,902.33",GRIFFIN LODGE,CARE ESTABLISHMENT,31087,E7145,LD - South Locality,LD - South Cambs - Care,Residential Care
Cambridgeshire County Council,18-Jun-19,51300988234,"-1,902.33",GRIFFIN LODGE,CARE ESTABLISHMENT,31087,E7145,LD - South Locality,LD - South Cambs - Care,Residential Care
Cambridgeshire County Council,18-Jun-19,51300988234,"-1,902.33",GRIFFIN LODGE,CARE ESTABLISHMENT,31087,E7145,LD - South Locality,LD - South Cambs - Care,Residential Care
Cambridgeshire County Council,18-Jun-19,51300988234,"-1,902.33",GRIFFIN LODGE,CARE ESTABLISHMENT,31087,E7145,LD - South Locality,LD - South Cambs - Care,Residential Care
Cambridgeshire County Council,18-Jun-19,51300988234,"-1,902.33",GRIFFIN LODGE,CARE ESTABLISHMENT,31087,E7145,LD - South Locality,LD - South Cambs - Care,Residential Care
Cambridgeshire County Council,18-Jun-19,51300988234,"-1,902.33",GRIFFIN LODGE,CARE ESTABLISHMENT,31087,E7145,LD - South Locality,LD - South Cambs - Care,Residential Care
Cambridgeshire County Council,18-Jun-19,51300988234,"-1,902.33",GRIFFIN LODGE,CARE ESTABLISHMENT,31087,E7145,LD - South Locality,LD - South Cambs - Care,Residential Care
Cambridgeshire County Council,18-Jun-19,51300988234,"-1,902.33",GRIFFIN LODGE,CARE ESTABLISHMENT,31087,E7145,LD - South Locality,LD - South Cambs - Care,Residential Care
Cambridgeshire County Council,18-Jun-19,51300988234,"-1,902.33",GRIFFIN LODGE,CARE ESTABLISHMENT,31087,E7145,LD - South Locality,LD - South Cambs - Care,Residential Care
Cambridgeshire County Council,18-Jun-19,51300988234,"-1,902.33",GRIFFIN LODGE,CARE ESTABLISHMENT,31087,E7145,LD - South Locality,LD - South Cambs - Care,Residential Care
Cambridgeshire County Council,18-Jun-19,51300988234,"-1,902.33",GRIFFIN LODGE,CARE ESTABLISHMENT,31087,E7145,LD - South Locality,LD - South Cambs - Care,Residential Care
Cambridgeshire County Council,18-Jun-19,51300988234,"-1,902.33",GRIFFIN LODGE,CARE ESTABLISHMENT,31087,E7145,LD - South Locality,LD - South Cambs - Care,Residential Care
Cambridgeshire County Council,18-Jun-19,51300988234,"-1,902.33",GRIFFIN LODGE,CARE ESTABLISHMENT,31087,E7145,LD - South Locality,LD - South Cambs - Care,Residential Care
Cambridgeshire County Council,18-Jun-19,51300988234,"-1,902.33",GRIFFIN LODGE,CARE ESTABLISHMENT,31087,E7145,LD - South Locality,LD - South Cambs - Care,Residential Care
Cambridgeshire County Council,18-Jun-19,51300988234,"-1,902.33",GRIFFIN LODGE,CARE ESTABLISHMENT,31087,E7145,LD - South Locality,LD - South Cambs - Care,Residential Care
Cambridgeshire County Council,18-Jun-19,51300988234,"-1,902.33",GRIFFIN LODGE,CARE ESTABLISHMENT,31087,E7145,LD - South Locality,LD - South Cambs - Care,Residential Care
Cambridgeshire County Council,18-Jun-19,51300988234,"-1,902.33",GRIFFIN LODGE,CARE ESTABLISHMENT,31087,E7145,LD - South Locality,LD - South Cambs - Care,Residential Care
Cambridgeshire County Council,18-Jun-19,51300988234,"-1,902.33",GRIFFIN LODGE,CARE ESTABLISHMENT,31087,E7145,LD - South Locality,LD - South Cambs - Care,Residential Care
Cambridgeshire County Council,18-Jun-19,51300988234,"-1,902.33",GRIFFIN LODGE,CARE ESTABLISHMENT,31087,E7145,LD - South Locality,LD - South Cambs - Care,Residential Care
Cambridgeshire County Council,18-Jun-19,51300988234,"-1,902.33",GRIFFIN LODGE,CARE ESTABLISHMENT,31087,E7145,LD - South Locality,LD - South Cambs - Care,Residential Care
Cambridgeshire County Council,18-Jun-19,51300988234,"-1,902.33",GRIFFIN LODGE,CARE ESTABLISHMENT,31087,E7145,LD - South Locality,LD - South Cambs - Care,Residential Care
Cambridgeshire County Council,18-Jun-19,51300988234,"-1,902.33",GRIFFIN LODGE,CARE ESTABLISHMENT,31087,E7145,LD - South Locality,LD - South Cambs - Care,Residential Care
Cambridgeshire County Council,18-Jun-19,51300988234,"-1,902.33",GRIFFIN LODGE,CARE ESTABLISHMENT,31087,E7145,LD - South Locality,LD - South Cambs - Care,Residential Care
Cambridgeshire County Council,18-Jun-19,51300988234,"-1,902.33",GRIFFIN LODGE,CARE ESTABLISHMENT,31087,E7145,LD - South Locality,LD - South Cambs - Care,Residential Care
Cambridgeshire County Council,18-Jun-19,51300988234,"-1,902.33",GRIFFIN LODGE,CARE ESTABLISHMENT,31087,E7145,LD - South Locality,LD - South Cambs - Care,Residential Care
Cambridgeshire County Council,18-Jun-19,51300988234,"-1,902.33",GRIFFIN LODGE,CARE ESTABLISHMENT,31087,E7145,LD - South Locality,LD - South Cambs - Care,Residential Care
Cambridgeshire County Council,18-Jun-19,51300988234,"-1,902.33",GRIFFIN LODGE,CARE ESTABLISHMENT,31087,E7145,LD - South Locality,LD - South Cambs - Care,Residential Care
Cambridgeshire County Council,18-Jun-19,51300988234,"-1,902.33",GRIFFIN LODGE,CARE ESTABLISHMENT,31087,E7145,LD - South Locality,LD - South Cambs - Care,Residential Care
Cambridgeshire County Council,21-Jun-19,51300962030,"-1,872.29",VOYAGE,CARE ESTABLISHMENT,PAYC3_443_1100795,E7170,LD - City Locality,LD - City - Special Needs,Supported Living
Cambridgeshire County Council,21-Jun-19,51300968436,"-1,776.52",FLORIDA AVENUE (VOYAGE),CARE ESTABLISHMENT,PAYC3_443_1067131,E7170,LD - Hunts Locality,LD - Huntigndonshire  - Special Needs,Supported Living
Cambridgeshire County Council,21-Jun-19,51300989972,"-1,713.60",THERA EAST ANGLIA,CARE ESTABLISHMENT,PAYC3_446_907465,E7170,LD - East Locality,LD - East Cambs - Special Needs,Supported Living
Cambridgeshire County Council,21-Jun-19,51300989966,"-1,713.60",THERA EAST ANGLIA,CARE ESTABLISHMENT,PAYC3_446_907467,E7170,LD - East Locality,LD - East Cambs - Special Needs,Supported Living
Cambridgeshire County Council,21-Jun-19,51301001488,"-1,711.36",AFFINITY TRUST,CARE ESTABLISHMENT,PAYC3_446_1020520,E7170,LD - Fenland Locality,LD - Fenland  - Special Needs,Supported Living
Cambridgeshire County Council,21-Jun-19,51300975256,"-1,711.36",AFFINITY TRUST,CARE ESTABLISHMENT,PAYC3_444_1004289,E7170,LD - Fenland Locality,LD - Fenland  - Special Needs,Supported Living
Cambridgeshire County Council,21-Jun-19,51300975282,"-1,711.36",AFFINITY TRUST,CARE ESTABLISHMENT,PAYC3_444_1004275,E7170,LD - Fenland Locality,LD - Fenland  - Special Needs,Supported Living
Cambridgeshire County Council,21-Jun-19,51300964217,"-1,711.36",AFFINITY TRUST,CARE ESTABLISHMENT,PAYC3_443_1009726,E7170,LD - Fenland Locality,LD - Fenland  - Special Needs,Supported Living
Cambridgeshire County Council,21-Jun-19,51301001510,"-1,711.36",AFFINITY TRUST,CARE ESTABLISHMENT,PAYC3_446_1020540,E7170,LD - Fenland Locality,LD - Fenland  - Special Needs,Supported Living
Cambridgeshire County Council,21-Jun-19,51300975281,"-1,711.36",AFFINITY TRUST,CARE ESTABLISHMENT,PAYC3_444_1004299,E7170,LD - Fenland Locality,LD - Fenland  - Special Needs,Supported Living
Cambridgeshire County Council,21-Jun-19,51300964202,"-1,711.36",AFFINITY TRUST,CARE ESTABLISHMENT,PAYC3_443_1009736,E7170,LD - Fenland Locality,LD - Fenland  - Special Needs,Supported Living
Cambridgeshire County Council,21-Jun-19,51300964194,"-1,711.36",AFFINITY TRUST,CARE ESTABLISHMENT,PAYC3_443_1009744,E7170,LD - Fenland Locality,LD - Fenland  - Special Needs,Supported Living
Cambridgeshire County Council,21-Jun-19,51300983106,"-1,711.36",AFFINITY TRUST,CARE ESTABLISHMENT,PAYC3_445_1004197,E7170,LD - Fenland Locality,LD - Fenland  - Special Needs,Supported Living
Cambridgeshire County Council,21-Jun-19,51300983125,"-1,711.36",AFFINITY TRUST,CARE ESTABLISHMENT,PAYC3_445_1004211,E7170,LD - Fenland Locality,LD - Fenland  - Special Needs,Supported Living
Cambridgeshire County Council,21-Jun-19,51300975260,"-1,711.36",AFFINITY TRUST,CARE ESTABLISHMENT,PAYC3_444_1004287,E7170,LD - Fenland Locality,LD - Fenland  - Special Needs,Supported Living
Cambridgeshire County Council,21-Jun-19,51301001495,"-1,711.36",AFFINITY TRUST,CARE ESTABLISHMENT,PAYC3_446_1020544,E7170,LD - Fenland Locality,LD - Fenland  - Special Needs,Supported Living
Cambridgeshire County Council,21-Jun-19,51301001517,"-1,711.36",AFFINITY TRUST,CARE ESTABLISHMENT,PAYC3_446_1020538,E7170,LD - Fenland Locality,LD - Fenland  - Special Needs,Supported Living
Cambridgeshire County Council,21-Jun-19,51300975279,"-1,711.36",AFFINITY TRUST,CARE ESTABLISHMENT,PAYC3_444_1004281,E7170,LD - Fenland Locality,LD - Fenland  - Special Needs,Supported Living
Cambridgeshire County Council,21-Jun-19,51300983104,"-1,711.36",AFFINITY TRUST,CARE ESTABLISHMENT,PAYC3_445_1004195,E7170,LD - Fenland Locality,LD - Fenland  - Special Needs,Supported Living
Cambridgeshire County Council,21-Jun-19,51300975271,"-1,711.36",AFFINITY TRUST,CARE ESTABLISHMENT,PAYC3_444_1004303,E7170,LD - Fenland Locality,LD - Fenland  - Special Needs,Supported Living
Cambridgeshire County Council,21-Jun-19,51300964195,"-1,711.36",AFFINITY TRUST,CARE ESTABLISHMENT,PAYC3_443_1009720,E7170,LD - Fenland Locality,LD - Fenland  - Special Needs,Supported Living
Cambridgeshire County Council,21-Jun-19,51300983121,"-1,711.36",AFFINITY TRUST,CARE ESTABLISHMENT,PAYC3_445_1004217,E7170,LD - Fenland Locality,LD - Fenland  - Special Needs,Supported Living
Cambridgeshire County Council,21-Jun-19,51301001503,"-1,711.36",AFFINITY TRUST,CARE ESTABLISHMENT,PAYC3_446_1020542,E7170,LD - Fenland Locality,LD - Fenland  - Special Needs,Supported Living
Cambridgeshire County Council,21-Jun-19,51300975259,"-1,711.36",AFFINITY TRUST,CARE ESTABLISHMENT,PAYC3_444_1004283,E7170,LD - Fenland Locality,LD - Fenland  - Special Needs,Supported Living
Cambridgeshire County Council,21-Jun-19,51300983124,"-1,711.36",AFFINITY TRUST,CARE ESTABLISHMENT,PAYC3_445_1004205,E7170,LD - Fenland Locality,LD - Fenland  - Special Needs,Supported Living
Cambridgeshire County Council,21-Jun-19,51300964200,"-1,711.36",AFFINITY TRUST,CARE ESTABLISHMENT,PAYC3_443_1009718,E7170,LD - Fenland Locality,LD - Fenland  - Special Needs,Supported Living
Cambridgeshire County Council,21-Jun-19,51301001515,"-1,711.36",AFFINITY TRUST,CARE ESTABLISHMENT,PAYC3_446_1020528,E7170,LD - Fenland Locality,LD - Fenland  - Special Needs,Supported Living
Cambridgeshire County Council,21-Jun-19,51300983114,"-1,711.36",AFFINITY TRUST,CARE ESTABLISHMENT,PAYC3_445_1004189,E7170,LD - Fenland Locality,LD - Fenland  - Special Needs,Supported Living
Cambridgeshire County Council,21-Jun-19,51300975258,"-1,711.36",AFFINITY TRUST,CARE ESTABLISHMENT,PAYC3_444_1004295,E7170,LD - Fenland Locality,LD - Fenland  - Special Needs,Supported Living
Cambridgeshire County Council,21-Jun-19,51301001484,"-1,711.36",AFFINITY TRUST,CARE ESTABLISHMENT,PAYC3_446_1020546,E7170,LD - Fenland Locality,LD - Fenland  - Special Needs,Supported Living
Cambridgeshire County Council,21-Jun-19,51300983127,"-1,711.36",AFFINITY TRUST,CARE ESTABLISHMENT,PAYC3_445_1004215,E7170,LD - Fenland Locality,LD - Fenland  - Care,Supported Living
Cambridgeshire County Council,21-Jun-19,51301001514,"-1,711.36",AFFINITY TRUST,CARE ESTABLISHMENT,PAYC3_446_1020526,E7170,LD - Fenland Locality,LD - Fenland  - Care,Supported Living
Cambridgeshire County Council,21-Jun-19,51300964209,"-1,711.36",AFFINITY TRUST,CARE ESTABLISHMENT,PAYC3_443_1009742,E7170,LD - Fenland Locality,LD - Fenland  - Care,Supported Living
Cambridgeshire County Council,21-Jun-19,51300975273,"-1,711.36",AFFINITY TRUST,CARE ESTABLISHMENT,PAYC3_444_1004279,E7170,LD - Fenland Locality,LD - Fenland  - Care,Supported Living
Cambridgeshire County Council,21-Jun-19,51300983103,"-1,711.36",AFFINITY TRUST,CARE ESTABLISHMENT,PAYC3_445_1004207,E7170,LD - Fenland Locality,LD - Fenland  - Care,Supported Living
Cambridgeshire County Council,21-Jun-19,51300964214,"-1,711.36",AFFINITY TRUST,CARE ESTABLISHMENT,PAYC3_443_1009730,E7170,LD - Fenland Locality,LD - Fenland  - Care,Supported Living
Cambridgeshire County Council,21-Jun-19,51300975274,"-1,711.36",AFFINITY TRUST,CARE ESTABLISHMENT,PAYC3_444_1004291,E7170,LD - Fenland Locality,LD - Fenland  - Care,Supported Living
Cambridgeshire County Council,21-Jun-19,51301001499,"-1,711.36",AFFINITY TRUST,CARE ESTABLISHMENT,PAYC3_446_1020550,E7170,LD - Fenland Locality,LD - Fenland  - Care,Supported Living
Cambridgeshire County Council,21-Jun-19,51300964199,"-1,711.36",AFFINITY TRUST,CARE ESTABLISHMENT,PAYC3_443_1009746,E7170,LD - Fenland Locality,LD - Fenland  - Care,Supported Living
Cambridgeshire County Council,21-Jun-19,51300983126,"-1,711.36",AFFINITY TRUST,CARE ESTABLISHMENT,PAYC3_445_1004213,E7170,LD - Fenland Locality,LD - Fenland  - Care,Supported Living
Cambridgeshire County Council,21-Jun-19,51301001489,"-1,711.36",AFFINITY TRUST,CARE ESTABLISHMENT,PAYC3_446_1020524,E7170,LD - Fenland Locality,LD - Fenland  - Care,Supported Living
Cambridgeshire County Council,21-Jun-19,51300975285,"-1,711.36",AFFINITY TRUST,CARE ESTABLISHMENT,PAYC3_444_1004277,E7170,LD - Fenland Locality,LD - Fenland  - Care,Supported Living
Cambridgeshire County Council,21-Jun-19,51300983122,"-1,711.36",AFFINITY TRUST,CARE ESTABLISHMENT,PAYC3_445_1004219,E7170,LD - Fenland Locality,LD - Fenland  - Care,Supported Living
Cambridgeshire County Council,21-Jun-19,51301001478,"-1,711.36",AFFINITY TRUST,CARE ESTABLISHMENT,PAYC3_446_1020534,E7170,LD - Fenland Locality,LD - Fenland  - Care,Supported Living
Cambridgeshire County Council,21-Jun-19,51301001512,"-1,711.36",AFFINITY TRUST,CARE ESTABLISHMENT,PAYC3_446_1020532,E7170,LD - Fenland Locality,LD - Fenland  - Care,Supported Living
Cambridgeshire County Council,21-Jun-19,51300964216,"-1,711.36",AFFINITY TRUST,CARE ESTABLISHMENT,PAYC3_443_1009738,E7170,LD - Fenland Locality,LD - Fenland  - Care,Supported Living
Cambridgeshire County Council,21-Jun-19,51300983100,"-1,711.36",AFFINITY TRUST,CARE ESTABLISHMENT,PAYC3_445_1004193,E7170,LD - Fenland Locality,LD - Fenland  - Care,Supported Living
Cambridgeshire County Council,21-Jun-19,51300964187,"-1,711.36",AFFINITY TRUST,CARE ESTABLISHMENT,PAYC3_443_1009722,E7170,LD - Fenland Locality,LD - Fenland  - Care,Supported Living
Cambridgeshire County Council,21-Jun-19,51300975278,"-1,711.36",AFFINITY TRUST,CARE ESTABLISHMENT,PAYC3_444_1004273,E7170,LD - Fenland Locality,LD - Fenland  - Care,Supported Living
Cambridgeshire County Council,21-Jun-19,51300983108,"-1,711.36",AFFINITY TRUST,CARE ESTABLISHMENT,PAYC3_445_1004191,E7170,LD - Fenland Locality,LD - Fenland  - Care,Supported Living
Cambridgeshire County Council,21-Jun-19,51300975270,"-1,711.36",AFFINITY TRUST,CARE ESTABLISHMENT,PAYC3_444_1004285,E7170,LD - Fenland Locality,LD - Fenland  - Care,Supported Living
Cambridgeshire County Council,21-Jun-19,51301001480,"-1,711.36",AFFINITY TRUST,CARE ESTABLISHMENT,PAYC3_446_1020536,E7170,LD - Fenland Locality,LD - Fenland  - Care,Supported Living
Cambridgeshire County Council,21-Jun-19,51300964215,"-1,711.36",AFFINITY TRUST,CARE ESTABLISHMENT,PAYC3_443_1009734,E7170,LD - Fenland Locality,LD - Fenland  - Care,Supported Living
Cambridgeshire County Council,21-Jun-19,51300983117,"-1,711.36",AFFINITY TRUST,CARE ESTABLISHMENT,PAYC3_445_1004199,E7170,LD - Fenland Locality,LD - Fenland  - Care,Supported Living
Cambridgeshire County Council,21-Jun-19,51300983118,"-1,711.36",AFFINITY TRUST,CARE ESTABLISHMENT,PAYC3_445_1004203,E7170,LD - Fenland Locality,LD - Fenland  - Care,Supported Living
Cambridgeshire County Council,21-Jun-19,51300964203,"-1,711.36",AFFINITY TRUST,CARE ESTABLISHMENT,PAYC3_443_1009748,E7170,LD - Fenland Locality,LD - Fenland  - Care,Supported Living
Cambridgeshire County Council,21-Jun-19,51300975284,"-1,711.36",AFFINITY TRUST,CARE ESTABLISHMENT,PAYC3_444_1004297,E7170,LD - Fenland Locality,LD - Fenland  - Care,Supported Living
Cambridgeshire County Council,21-Jun-19,51301001500,"-1,711.36",AFFINITY TRUST,CARE ESTABLISHMENT,PAYC3_446_1020522,E7170,LD - Fenland Locality,LD - Fenland  - Care,Supported Living
Cambridgeshire County Council,21-Jun-19,51300964208,"-1,711.36",AFFINITY TRUST,CARE ESTABLISHMENT,PAYC3_443_1009732,E7170,LD - Fenland Locality,LD - Fenland  - Care,Supported Living
Cambridgeshire County Council,21-Jun-19,51300975277,"-1,711.36",AFFINITY TRUST,CARE ESTABLISHMENT,PAYC3_444_1004301,E7170,LD - Fenland Locality,LD - Fenland  - Care,Supported Living
Cambridgeshire County Council,21-Jun-19,51301001516,"-1,711.36",AFFINITY TRUST,CARE ESTABLISHMENT,PAYC3_446_1020530,E7170,LD - Fenland Locality,LD - Fenland  - Care,Supported Living
Cambridgeshire County Council,21-Jun-19,51300964188,"-1,711.36",AFFINITY TRUST,CARE ESTABLISHMENT,PAYC3_443_1009728,E7170,LD - Fenland Locality,LD - Fenland  - Care,Supported Living
Cambridgeshire County Council,21-Jun-19,51300975272,"-1,711.36",AFFINITY TRUST,CARE ESTABLISHMENT,PAYC3_444_1004293,E7170,LD - Fenland Locality,LD - Fenland  - Care,Supported Living
Cambridgeshire County Council,21-Jun-19,51300983113,"-1,711.36",AFFINITY TRUST,CARE ESTABLISHMENT,PAYC3_445_1004209,E7170,LD - Fenland Locality,LD - Fenland  - Care,Supported Living
Cambridgeshire County Council,21-Jun-19,51300964196,"-1,711.36",AFFINITY TRUST,CARE ESTABLISHMENT,PAYC3_443_1009724,E7170,LD - Fenland Locality,LD - Fenland  - Care,Supported Living
Cambridgeshire County Council,21-Jun-19,51300964191,"-1,711.36",AFFINITY TRUST,CARE ESTABLISHMENT,PAYC3_443_1009740,E7170,LD - Fenland Locality,LD - Fenland  - Care,Supported Living
Cambridgeshire County Council,21-Jun-19,51301001481,"-1,711.36",AFFINITY TRUST,CARE ESTABLISHMENT,PAYC3_446_1020548,E7170,LD - Fenland Locality,LD - Fenland  - Care,Supported Living
Cambridgeshire County Council,21-Jun-19,51300983120,"-1,711.36",AFFINITY TRUST,CARE ESTABLISHMENT,PAYC3_445_1004201,E7170,LD - Fenland Locality,LD - Fenland  - Care,Supported Living
Cambridgeshire County Council,28-Jun-19,51301021499,"-1,653.60",JUST CHECKING LTD,TRADE SUPPLIER,336.CR,D0015,Assistive Telecare & Technology,TEC APCP,Specialist Equipment For Service Delivery
Cambridgeshire County Council,21-Jun-19,51300958200,"-1,566.37",DIMENSIONS (UK) LTD,CARE ESTABLISHMENT,PAYC3_443_1062285,E7170,LD - South Locality,LD - South Cambs - Special Needs,Supported Living
Cambridgeshire County Council,21-Jun-19,51300956962,"-1,566.37",DIMENSIONS (UK) LTD,CARE ESTABLISHMENT,PAYC3_443_1062110,E7170,LD - South Locality,LD - South Cambs - Special Needs,Supported Living
Cambridgeshire County Council,27-Jun-19,51301021429,"-1,520.30",TONY BARRIOS TRAINING FACILITATOR,TRADE SUPPLIER,31300004324.CR,D4110,Adults L&D,Adults VQ,Professional Fees and Hired Services
Cambridgeshire County Council,27-Jun-19,51301021427,"-1,494.00",SDC BUILDERS LTD,COMPANY,7.CR,XD030,Temporary Accommodation,Temporary Accommodation,Mobile - Buildings
Cambridgeshire County Council,21-Jun-19,51300970764,"-1,411.33",SOCIAL CARE SOLUTIONS LTD,CARE ESTABLISHMENT,PAYC3_443_1054921,E7170,LD - Fenland Locality,LD - Fenland  - Special Needs,Supported Living
Cambridgeshire County Council,21-Jun-19,51300970760,"-1,411.33",SOCIAL CARE SOLUTIONS LTD,CARE ESTABLISHMENT,PAYC3_443_1054923,E7170,LD - Fenland Locality,LD - Fenland  - Special Needs,Supported Living
Cambridgeshire County Council,21-Jun-19,51300970762,"-1,411.33",SOCIAL CARE SOLUTIONS LTD,CARE ESTABLISHMENT,PAYC3_443_1054927,E7170,LD - Fenland Locality,LD - Fenland  - Special Needs,Supported Living
Cambridgeshire County Council,21-Jun-19,51300970767,"-1,411.33",SOCIAL CARE SOLUTIONS LTD,CARE ESTABLISHMENT,PAYC3_443_1054924,E7170,LD - Fenland Locality,LD - Fenland  - Special Needs,Supported Living
Cambridgeshire County Council,21-Jun-19,51300970766,"-1,411.33",SOCIAL CARE SOLUTIONS LTD,CARE ESTABLISHMENT,PAYC3_443_1054922,E7170,LD - Fenland Locality,LD - Fenland  - Special Needs,Supported Living
Cambridgeshire County Council,21-Jun-19,51300970763,"-1,411.33",SOCIAL CARE SOLUTIONS LTD,CARE ESTABLISHMENT,PAYC3_443_1054926,E7170,LD - Fenland Locality,LD - Fenland  - Special Needs,Supported Living
Cambridgeshire County Council,21-Jun-19,51300970768,"-1,411.33",SOCIAL CARE SOLUTIONS LTD,CARE ESTABLISHMENT,PAYC3_443_1054925,E7170,LD - Fenland Locality,LD - Fenland  - Special Needs,Supported Living
Cambridgeshire County Council,26-Jun-19,51301013215,"-1,394.83",Lincolns Care Ltd,CARE ESTABLISHMENT,CN-0101,E7120,LAC Placements,Placements - supported accommodation,Agency Placements - In County
Cambridgeshire County Council,18-Jun-19,51300987508,"-1,368.43",VOYAGE,CARE ESTABLISHMENT,32457,E7145,LD - South Locality,LD - South Cambs - Care,Residential Care
Cambridgeshire County Council,18-Jun-19,51300987508,"-1,368.43",VOYAGE,CARE ESTABLISHMENT,32457,E7145,LD - South Locality,LD - South Cambs - Care,Residential Care
Cambridgeshire County Council,18-Jun-19,51300987508,"-1,368.43",VOYAGE,CARE ESTABLISHMENT,32457,E7145,LD - South Locality,LD - South Cambs - Care,Residential Care
Cambridgeshire County Council,18-Jun-19,51300987508,"-1,368.43",VOYAGE,CARE ESTABLISHMENT,32457,E7145,LD - South Locality,LD - South Cambs - Care,Residential Care
Cambridgeshire County Council,18-Jun-19,51300987508,"-1,368.43",VOYAGE,CARE ESTABLISHMENT,32457,E7145,LD - South Locality,LD - South Cambs - Care,Residential Care
Cambridgeshire County Council,18-Jun-19,51300987508,"-1,368.43",VOYAGE,CARE ESTABLISHMENT,32457,E7145,LD - South Locality,LD - South Cambs - Care,Residential Care
Cambridgeshire County Council,18-Jun-19,51300987508,"-1,368.43",VOYAGE,CARE ESTABLISHMENT,32457,E7145,LD - South Locality,LD - South Cambs - Care,Residential Care
Cambridgeshire County Council,18-Jun-19,51300987508,"-1,368.43",VOYAGE,CARE ESTABLISHMENT,32457,E7145,LD - South Locality,LD - South Cambs - Care,Residential Care
Cambridgeshire County Council,18-Jun-19,51300987508,"-1,368.43",VOYAGE,CARE ESTABLISHMENT,32457,E7145,LD - South Locality,LD - South Cambs - Care,Residential Care
Cambridgeshire County Council,18-Jun-19,51300987508,"-1,368.43",VOYAGE,CARE ESTABLISHMENT,32457,E7145,LD - South Locality,LD - South Cambs - Care,Residential Care
Cambridgeshire County Council,18-Jun-19,51300987508,"-1,368.43",VOYAGE,CARE ESTABLISHMENT,32457,E7145,LD - South Locality,LD - South Cambs - Care,Residential Care
Cambridgeshire County Council,18-Jun-19,51300987508,"-1,368.43",VOYAGE,CARE ESTABLISHMENT,32457,E7145,LD - South Locality,LD - South Cambs - Care,Residential Care
Cambridgeshire County Council,18-Jun-19,51300987508,"-1,368.43",VOYAGE,CARE ESTABLISHMENT,32457,E7145,LD - South Locality,LD - South Cambs - Care,Residential Care
Cambridgeshire County Council,18-Jun-19,51300987508,"-1,368.43",VOYAGE,CARE ESTABLISHMENT,32457,E7145,LD - South Locality,LD - South Cambs - Care,Residential Care
Cambridgeshire County Council,18-Jun-19,51300987508,"-1,368.43",VOYAGE,CARE ESTABLISHMENT,32457,E7145,LD - South Locality,LD - South Cambs - Care,Residential Care
Cambridgeshire County Council,21-Jun-19,51300974049,"-1,317.11",ALDERTON HOUSE,CARE ESTABLISHMENT,PAYC3_444_1028022,E7145,LD - East Locality,LD - East Cambs - Care,Residential Care
Cambridgeshire County Council,21-Jun-19,51300959560,"-1,317.11",ALDERTON HOUSE,CARE ESTABLISHMENT,PAYC3_443_1035276,E7145,LD - East Locality,LD - East Cambs - Care,Residential Care
Cambridgeshire County Council,21-Jun-19,51300959683,"-1,317.11",ALDERTON HOUSE,CARE ESTABLISHMENT,PAYC3_443_1035266,E7145,LD - East Locality,LD - East Cambs - Care,Residential Care
Cambridgeshire County Council,21-Jun-19,51300973977,"-1,317.11",ALDERTON HOUSE,CARE ESTABLISHMENT,PAYC3_444_1028064,E7145,LD - East Locality,LD - East Cambs - Care,Residential Care
Cambridgeshire County Council,21-Jun-19,51300982138,"-1,317.11",ALDERTON HOUSE,CARE ESTABLISHMENT,PAYC3_445_1027965,E7145,LD - East Locality,LD - East Cambs - Care,Residential Care
Cambridgeshire County Council,21-Jun-19,51300982033,"-1,317.11",ALDERTON HOUSE,CARE ESTABLISHMENT,PAYC3_445_1028003,E7145,LD - East Locality,LD - East Cambs - Care,Residential Care
Cambridgeshire County Council,21-Jun-19,51300995161,"-1,317.11",ALDERTON HOUSE,CARE ESTABLISHMENT,PAYC3_446_1046050,E7145,LD - East Locality,LD - East Cambs - Care,Residential Care
Cambridgeshire County Council,21-Jun-19,51300995199,"-1,317.11",ALDERTON HOUSE,CARE ESTABLISHMENT,PAYC3_446_1046020,E7145,LD - East Locality,LD - East Cambs - Care,Residential Care
Cambridgeshire County Council,21-Jun-19,51300959712,"-1,317.11",ALDERTON HOUSE,CARE ESTABLISHMENT,PAYC3_443_1035204,E7145,LD - East Locality,LD - East Cambs - Care,Residential Care
Cambridgeshire County Council,21-Jun-19,51300959547,"-1,317.11",ALDERTON HOUSE,CARE ESTABLISHMENT,PAYC3_443_1035280,E7145,LD - East Locality,LD - East Cambs - Care,Residential Care
Cambridgeshire County Council,21-Jun-19,51300982026,"-1,317.11",ALDERTON HOUSE,CARE ESTABLISHMENT,PAYC3_445_1028007,E7145,LD - East Locality,LD - East Cambs - Care,Residential Care
Cambridgeshire County Council,21-Jun-19,51300974024,"-1,317.11",ALDERTON HOUSE,CARE ESTABLISHMENT,PAYC3_444_1028118,E7145,LD - East Locality,LD - East Cambs - Care,Residential Care
Cambridgeshire County Council,21-Jun-19,51300959664,"-1,317.11",ALDERTON HOUSE,CARE ESTABLISHMENT,PAYC3_443_1035309,E7145,LD - East Locality,LD - East Cambs - Care,Residential Care
Cambridgeshire County Council,21-Jun-19,51300974056,"-1,317.11",ALDERTON HOUSE,CARE ESTABLISHMENT,PAYC3_444_1028100,E7145,LD - East Locality,LD - East Cambs - Care,Residential Care
Cambridgeshire County Council,21-Jun-19,51300973998,"-1,317.11",ALDERTON HOUSE,CARE ESTABLISHMENT,PAYC3_444_1028104,E7145,LD - East Locality,LD - East Cambs - Care,Residential Care
Cambridgeshire County Council,21-Jun-19,51300995150,"-1,317.11",ALDERTON HOUSE,CARE ESTABLISHMENT,PAYC3_446_1046040,E7145,LD - East Locality,LD - East Cambs - Care,Residential Care
Cambridgeshire County Council,21-Jun-19,51300995257,"-1,317.11",ALDERTON HOUSE,CARE ESTABLISHMENT,PAYC3_446_1046024,E7145,LD - East Locality,LD - East Cambs - Care,Residential Care
Cambridgeshire County Council,21-Jun-19,51300982042,"-1,317.11",ALDERTON HOUSE,CARE ESTABLISHMENT,PAYC3_445_1027995,E7145,LD - East Locality,LD - East Cambs - Care,Residential Care
Cambridgeshire County Council,21-Jun-19,51300995114,"-1,317.11",ALDERTON HOUSE,CARE ESTABLISHMENT,PAYC3_446_1045944,E7145,LD - East Locality,LD - East Cambs - Care,Residential Care
Cambridgeshire County Council,21-Jun-19,51300995151,"-1,317.11",ALDERTON HOUSE,CARE ESTABLISHMENT,PAYC3_446_1046042,E7145,LD - East Locality,LD - East Cambs - Care,Residential Care
Cambridgeshire County Council,21-Jun-19,51300982095,"-1,317.11",ALDERTON HOUSE,CARE ESTABLISHMENT,PAYC3_445_1028005,E7145,LD - East Locality,LD - East Cambs - Care,Residential Care
Cambridgeshire County Council,21-Jun-19,51300995225,"-1,317.11",ALDERTON HOUSE,CARE ESTABLISHMENT,PAYC3_446_1045956,E7145,LD - East Locality,LD - East Cambs - Care,Residential Care
Cambridgeshire County Council,21-Jun-19,51300973981,"-1,317.11",ALDERTON HOUSE,CARE ESTABLISHMENT,PAYC3_444_1028054,E7145,LD - East Locality,LD - East Cambs - Care,Residential Care
Cambridgeshire County Council,21-Jun-19,51300982091,"-1,317.11",ALDERTON HOUSE,CARE ESTABLISHMENT,PAYC3_445_1028059,E7145,LD - East Locality,LD - East Cambs - Care,Residential Care
Cambridgeshire County Council,21-Jun-19,51300974000,"-1,317.11",ALDERTON HOUSE,CARE ESTABLISHMENT,PAYC3_444_1028128,E7145,LD - East Locality,LD - East Cambs - Care,Residential Care
Cambridgeshire County Council,21-Jun-19,51300974018,"-1,317.11",ALDERTON HOUSE,CARE ESTABLISHMENT,PAYC3_444_1028090,E7145,LD - East Locality,LD - East Cambs - Care,Residential Care
Cambridgeshire County Council,21-Jun-19,51300982119,"-1,317.11",ALDERTON HOUSE,CARE ESTABLISHMENT,PAYC3_445_1028025,E7145,LD - East Locality,LD - East Cambs - Care,Residential Care
Cambridgeshire County Council,21-Jun-19,51300995242,"-1,317.11",ALDERTON HOUSE,CARE ESTABLISHMENT,PAYC3_446_1045964,E7145,LD - East Locality,LD - East Cambs - Care,Residential Care
Cambridgeshire County Council,21-Jun-19,51300982036,"-1,317.11",ALDERTON HOUSE,CARE ESTABLISHMENT,PAYC3_445_1027991,E7145,LD - East Locality,LD - East Cambs - Care,Residential Care
Cambridgeshire County Council,21-Jun-19,51300982093,"-1,317.11",ALDERTON HOUSE,CARE ESTABLISHMENT,PAYC3_445_1027983,E7145,LD - East Locality,LD - East Cambs - Care,Residential Care
Cambridgeshire County Council,21-Jun-19,51300959756,"-1,317.11",ALDERTON HOUSE,CARE ESTABLISHMENT,PAYC3_443_1035300,E7145,LD - East Locality,LD - East Cambs - Care,Residential Care
Cambridgeshire County Council,21-Jun-19,51300973957,"-1,317.11",ALDERTON HOUSE,CARE ESTABLISHMENT,PAYC3_444_1028102,E7145,LD - East Locality,LD - East Cambs - Care,Residential Care
Cambridgeshire County Council,21-Jun-19,51300982060,"-1,317.11",ALDERTON HOUSE,CARE ESTABLISHMENT,PAYC3_445_1028011,E7145,LD - East Locality,LD - East Cambs - Care,Residential Care
Cambridgeshire County Council,21-Jun-19,51300995166,"-1,317.11",ALDERTON HOUSE,CARE ESTABLISHMENT,PAYC3_446_1045962,E7145,LD - East Locality,LD - East Cambs - Care,Residential Care
Cambridgeshire County Council,21-Jun-19,51300995099,"-1,317.11",ALDERTON HOUSE,CARE ESTABLISHMENT,PAYC3_446_1046022,E7145,LD - East Locality,LD - East Cambs - Care,Residential Care
Cambridgeshire County Council,21-Jun-19,51300995094,"-1,317.11",ALDERTON HOUSE,CARE ESTABLISHMENT,PAYC3_446_1045952,E7145,LD - East Locality,LD - East Cambs - Care,Residential Care
Cambridgeshire County Council,21-Jun-19,51300959647,"-1,317.11",ALDERTON HOUSE,CARE ESTABLISHMENT,PAYC3_443_1035274,E7145,LD - East Locality,LD - East Cambs - Care,Residential Care
Cambridgeshire County Council,21-Jun-19,51300973967,"-1,317.11",ALDERTON HOUSE,CARE ESTABLISHMENT,PAYC3_444_1028056,E7145,LD - East Locality,LD - East Cambs - Care,Residential Care
Cambridgeshire County Council,21-Jun-19,51300973997,"-1,317.11",ALDERTON HOUSE,CARE ESTABLISHMENT,PAYC3_444_1028098,E7145,LD - East Locality,LD - East Cambs - Care,Residential Care
Cambridgeshire County Council,21-Jun-19,51300959620,"-1,317.11",ALDERTON HOUSE,CARE ESTABLISHMENT,PAYC3_443_1035288,E7145,LD - East Locality,LD - East Cambs - Care,Residential Care
Cambridgeshire County Council,21-Jun-19,51300974028,"-1,317.11",ALDERTON HOUSE,CARE ESTABLISHMENT,PAYC3_444_1028044,E7145,LD - East Locality,LD - East Cambs - Care,Residential Care
Cambridgeshire County Council,21-Jun-19,51300959644,"-1,317.11",ALDERTON HOUSE,CARE ESTABLISHMENT,PAYC3_443_1035240,E7145,LD - East Locality,LD - East Cambs - Care,Residential Care
Cambridgeshire County Council,21-Jun-19,51300995227,"-1,317.11",ALDERTON HOUSE,CARE ESTABLISHMENT,PAYC3_446_1045990,E7145,LD - East Locality,LD - East Cambs - Care,Residential Care
Cambridgeshire County Council,21-Jun-19,51300995168,"-1,317.11",ALDERTON HOUSE,CARE ESTABLISHMENT,PAYC3_446_1045994,E7145,LD - East Locality,LD - East Cambs - Care,Residential Care
Cambridgeshire County Council,21-Jun-19,51300959587,"-1,317.11",ALDERTON HOUSE,CARE ESTABLISHMENT,PAYC3_443_1035212,E7145,LD - East Locality,LD - East Cambs - Care,Residential Care
Cambridgeshire County Council,21-Jun-19,51300959654,"-1,317.11",ALDERTON HOUSE,CARE ESTABLISHMENT,PAYC3_443_1035222,E7145,LD - East Locality,LD - East Cambs - Care,Residential Care
Cambridgeshire County Council,21-Jun-19,51300959652,"-1,317.11",ALDERTON HOUSE,CARE ESTABLISHMENT,PAYC3_443_1035214,E7145,LD - East Locality,LD - East Cambs - Care,Residential Care
Cambridgeshire County Council,21-Jun-19,51300959657,"-1,317.11",ALDERTON HOUSE,CARE ESTABLISHMENT,PAYC3_443_1035296,E7145,LD - East Locality,LD - East Cambs - Care,Residential Care
Cambridgeshire County Council,21-Jun-19,51300959705,"-1,317.11",ALDERTON HOUSE,CARE ESTABLISHMENT,PAYC3_443_1035236,E7145,LD - East Locality,LD - East Cambs - Care,Residential Care
Cambridgeshire County Council,21-Jun-19,51300995102,"-1,317.11",ALDERTON HOUSE,CARE ESTABLISHMENT,PAYC3_446_1046000,E7145,LD - East Locality,LD - East Cambs - Care,Residential Care
Cambridgeshire County Council,21-Jun-19,51300959556,"-1,317.11",ALDERTON HOUSE,CARE ESTABLISHMENT,PAYC3_443_1035246,E7145,LD - East Locality,LD - East Cambs - Care,Residential Care
Cambridgeshire County Council,21-Jun-19,51300974059,"-1,317.11",ALDERTON HOUSE,CARE ESTABLISHMENT,PAYC3_444_1028052,E7145,LD - East Locality,LD - East Cambs - Care,Residential Care
Cambridgeshire County Council,21-Jun-19,51300995221,"-1,317.11",ALDERTON HOUSE,CARE ESTABLISHMENT,PAYC3_446_1046048,E7145,LD - East Locality,LD - East Cambs - Care,Residential Care
Cambridgeshire County Council,21-Jun-19,51300973994,"-1,317.11",ALDERTON HOUSE,CARE ESTABLISHMENT,PAYC3_444_1028048,E7145,LD - East Locality,LD - East Cambs - Care,Residential Care
Cambridgeshire County Council,21-Jun-19,51300959717,"-1,317.11",ALDERTON HOUSE,CARE ESTABLISHMENT,PAYC3_443_1035290,E7145,LD - East Locality,LD - East Cambs - Care,Residential Care
Cambridgeshire County Council,21-Jun-19,51300995130,"-1,317.11",ALDERTON HOUSE,CARE ESTABLISHMENT,PAYC3_446_1046008,E7145,LD - East Locality,LD - East Cambs - Care,Residential Care
Cambridgeshire County Council,21-Jun-19,51300959663,"-1,317.11",ALDERTON HOUSE,CARE ESTABLISHMENT,PAYC3_443_1035278,E7145,LD - East Locality,LD - East Cambs - Care,Residential Care
Cambridgeshire County Council,21-Jun-19,51300973999,"-1,317.11",ALDERTON HOUSE,CARE ESTABLISHMENT,PAYC3_444_1028112,E7145,LD - East Locality,LD - East Cambs - Care,Residential Care
Cambridgeshire County Council,21-Jun-19,51300995155,"-1,317.11",ALDERTON HOUSE,CARE ESTABLISHMENT,PAYC3_446_1045950,E7145,LD - East Locality,LD - East Cambs - Care,Residential Care
Cambridgeshire County Council,21-Jun-19,51300959684,"-1,317.11",ALDERTON HOUSE,CARE ESTABLISHMENT,PAYC3_443_1035272,E7145,LD - East Locality,LD - East Cambs - Care,Residential Care
Cambridgeshire County Council,21-Jun-19,51300974004,"-1,317.11",ALDERTON HOUSE,CARE ESTABLISHMENT,PAYC3_444_1028068,E7145,LD - East Locality,LD - East Cambs - Care,Residential Care
Cambridgeshire County Council,21-Jun-19,51300982035,"-1,317.11",ALDERTON HOUSE,CARE ESTABLISHMENT,PAYC3_445_1027981,E7145,LD - East Locality,LD - East Cambs - Care,Residential Care
Cambridgeshire County Council,21-Jun-19,51300982107,"-1,317.11",ALDERTON HOUSE,CARE ESTABLISHMENT,PAYC3_445_1028029,E7145,LD - East Locality,LD - East Cambs - Care,Residential Care
Cambridgeshire County Council,21-Jun-19,51300982131,"-1,317.11",ALDERTON HOUSE,CARE ESTABLISHMENT,PAYC3_445_1028021,E7145,LD - East Locality,LD - East Cambs - Care,Residential Care
Cambridgeshire County Council,21-Jun-19,51300995159,"-1,317.11",ALDERTON HOUSE,CARE ESTABLISHMENT,PAYC3_446_1046014,E7145,LD - East Locality,LD - East Cambs - Care,Residential Care
Cambridgeshire County Council,21-Jun-19,51300973964,"-1,317.11",ALDERTON HOUSE,CARE ESTABLISHMENT,PAYC3_444_1028076,E7145,LD - East Locality,LD - East Cambs - Care,Residential Care
Cambridgeshire County Council,21-Jun-19,51300974043,"-1,317.11",ALDERTON HOUSE,CARE ESTABLISHMENT,PAYC3_444_1028114,E7145,LD - East Locality,LD - East Cambs - Care,Residential Care
Cambridgeshire County Council,21-Jun-19,51300973995,"-1,317.11",ALDERTON HOUSE,CARE ESTABLISHMENT,PAYC3_444_1028072,E7145,LD - East Locality,LD - East Cambs - Care,Residential Care
Cambridgeshire County Council,21-Jun-19,51300973996,"-1,317.11",ALDERTON HOUSE,CARE ESTABLISHMENT,PAYC3_444_1028078,E7145,LD - East Locality,LD - East Cambs - Care,Residential Care
Cambridgeshire County Council,21-Jun-19,51300982022,"-1,317.11",ALDERTON HOUSE,CARE ESTABLISHMENT,PAYC3_445_1028053,E7145,LD - East Locality,LD - East Cambs - Care,Residential Care
Cambridgeshire County Council,21-Jun-19,51300995211,"-1,317.11",ALDERTON HOUSE,CARE ESTABLISHMENT,PAYC3_446_1046036,E7145,LD - East Locality,LD - East Cambs - Care,Residential Care
Cambridgeshire County Council,21-Jun-19,51300959714,"-1,317.11",ALDERTON HOUSE,CARE ESTABLISHMENT,PAYC3_443_1035242,E7145,LD - East Locality,LD - East Cambs - Care,Residential Care
Cambridgeshire County Council,21-Jun-19,51300973958,"-1,317.11",ALDERTON HOUSE,CARE ESTABLISHMENT,PAYC3_444_1028120,E7145,LD - East Locality,LD - East Cambs - Care,Residential Care
Cambridgeshire County Council,21-Jun-19,51300982024,"-1,317.11",ALDERTON HOUSE,CARE ESTABLISHMENT,PAYC3_445_1027955,E7145,LD - East Locality,LD - East Cambs - Care,Residential Care
Cambridgeshire County Council,21-Jun-19,51300995236,"-1,317.11",ALDERTON HOUSE,CARE ESTABLISHMENT,PAYC3_446_1045948,E7145,LD - East Locality,LD - East Cambs - Care,Residential Care
Cambridgeshire County Council,21-Jun-19,51300982065,"-1,317.11",ALDERTON HOUSE,CARE ESTABLISHMENT,PAYC3_445_1028015,E7145,LD - East Locality,LD - East Cambs - Care,Residential Care
Cambridgeshire County Council,21-Jun-19,51300995146,"-1,317.11",ALDERTON HOUSE,CARE ESTABLISHMENT,PAYC3_446_1045974,E7145,LD - East Locality,LD - East Cambs - Care,Residential Care
Cambridgeshire County Council,21-Jun-19,51300995189,"-1,317.11",ALDERTON HOUSE,CARE ESTABLISHMENT,PAYC3_446_1045970,E7145,LD - East Locality,LD - East Cambs - Care,Residential Care
Cambridgeshire County Council,21-Jun-19,51300995210,"-1,317.11",ALDERTON HOUSE,CARE ESTABLISHMENT,PAYC3_446_1046012,E7145,LD - East Locality,LD - East Cambs - Care,Residential Care
Cambridgeshire County Council,21-Jun-19,51300959679,"-1,317.11",ALDERTON HOUSE,CARE ESTABLISHMENT,PAYC3_443_1035244,E7145,LD - East Locality,LD - East Cambs - Care,Residential Care
Cambridgeshire County Council,21-Jun-19,51300973955,"-1,317.11",ALDERTON HOUSE,CARE ESTABLISHMENT,PAYC3_444_1028074,E7145,LD - East Locality,LD - East Cambs - Care,Residential Care
Cambridgeshire County Council,21-Jun-19,51300959755,"-1,317.11",ALDERTON HOUSE,CARE ESTABLISHMENT,PAYC3_443_1035298,E7145,LD - East Locality,LD - East Cambs - Care,Residential Care
Cambridgeshire County Council,21-Jun-19,51300974034,"-1,317.11",ALDERTON HOUSE,CARE ESTABLISHMENT,PAYC3_444_1028096,E7145,LD - East Locality,LD - East Cambs - Care,Residential Care
Cambridgeshire County Council,21-Jun-19,51300995126,"-1,317.11",ALDERTON HOUSE,CARE ESTABLISHMENT,PAYC3_446_1046044,E7145,LD - East Locality,LD - East Cambs - Care,Residential Care
Cambridgeshire County Council,21-Jun-19,51300959713,"-1,317.11",ALDERTON HOUSE,CARE ESTABLISHMENT,PAYC3_443_1035224,E7145,LD - East Locality,LD - East Cambs - Care,Residential Care
Cambridgeshire County Council,21-Jun-19,51300974063,"-1,317.11",ALDERTON HOUSE,CARE ESTABLISHMENT,PAYC3_444_1028050,E7145,LD - East Locality,LD - East Cambs - Care,Residential Care
Cambridgeshire County Council,21-Jun-19,51300974036,"-1,317.11",ALDERTON HOUSE,CARE ESTABLISHMENT,PAYC3_444_1028108,E7145,LD - East Locality,LD - East Cambs - Care,Residential Care
Cambridgeshire County Council,21-Jun-19,51300974057,"-1,317.11",ALDERTON HOUSE,CARE ESTABLISHMENT,PAYC3_444_1028116,E7145,LD - East Locality,LD - East Cambs - Care,Residential Care
Cambridgeshire County Council,21-Jun-19,51300973972,"-1,317.11",ALDERTON HOUSE,CARE ESTABLISHMENT,PAYC3_444_1028106,E7145,LD - East Locality,LD - East Cambs - Care,Residential Care
Cambridgeshire County Council,21-Jun-19,51300959546,"-1,317.11",ALDERTON HOUSE,CARE ESTABLISHMENT,PAYC3_443_1035250,E7145,LD - East Locality,LD - East Cambs - Care,Residential Care
Cambridgeshire County Council,21-Jun-19,51300959753,"-1,317.11",ALDERTON HOUSE,CARE ESTABLISHMENT,PAYC3_443_1035292,E7145,LD - East Locality,LD - East Cambs - Care,Residential Care
Cambridgeshire County Council,21-Jun-19,51300982099,"-1,317.11",ALDERTON HOUSE,CARE ESTABLISHMENT,PAYC3_445_1027963,E7145,LD - East Locality,LD - East Cambs - Care,Residential Care
Cambridgeshire County Council,21-Jun-19,51300982061,"-1,317.11",ALDERTON HOUSE,CARE ESTABLISHMENT,PAYC3_445_1028019,E7145,LD - East Locality,LD - East Cambs - Care,Residential Care
Cambridgeshire County Council,21-Jun-19,51300959740,"-1,317.11",ALDERTON HOUSE,CARE ESTABLISHMENT,PAYC3_443_1035270,E7145,LD - East Locality,LD - East Cambs - Care,Residential Care
Cambridgeshire County Council,21-Jun-19,51300959549,"-1,317.11",ALDERTON HOUSE,CARE ESTABLISHMENT,PAYC3_443_1035307,E7145,LD - East Locality,LD - East Cambs - Care,Residential Care
Cambridgeshire County Council,21-Jun-19,51300959588,"-1,317.11",ALDERTON HOUSE,CARE ESTABLISHMENT,PAYC3_443_1035220,E7145,LD - East Locality,LD - East Cambs - Care,Residential Care
Cambridgeshire County Council,21-Jun-19,51300959751,"-1,317.11",ALDERTON HOUSE,CARE ESTABLISHMENT,PAYC3_443_1035230,E7145,LD - East Locality,LD - East Cambs - Care,Residential Care
Cambridgeshire County Council,21-Jun-19,51300982054,"-1,317.11",ALDERTON HOUSE,CARE ESTABLISHMENT,PAYC3_445_1027959,E7145,LD - East Locality,LD - East Cambs - Care,Residential Care
Cambridgeshire County Council,21-Jun-19,51300995115,"-1,317.11",ALDERTON HOUSE,CARE ESTABLISHMENT,PAYC3_446_1045988,E7145,LD - East Locality,LD - East Cambs - Care,Residential Care
Cambridgeshire County Council,21-Jun-19,51300982037,"-1,317.11",ALDERTON HOUSE,CARE ESTABLISHMENT,PAYC3_445_1028031,E7145,LD - East Locality,LD - East Cambs - Care,Residential Care
Cambridgeshire County Council,21-Jun-19,51300982118,"-1,317.11",ALDERTON HOUSE,CARE ESTABLISHMENT,PAYC3_445_1028023,E7145,LD - East Locality,LD - East Cambs - Care,Residential Care
Cambridgeshire County Council,21-Jun-19,51300982046,"-1,317.11",ALDERTON HOUSE,CARE ESTABLISHMENT,PAYC3_445_1028017,E7145,LD - East Locality,LD - East Cambs - Care,Residential Care
Cambridgeshire County Council,21-Jun-19,51300959643,"-1,317.11",ALDERTON HOUSE,CARE ESTABLISHMENT,PAYC3_443_1035302,E7145,LD - East Locality,LD - East Cambs - Care,Residential Care
Cambridgeshire County Council,21-Jun-19,51300982051,"-1,317.11",ALDERTON HOUSE,CARE ESTABLISHMENT,PAYC3_445_1027975,E7145,LD - East Locality,LD - East Cambs - Special Needs,Residential Care
Cambridgeshire County Council,21-Jun-19,51300995249,"-1,317.11",ALDERTON HOUSE,CARE ESTABLISHMENT,PAYC3_446_1045980,E7145,LD - East Locality,LD - East Cambs - Special Needs,Residential Care
Cambridgeshire County Council,21-Jun-19,51300982043,"-1,317.11",ALDERTON HOUSE,CARE ESTABLISHMENT,PAYC3_445_1027997,E7145,LD - East Locality,LD - East Cambs - Special Needs,Residential Care
Cambridgeshire County Council,21-Jun-19,51300982071,"-1,317.11",ALDERTON HOUSE,CARE ESTABLISHMENT,PAYC3_445_1028037,E7145,LD - East Locality,LD - East Cambs - Special Needs,Residential Care
Cambridgeshire County Council,21-Jun-19,51300974005,"-1,317.11",ALDERTON HOUSE,CARE ESTABLISHMENT,PAYC3_444_1028070,E7145,LD - East Locality,LD - East Cambs - Special Needs,Residential Care
Cambridgeshire County Council,21-Jun-19,51300995131,"-1,317.11",ALDERTON HOUSE,CARE ESTABLISHMENT,PAYC3_446_1046016,E7145,LD - East Locality,LD - East Cambs - Special Needs,Residential Care
Cambridgeshire County Council,21-Jun-19,51300974060,"-1,317.11",ALDERTON HOUSE,CARE ESTABLISHMENT,PAYC3_444_1028110,E7145,LD - East Locality,LD - East Cambs - Special Needs,Residential Care
Cambridgeshire County Council,21-Jun-19,51300995156,"-1,317.11",ALDERTON HOUSE,CARE ESTABLISHMENT,PAYC3_446_1045968,E7145,LD - East Locality,LD - East Cambs - Special Needs,Residential Care
Cambridgeshire County Council,21-Jun-19,51300959605,"-1,317.11",ALDERTON HOUSE,CARE ESTABLISHMENT,PAYC3_443_1035208,E7145,LD - East Locality,LD - East Cambs - Special Needs,Residential Care
Cambridgeshire County Council,21-Jun-19,51300959653,"-1,317.11",ALDERTON HOUSE,CARE ESTABLISHMENT,PAYC3_443_1035216,E7145,LD - East Locality,LD - East Cambs - Special Needs,Residential Care
Cambridgeshire County Council,21-Jun-19,51300959570,"-1,317.11",ALDERTON HOUSE,CARE ESTABLISHMENT,PAYC3_443_1035210,E7145,LD - East Locality,LD - East Cambs - Special Needs,Residential Care
Cambridgeshire County Council,21-Jun-19,51300959572,"-1,317.11",ALDERTON HOUSE,CARE ESTABLISHMENT,PAYC3_443_1035228,E7145,LD - East Locality,LD - East Cambs - Special Needs,Residential Care
Cambridgeshire County Council,21-Jun-19,51300959655,"-1,317.11",ALDERTON HOUSE,CARE ESTABLISHMENT,PAYC3_443_1035232,E7145,LD - East Locality,LD - East Cambs - Special Needs,Residential Care
Cambridgeshire County Council,21-Jun-19,51300959616,"-1,317.11",ALDERTON HOUSE,CARE ESTABLISHMENT,PAYC3_443_1035234,E7145,LD - East Locality,LD - East Cambs - Special Needs,Residential Care
Cambridgeshire County Council,21-Jun-19,51300959698,"-1,317.11",ALDERTON HOUSE,CARE ESTABLISHMENT,PAYC3_443_1035282,E7145,LD - East Locality,LD - East Cambs - Special Needs,Residential Care
Cambridgeshire County Council,21-Jun-19,51300974012,"-1,317.11",ALDERTON HOUSE,CARE ESTABLISHMENT,PAYC3_444_1028094,E7145,LD - East Locality,LD - East Cambs - Special Needs,Residential Care
Cambridgeshire County Council,21-Jun-19,51300982074,"-1,317.11",ALDERTON HOUSE,CARE ESTABLISHMENT,PAYC3_445_1027971,E7145,LD - East Locality,LD - East Cambs - Special Needs,Residential Care
Cambridgeshire County Council,21-Jun-19,51300973973,"-1,317.11",ALDERTON HOUSE,CARE ESTABLISHMENT,PAYC3_444_1028122,E7145,LD - East Locality,LD - East Cambs - Special Needs,Residential Care
Cambridgeshire County Council,21-Jun-19,51300982029,"-1,317.11",ALDERTON HOUSE,CARE ESTABLISHMENT,PAYC3_445_1028041,E7145,LD - East Locality,LD - East Cambs - Special Needs,Residential Care
Cambridgeshire County Council,21-Jun-19,51300982113,"-1,317.11",ALDERTON HOUSE,CARE ESTABLISHMENT,PAYC3_445_1028027,E7145,LD - East Locality,LD - East Cambs - Special Needs,Residential Care
Cambridgeshire County Council,21-Jun-19,51300995129,"-1,317.11",ALDERTON HOUSE,CARE ESTABLISHMENT,PAYC3_446_1045954,E7145,LD - East Locality,LD - East Cambs - Special Needs,Residential Care
Cambridgeshire County Council,21-Jun-19,51300995138,"-1,317.11",ALDERTON HOUSE,CARE ESTABLISHMENT,PAYC3_446_1046002,E7145,LD - East Locality,LD - East Cambs - Special Needs,Residential Care
Cambridgeshire County Council,21-Jun-19,51300995204,"-1,317.11",ALDERTON HOUSE,CARE ESTABLISHMENT,PAYC3_446_1045960,E7145,LD - East Locality,LD - East Cambs - Special Needs,Residential Care
Cambridgeshire County Council,21-Jun-19,51300995226,"-1,317.11",ALDERTON HOUSE,CARE ESTABLISHMENT,PAYC3_446_1045984,E7145,LD - East Locality,LD - East Cambs - Special Needs,Residential Care
Cambridgeshire County Council,21-Jun-19,51300995158,"-1,317.11",ALDERTON HOUSE,CARE ESTABLISHMENT,PAYC3_446_1046006,E7145,LD - East Locality,LD - East Cambs - Special Needs,Residential Care
Cambridgeshire County Council,21-Jun-19,51300995123,"-1,317.11",ALDERTON HOUSE,CARE ESTABLISHMENT,PAYC3_446_1046032,E7145,LD - East Locality,LD - East Cambs - Special Needs,Residential Care
Cambridgeshire County Council,21-Jun-19,51300973946,"-1,317.11",ALDERTON HOUSE,CARE ESTABLISHMENT,PAYC3_444_1028042,E7145,LD - East Locality,LD - East Cambs - Special Needs,Residential Care
Cambridgeshire County Council,21-Jun-19,51300982110,"-1,317.11",ALDERTON HOUSE,CARE ESTABLISHMENT,PAYC3_445_1027969,E7145,LD - East Locality,LD - East Cambs - Special Needs,Residential Care
Cambridgeshire County Council,21-Jun-19,51300982088,"-1,317.11",ALDERTON HOUSE,CARE ESTABLISHMENT,PAYC3_445_1028035,E7145,LD - East Locality,LD - East Cambs - Special Needs,Residential Care
Cambridgeshire County Council,21-Jun-19,51300974051,"-1,317.11",ALDERTON HOUSE,CARE ESTABLISHMENT,PAYC3_444_1028030,E7145,LD - East Locality,LD - East Cambs - Special Needs,Residential Care
Cambridgeshire County Council,21-Jun-19,51300973974,"-1,317.11",ALDERTON HOUSE,CARE ESTABLISHMENT,PAYC3_444_1028024,E7145,LD - East Locality,LD - East Cambs - Special Needs,Residential Care
Cambridgeshire County Council,21-Jun-19,51300973962,"-1,317.11",ALDERTON HOUSE,CARE ESTABLISHMENT,PAYC3_444_1028040,E7145,LD - East Locality,LD - East Cambs - Special Needs,Residential Care
Cambridgeshire County Council,21-Jun-19,51300959607,"-1,317.11",ALDERTON HOUSE,CARE ESTABLISHMENT,PAYC3_443_1035264,E7145,LD - East Locality,LD - East Cambs - Special Needs,Residential Care
Cambridgeshire County Council,21-Jun-19,51300959680,"-1,317.11",ALDERTON HOUSE,CARE ESTABLISHMENT,PAYC3_443_1035260,E7145,LD - East Locality,LD - East Cambs - Special Needs,Residential Care
Cambridgeshire County Council,21-Jun-19,51300959730,"-1,317.11",ALDERTON HOUSE,CARE ESTABLISHMENT,PAYC3_443_1035238,E7145,LD - East Locality,LD - East Cambs - Special Needs,Residential Care
Cambridgeshire County Council,21-Jun-19,51300973956,"-1,317.11",ALDERTON HOUSE,CARE ESTABLISHMENT,PAYC3_444_1028082,E7145,LD - East Locality,LD - East Cambs - Special Needs,Residential Care
Cambridgeshire County Council,21-Jun-19,51300995193,"-1,317.11",ALDERTON HOUSE,CARE ESTABLISHMENT,PAYC3_446_1046030,E7145,LD - East Locality,LD - East Cambs - Special Needs,Residential Care
Cambridgeshire County Council,21-Jun-19,51300973975,"-1,317.11",ALDERTON HOUSE,CARE ESTABLISHMENT,PAYC3_444_1028028,E7145,LD - East Locality,LD - East Cambs - Special Needs,Residential Care
Cambridgeshire County Council,21-Jun-19,51300973987,"-1,317.11",ALDERTON HOUSE,CARE ESTABLISHMENT,PAYC3_444_1028026,E7145,LD - East Locality,LD - East Cambs - Special Needs,Residential Care
Cambridgeshire County Council,21-Jun-19,51300959646,"-1,317.11",ALDERTON HOUSE,CARE ESTABLISHMENT,PAYC3_443_1035258,E7145,LD - East Locality,LD - East Cambs - Special Needs,Residential Care
Cambridgeshire County Council,21-Jun-19,51300982103,"-1,317.11",ALDERTON HOUSE,CARE ESTABLISHMENT,PAYC3_445_1027999,E7145,LD - East Locality,LD - East Cambs - Special Needs,Residential Care
Cambridgeshire County Council,21-Jun-19,51300995206,"-1,317.11",ALDERTON HOUSE,CARE ESTABLISHMENT,PAYC3_446_1045986,E7145,LD - East Locality,LD - East Cambs - Special Needs,Residential Care
Cambridgeshire County Council,21-Jun-19,51300995228,"-1,317.11",ALDERTON HOUSE,CARE ESTABLISHMENT,PAYC3_446_1045996,E7145,LD - East Locality,LD - East Cambs - Special Needs,Residential Care
Cambridgeshire County Council,21-Jun-19,51300982102,"-1,317.11",ALDERTON HOUSE,CARE ESTABLISHMENT,PAYC3_445_1027989,E7145,LD - East Locality,LD - East Cambs - Special Needs,Residential Care
Cambridgeshire County Council,21-Jun-19,51300982142,"-1,317.11",ALDERTON HOUSE,CARE ESTABLISHMENT,PAYC3_445_1028047,E7145,LD - East Locality,LD - East Cambs - Special Needs,Residential Care
Cambridgeshire County Council,21-Jun-19,51300995254,"-1,317.11",ALDERTON HOUSE,CARE ESTABLISHMENT,PAYC3_446_1045966,E7145,LD - East Locality,LD - East Cambs - Special Needs,Residential Care
Cambridgeshire County Council,21-Jun-19,51300995196,"-1,317.11",ALDERTON HOUSE,CARE ESTABLISHMENT,PAYC3_446_1045946,E7145,LD - East Locality,LD - East Cambs - Special Needs,Residential Care
Cambridgeshire County Council,21-Jun-19,51300982039,"-1,317.11",ALDERTON HOUSE,CARE ESTABLISHMENT,PAYC3_445_1028051,E7145,LD - East Locality,LD - East Cambs - Special Needs,Residential Care
Cambridgeshire County Council,21-Jun-19,51300973954,"-1,317.11",ALDERTON HOUSE,CARE ESTABLISHMENT,PAYC3_444_1028032,E7145,LD - East Locality,LD - East Cambs - Special Needs,Residential Care
Cambridgeshire County Council,21-Jun-19,51300959578,"-1,317.11",ALDERTON HOUSE,CARE ESTABLISHMENT,PAYC3_443_1035226,E7145,LD - East Locality,LD - East Cambs - Special Needs,Residential Care
Cambridgeshire County Council,21-Jun-19,51300982057,"-1,317.11",ALDERTON HOUSE,CARE ESTABLISHMENT,PAYC3_445_1027973,E7145,LD - East Locality,LD - East Cambs - Special Needs,Residential Care
Cambridgeshire County Council,21-Jun-19,51300973942,"-1,317.11",ALDERTON HOUSE,CARE ESTABLISHMENT,PAYC3_444_1028126,E7145,LD - East Locality,LD - East Cambs - Special Needs,Residential Care
Cambridgeshire County Council,21-Jun-19,51300995190,"-1,317.11",ALDERTON HOUSE,CARE ESTABLISHMENT,PAYC3_446_1045978,E7145,LD - East Locality,LD - East Cambs - Special Needs,Residential Care
Cambridgeshire County Council,21-Jun-19,51300995250,"-1,317.11",ALDERTON HOUSE,CARE ESTABLISHMENT,PAYC3_446_1045992,E7145,LD - East Locality,LD - East Cambs - Special Needs,Residential Care
Cambridgeshire County Council,21-Jun-19,51300995230,"-1,317.11",ALDERTON HOUSE,CARE ESTABLISHMENT,PAYC3_446_1046004,E7145,LD - East Locality,LD - East Cambs - Special Needs,Residential Care
Cambridgeshire County Council,21-Jun-19,51300995231,"-1,317.11",ALDERTON HOUSE,CARE ESTABLISHMENT,PAYC3_446_1046038,E7145,LD - East Locality,LD - East Cambs - Special Needs,Residential Care
Cambridgeshire County Council,21-Jun-19,51300959747,"-1,317.11",ALDERTON HOUSE,CARE ESTABLISHMENT,PAYC3_443_1035218,E7145,LD - East Locality,LD - East Cambs - Special Needs,Residential Care
Cambridgeshire County Council,21-Jun-19,51300982139,"-1,317.11",ALDERTON HOUSE,CARE ESTABLISHMENT,PAYC3_445_1027967,E7145,LD - East Locality,LD - East Cambs - Special Needs,Residential Care
Cambridgeshire County Council,21-Jun-19,51300973963,"-1,317.11",ALDERTON HOUSE,CARE ESTABLISHMENT,PAYC3_444_1028062,E7145,LD - East Locality,LD - East Cambs - Special Needs,Residential Care
Cambridgeshire County Council,21-Jun-19,51300974017,"-1,317.11",ALDERTON HOUSE,CARE ESTABLISHMENT,PAYC3_444_1028066,E7145,LD - East Locality,LD - East Cambs - Special Needs,Residential Care
Cambridgeshire County Council,21-Jun-19,51300959697,"-1,317.11",ALDERTON HOUSE,CARE ESTABLISHMENT,PAYC3_443_1035256,E7145,LD - East Locality,LD - East Cambs - Special Needs,Residential Care
Cambridgeshire County Council,21-Jun-19,51300974046,"-1,317.11",ALDERTON HOUSE,CARE ESTABLISHMENT,PAYC3_444_1028080,E7145,LD - East Locality,LD - East Cambs - Special Needs,Residential Care
Cambridgeshire County Council,21-Jun-19,51300995208,"-1,317.11",ALDERTON HOUSE,CARE ESTABLISHMENT,PAYC3_446_1046034,E7145,LD - East Locality,LD - East Cambs - Special Needs,Residential Care
Cambridgeshire County Council,21-Jun-19,51300959754,"-1,317.11",ALDERTON HOUSE,CARE ESTABLISHMENT,PAYC3_443_1035294,E7145,LD - East Locality,LD - East Cambs - Special Needs,Residential Care
Cambridgeshire County Council,21-Jun-19,51300982059,"-1,317.11",ALDERTON HOUSE,CARE ESTABLISHMENT,PAYC3_445_1028009,E7145,LD - East Locality,LD - East Cambs - Special Needs,Residential Care
Cambridgeshire County Council,21-Jun-19,51300982076,"-1,317.11",ALDERTON HOUSE,CARE ESTABLISHMENT,PAYC3_445_1028057,E7145,LD - East Locality,LD - East Cambs - Special Needs,Residential Care
Cambridgeshire County Council,21-Jun-19,51300995255,"-1,317.11",ALDERTON HOUSE,CARE ESTABLISHMENT,PAYC3_446_1045982,E7145,LD - East Locality,LD - East Cambs - Special Needs,Residential Care
Cambridgeshire County Council,21-Jun-19,51300982032,"-1,317.11",ALDERTON HOUSE,CARE ESTABLISHMENT,PAYC3_445_1028001,E7145,LD - East Locality,LD - East Cambs - Special Needs,Residential Care
Cambridgeshire County Council,21-Jun-19,51300982049,"-1,317.11",ALDERTON HOUSE,CARE ESTABLISHMENT,PAYC3_445_1028043,E7145,LD - East Locality,LD - East Cambs - Special Needs,Residential Care
Cambridgeshire County Council,21-Jun-19,51300982104,"-1,317.11",ALDERTON HOUSE,CARE ESTABLISHMENT,PAYC3_445_1028013,E7145,LD - East Locality,LD - East Cambs - Special Needs,Residential Care
Cambridgeshire County Council,21-Jun-19,51300982130,"-1,317.11",ALDERTON HOUSE,CARE ESTABLISHMENT,PAYC3_445_1027977,E7145,LD - East Locality,LD - East Cambs - Special Needs,Residential Care
Cambridgeshire County Council,21-Jun-19,51300995214,"-1,317.11",ALDERTON HOUSE,CARE ESTABLISHMENT,PAYC3_446_1045972,E7145,LD - East Locality,LD - East Cambs - Special Needs,Residential Care
Cambridgeshire County Council,21-Jun-19,51300982098,"-1,317.11",ALDERTON HOUSE,CARE ESTABLISHMENT,PAYC3_445_1028049,E7145,LD - East Locality,LD - East Cambs - Special Needs,Residential Care
Cambridgeshire County Council,21-Jun-19,51300982140,"-1,317.11",ALDERTON HOUSE,CARE ESTABLISHMENT,PAYC3_445_1027987,E7145,LD - East Locality,LD - East Cambs - Special Needs,Residential Care
Cambridgeshire County Council,21-Jun-19,51300982117,"-1,317.11",ALDERTON HOUSE,CARE ESTABLISHMENT,PAYC3_445_1027979,E7145,LD - East Locality,LD - East Cambs - Special Needs,Residential Care
Cambridgeshire County Council,21-Jun-19,51300995136,"-1,317.11",ALDERTON HOUSE,CARE ESTABLISHMENT,PAYC3_446_1045958,E7145,LD - East Locality,LD - East Cambs - Special Needs,Residential Care
Cambridgeshire County Council,21-Jun-19,51300959574,"-1,317.11",ALDERTON HOUSE,CARE ESTABLISHMENT,PAYC3_443_1035286,E7145,LD - East Locality,LD - East Cambs - Special Needs,Residential Care
Cambridgeshire County Council,21-Jun-19,51300959739,"-1,317.11",ALDERTON HOUSE,CARE ESTABLISHMENT,PAYC3_443_1035248,E7145,LD - East Locality,LD - East Cambs - Special Needs,Residential Care
Cambridgeshire County Council,21-Jun-19,51300995184,"-1,317.11",ALDERTON HOUSE,CARE ESTABLISHMENT,PAYC3_446_1046028,E7145,LD - East Locality,LD - East Cambs - Special Needs,Residential Care
Cambridgeshire County Council,21-Jun-19,51300959726,"-1,317.11",ALDERTON HOUSE,CARE ESTABLISHMENT,PAYC3_443_1035206,E7145,LD - East Locality,LD - East Cambs - Special Needs,Residential Care
Cambridgeshire County Council,21-Jun-19,51300959708,"-1,317.11",ALDERTON HOUSE,CARE ESTABLISHMENT,PAYC3_443_1035252,E7145,LD - East Locality,LD - East Cambs - Special Needs,Residential Care
Cambridgeshire County Council,21-Jun-19,51300995139,"-1,317.11",ALDERTON HOUSE,CARE ESTABLISHMENT,PAYC3_446_1046018,E7145,LD - East Locality,LD - East Cambs - Special Needs,Residential Care
Cambridgeshire County Council,21-Jun-19,51300982073,"-1,317.11",ALDERTON HOUSE,CARE ESTABLISHMENT,PAYC3_445_1027953,E7145,LD - East Locality,LD - East Cambs - Special Needs,Residential Care
Cambridgeshire County Council,21-Jun-19,51300982041,"-1,317.11",ALDERTON HOUSE,CARE ESTABLISHMENT,PAYC3_445_1027985,E7145,LD - East Locality,LD - East Cambs - Special Needs,Residential Care
Cambridgeshire County Council,21-Jun-19,51300995207,"-1,317.11",ALDERTON HOUSE,CARE ESTABLISHMENT,PAYC3_446_1046026,E7145,LD - East Locality,LD - East Cambs - Special Needs,Residential Care
Cambridgeshire County Council,21-Jun-19,51300974033,"-1,317.11",ALDERTON HOUSE,CARE ESTABLISHMENT,PAYC3_444_1028084,E7145,LD - East Locality,LD - East Cambs - Special Needs,Residential Care
Cambridgeshire County Council,21-Jun-19,51300995137,"-1,317.11",ALDERTON HOUSE,CARE ESTABLISHMENT,PAYC3_446_1045998,E7145,LD - East Locality,LD - East Cambs - Special Needs,Residential Care
Cambridgeshire County Council,21-Jun-19,51300982141,"-1,317.11",ALDERTON HOUSE,CARE ESTABLISHMENT,PAYC3_445_1028039,E7145,LD - East Locality,LD - East Cambs - Special Needs,Residential Care
Cambridgeshire County Council,21-Jun-19,51300995147,"-1,317.11",ALDERTON HOUSE,CARE ESTABLISHMENT,PAYC3_446_1045976,E7145,LD - East Locality,LD - East Cambs - Special Needs,Residential Care
Cambridgeshire County Council,21-Jun-19,51300959682,"-1,317.11",ALDERTON HOUSE,CARE ESTABLISHMENT,PAYC3_443_1035262,E7145,LD - East Locality,LD - East Cambs - Special Needs,Residential Care
Cambridgeshire County Council,21-Jun-19,51300959642,"-1,317.11",ALDERTON HOUSE,CARE ESTABLISHMENT,PAYC3_443_1035284,E7145,LD - East Locality,LD - East Cambs - Special Needs,Residential Care
Cambridgeshire County Council,21-Jun-19,51300973980,"-1,317.11",ALDERTON HOUSE,CARE ESTABLISHMENT,PAYC3_444_1028034,E7145,LD - East Locality,LD - East Cambs - Special Needs,Residential Care
Cambridgeshire County Council,21-Jun-19,51300973989,"-1,317.11",ALDERTON HOUSE,CARE ESTABLISHMENT,PAYC3_444_1028038,E7145,LD - East Locality,LD - East Cambs - Special Needs,Residential Care
Cambridgeshire County Council,21-Jun-19,51300959586,"-1,317.11",ALDERTON HOUSE,CARE ESTABLISHMENT,PAYC3_443_1035202,E7145,LD - East Locality,LD - East Cambs - Special Needs,Residential Care
Cambridgeshire County Council,21-Jun-19,51300974016,"-1,317.11",ALDERTON HOUSE,CARE ESTABLISHMENT,PAYC3_444_1028060,E7145,LD - East Locality,LD - East Cambs - Special Needs,Residential Care
Cambridgeshire County Council,21-Jun-19,51300974010,"-1,317.11",ALDERTON HOUSE,CARE ESTABLISHMENT,PAYC3_444_1028086,E7145,LD - East Locality,LD - East Cambs - Special Needs,Residential Care
Cambridgeshire County Council,21-Jun-19,51300974041,"-1,317.11",ALDERTON HOUSE,CARE ESTABLISHMENT,PAYC3_444_1028092,E7145,LD - East Locality,LD - East Cambs - Special Needs,Residential Care
Cambridgeshire County Council,21-Jun-19,51300995103,"-1,317.11",ALDERTON HOUSE,CARE ESTABLISHMENT,PAYC3_446_1046010,E7145,LD - East Locality,LD - East Cambs - Special Needs,Residential Care
Cambridgeshire County Council,21-Jun-19,51300959625,"-1,317.11",ALDERTON HOUSE,CARE ESTABLISHMENT,PAYC3_443_1035254,E7145,LD - East Locality,LD - East Cambs - Special Needs,Residential Care
Cambridgeshire County Council,21-Jun-19,51300982040,"-1,317.11",ALDERTON HOUSE,CARE ESTABLISHMENT,PAYC3_445_1027961,E7145,LD - East Locality,LD - East Cambs - Special Needs,Residential Care
Cambridgeshire County Council,21-Jun-19,51300959640,"-1,317.11",ALDERTON HOUSE,CARE ESTABLISHMENT,PAYC3_443_1035268,E7145,LD - East Locality,LD - East Cambs - Special Needs,Residential Care
Cambridgeshire County Council,21-Jun-19,51300973968,"-1,317.11",ALDERTON HOUSE,CARE ESTABLISHMENT,PAYC3_444_1028058,E7145,LD - East Locality,LD - East Cambs - Special Needs,Residential Care
Cambridgeshire County Council,21-Jun-19,51300982087,"-1,317.11",ALDERTON HOUSE,CARE ESTABLISHMENT,PAYC3_445_1028033,E7145,LD - East Locality,LD - East Cambs - Special Needs,Residential Care
Cambridgeshire County Council,21-Jun-19,51300982129,"-1,317.11",ALDERTON HOUSE,CARE ESTABLISHMENT,PAYC3_445_1027957,E7145,LD - East Locality,LD - East Cambs - Special Needs,Residential Care
Cambridgeshire County Council,21-Jun-19,51300973985,"-1,317.11",ALDERTON HOUSE,CARE ESTABLISHMENT,PAYC3_444_1028088,E7145,LD - East Locality,LD - East Cambs - Special Needs,Residential Care
Cambridgeshire County Council,21-Jun-19,51300973945,"-1,317.11",ALDERTON HOUSE,CARE ESTABLISHMENT,PAYC3_444_1028036,E7145,LD - East Locality,LD - East Cambs - Special Needs,Residential Care
Cambridgeshire County Council,21-Jun-19,51300982120,"-1,317.11",ALDERTON HOUSE,CARE ESTABLISHMENT,PAYC3_445_1027993,E7145,LD - East Locality,LD - East Cambs - Special Needs,Residential Care
Cambridgeshire County Council,21-Jun-19,51300982038,"-1,317.11",ALDERTON HOUSE,CARE ESTABLISHMENT,PAYC3_445_1028045,E7145,LD - East Locality,LD - East Cambs - Special Needs,Residential Care
Cambridgeshire County Council,21-Jun-19,51300974015,"-1,317.11",ALDERTON HOUSE,CARE ESTABLISHMENT,PAYC3_444_1028046,E7145,LD - East Locality,LD - East Cambs - Special Needs,Residential Care
Cambridgeshire County Council,14-Jun-19,51300985543,"-1,300.00",DUDLEY LODGE,CARE ESTABLISHMENT,CN-12426,E7125,LAC Placements,Placements - residential homes,Agency Placements - Out of  County
Cambridgeshire County Council,21-Jun-19,51300961929,"-1,292.85",VOYAGE,CARE ESTABLISHMENT,PAYC3_443_1055163,E7145,LD - East Locality,LD - East Cambs - Special Needs,Residential Care
Cambridgeshire County Council,21-Jun-19,51300960691,"-1,266.59",2 CHEVERIL LANE (VOYAGE),CARE ESTABLISHMENT,PAYC3_443_1055186,E7170,LD - Hunts Locality,LD - Huntigndonshire  - Special Needs,Supported Living
Cambridgeshire County Council,21-Jun-19,51300982431,"-1,266.59",2 CHEVERIL LANE (VOYAGE),CARE ESTABLISHMENT,PAYC3_445_1047543,E7170,LD - Hunts Locality,LD - Huntigndonshire  - Special Needs,Supported Living
Cambridgeshire County Council,21-Jun-19,51300974351,"-1,266.59",2 CHEVERIL LANE (VOYAGE),CARE ESTABLISHMENT,PAYC3_444_1047618,E7170,LD - Hunts Locality,LD - Huntigndonshire  - Special Needs,Supported Living
Cambridgeshire County Council,21-Jun-19,51300996621,"-1,266.59",2 CHEVERIL LANE (VOYAGE),CARE ESTABLISHMENT,PAYC3_446_1067059,E7170,LD - Hunts Locality,LD - Huntigndonshire  - Special Needs,Supported Living
Cambridgeshire County Council,21-Jun-19,51300974357,"-1,266.59",2 CHEVERIL LANE (VOYAGE),CARE ESTABLISHMENT,PAYC3_444_1047622,E7170,LD - Hunts Locality,LD - Huntigndonshire  - Special Needs,Supported Living
Cambridgeshire County Council,21-Jun-19,51300960678,"-1,266.59",2 CHEVERIL LANE (VOYAGE),CARE ESTABLISHMENT,PAYC3_443_1055180,E7170,LD - Hunts Locality,LD - Huntigndonshire  - Special Needs,Supported Living
Cambridgeshire County Council,21-Jun-19,51300960692,"-1,266.59",2 CHEVERIL LANE (VOYAGE),CARE ESTABLISHMENT,PAYC3_443_1055174,E7170,LD - Hunts Locality,LD - Huntigndonshire  - Special Needs,Supported Living
Cambridgeshire County Council,21-Jun-19,51300982442,"-1,266.59",2 CHEVERIL LANE (VOYAGE),CARE ESTABLISHMENT,PAYC3_445_1047547,E7170,LD - Hunts Locality,LD - Huntigndonshire  - Special Needs,Supported Living
Cambridgeshire County Council,21-Jun-19,51300996622,"-1,266.59",2 CHEVERIL LANE (VOYAGE),CARE ESTABLISHMENT,PAYC3_446_1067065,E7170,LD - Hunts Locality,LD - Huntigndonshire  - Special Needs,Supported Living
Cambridgeshire County Council,21-Jun-19,51300960684,"-1,266.59",2 CHEVERIL LANE (VOYAGE),CARE ESTABLISHMENT,PAYC3_443_1055184,E7170,LD - Hunts Locality,LD - Huntigndonshire  - Special Needs,Supported Living
Cambridgeshire County Council,21-Jun-19,51300996616,"-1,266.59",2 CHEVERIL LANE (VOYAGE),CARE ESTABLISHMENT,PAYC3_446_1067053,E7170,LD - Hunts Locality,LD - Huntigndonshire  - Special Needs,Supported Living
Cambridgeshire County Council,21-Jun-19,51300996615,"-1,266.59",2 CHEVERIL LANE (VOYAGE),CARE ESTABLISHMENT,PAYC3_446_1067063,E7170,LD - Hunts Locality,LD - Huntigndonshire  - Special Needs,Supported Living
Cambridgeshire County Council,21-Jun-19,51300982434,"-1,266.59",2 CHEVERIL LANE (VOYAGE),CARE ESTABLISHMENT,PAYC3_445_1047533,E7170,LD - Hunts Locality,LD - Huntigndonshire  - Special Needs,Supported Living
Cambridgeshire County Council,21-Jun-19,51300982438,"-1,266.59",2 CHEVERIL LANE (VOYAGE),CARE ESTABLISHMENT,PAYC3_445_1047535,E7170,LD - Hunts Locality,LD - Huntigndonshire  - Special Needs,Supported Living
Cambridgeshire County Council,21-Jun-19,51300996613,"-1,266.59",2 CHEVERIL LANE (VOYAGE),CARE ESTABLISHMENT,PAYC3_446_1067055,E7170,LD - Hunts Locality,LD - Huntigndonshire  - Special Needs,Supported Living
Cambridgeshire County Council,21-Jun-19,51300974339,"-1,266.59",2 CHEVERIL LANE (VOYAGE),CARE ESTABLISHMENT,PAYC3_444_1047612,E7170,LD - Hunts Locality,LD - Huntigndonshire  - Special Needs,Supported Living
Cambridgeshire County Council,21-Jun-19,51300982435,"-1,266.59",2 CHEVERIL LANE (VOYAGE),CARE ESTABLISHMENT,PAYC3_445_1047541,E7170,LD - Hunts Locality,LD - Huntigndonshire  - Special Needs,Supported Living
Cambridgeshire County Council,21-Jun-19,51300996626,"-1,266.59",2 CHEVERIL LANE (VOYAGE),CARE ESTABLISHMENT,PAYC3_446_1067049,E7170,LD - Hunts Locality,LD - Huntigndonshire  - Care,Supported Living
Cambridgeshire County Council,21-Jun-19,51300982430,"-1,266.59",2 CHEVERIL LANE (VOYAGE),CARE ESTABLISHMENT,PAYC3_445_1047539,E7170,LD - Hunts Locality,LD - Huntigndonshire  - Care,Supported Living
Cambridgeshire County Council,21-Jun-19,51300974344,"-1,266.59",2 CHEVERIL LANE (VOYAGE),CARE ESTABLISHMENT,PAYC3_444_1047624,E7170,LD - Hunts Locality,LD - Huntigndonshire  - Care,Supported Living
Cambridgeshire County Council,21-Jun-19,51300982445,"-1,266.59",2 CHEVERIL LANE (VOYAGE),CARE ESTABLISHMENT,PAYC3_445_1047545,E7170,LD - Hunts Locality,LD - Huntigndonshire  - Care,Supported Living
Cambridgeshire County Council,21-Jun-19,51300996627,"-1,266.59",2 CHEVERIL LANE (VOYAGE),CARE ESTABLISHMENT,PAYC3_446_1067051,E7170,LD - Hunts Locality,LD - Huntigndonshire  - Care,Supported Living
Cambridgeshire County Council,21-Jun-19,51300960681,"-1,266.59",2 CHEVERIL LANE (VOYAGE),CARE ESTABLISHMENT,PAYC3_443_1055178,E7170,LD - Hunts Locality,LD - Huntigndonshire  - Care,Supported Living
Cambridgeshire County Council,21-Jun-19,51300974350,"-1,266.59",2 CHEVERIL LANE (VOYAGE),CARE ESTABLISHMENT,PAYC3_444_1047614,E7170,LD - Hunts Locality,LD - Huntigndonshire  - Care,Supported Living
Cambridgeshire County Council,21-Jun-19,51300974352,"-1,266.59",2 CHEVERIL LANE (VOYAGE),CARE ESTABLISHMENT,PAYC3_444_1047626,E7170,LD - Hunts Locality,LD - Huntigndonshire  - Care,Supported Living
Cambridgeshire County Council,21-Jun-19,51300982444,"-1,266.59",2 CHEVERIL LANE (VOYAGE),CARE ESTABLISHMENT,PAYC3_445_1047549,E7170,LD - Hunts Locality,LD - Huntigndonshire  - Care,Supported Living
Cambridgeshire County Council,21-Jun-19,51300960675,"-1,266.59",2 CHEVERIL LANE (VOYAGE),CARE ESTABLISHMENT,PAYC3_443_1055170,E7170,LD - Hunts Locality,LD - Huntigndonshire  - Care,Supported Living
Cambridgeshire County Council,21-Jun-19,51300960676,"-1,266.59",2 CHEVERIL LANE (VOYAGE),CARE ESTABLISHMENT,PAYC3_443_1055182,E7170,LD - Hunts Locality,LD - Huntigndonshire  - Care,Supported Living
Cambridgeshire County Council,21-Jun-19,51300974358,"-1,266.59",2 CHEVERIL LANE (VOYAGE),CARE ESTABLISHMENT,PAYC3_444_1047628,E7170,LD - Hunts Locality,LD - Huntigndonshire  - Care,Supported Living
Cambridgeshire County Council,21-Jun-19,51300960695,"-1,266.59",2 CHEVERIL LANE (VOYAGE),CARE ESTABLISHMENT,PAYC3_443_1055176,E7170,LD - Hunts Locality,LD - Huntigndonshire  - Care,Supported Living
Cambridgeshire County Council,21-Jun-19,51300996617,"-1,266.59",2 CHEVERIL LANE (VOYAGE),CARE ESTABLISHMENT,PAYC3_446_1067057,E7170,LD - Hunts Locality,LD - Huntigndonshire  - Care,Supported Living
Cambridgeshire County Council,21-Jun-19,51300960694,"-1,266.59",2 CHEVERIL LANE (VOYAGE),CARE ESTABLISHMENT,PAYC3_443_1055172,E7170,LD - Hunts Locality,LD - Huntigndonshire  - Care,Supported Living
Cambridgeshire County Council,21-Jun-19,51300982443,"-1,266.59",2 CHEVERIL LANE (VOYAGE),CARE ESTABLISHMENT,PAYC3_445_1047537,E7170,LD - Hunts Locality,LD - Huntigndonshire  - Care,Supported Living
Cambridgeshire County Council,21-Jun-19,51300974345,"-1,266.59",2 CHEVERIL LANE (VOYAGE),CARE ESTABLISHMENT,PAYC3_444_1047616,E7170,LD - Hunts Locality,LD - Huntigndonshire  - Care,Supported Living
Cambridgeshire County Council,21-Jun-19,51300974343,"-1,266.59",2 CHEVERIL LANE (VOYAGE),CARE ESTABLISHMENT,PAYC3_444_1047620,E7170,LD - Hunts Locality,LD - Huntigndonshire  - Care,Supported Living
Cambridgeshire County Council,21-Jun-19,51300996618,"-1,266.59",2 CHEVERIL LANE (VOYAGE),CARE ESTABLISHMENT,PAYC3_446_1067061,E7170,LD - Hunts Locality,LD - Huntigndonshire  - Care,Supported Living
Cambridgeshire County Council,13-Jun-19,51300936338,"-1,233.59",Redacted Personal Data ,SERVICE USER,PAYC3_442_133236,F1100,Physical Disablity,Countywide PD Service - Care,Direct Payments
Cambridgeshire County Council,13-Jun-19,51300936350,"-1,233.59",Redacted Personal Data ,SERVICE USER,PAYC3_442_133240,F1100,Physical Disablity,Countywide PD Service - Care,Direct Payments
Cambridgeshire County Council,13-Jun-19,51300936343,"-1,233.59",Redacted Personal Data ,SERVICE USER,PAYC3_442_133248,F1100,Physical Disablity,Countywide PD Service - Care,Direct Payments
Cambridgeshire County Council,13-Jun-19,51300936307,"-1,233.59",Redacted Personal Data ,SERVICE USER,PAYC3_442_133219,F1100,Physical Disablity,Countywide PD Service - Care,Direct Payments
Cambridgeshire County Council,13-Jun-19,51300936240,"-1,233.59",Redacted Personal Data ,SERVICE USER,PAYC3_442_133227,F1100,Physical Disablity,Countywide PD Service - Care,Direct Payments
Cambridgeshire County Council,13-Jun-19,51300936277,"-1,233.59",Redacted Personal Data ,SERVICE USER,PAYC3_442_133215,F1100,Physical Disablity,Countywide PD Service - Care,Direct Payments
Cambridgeshire County Council,13-Jun-19,51300936345,"-1,233.59",Redacted Personal Data ,SERVICE USER,PAYC3_442_133244,F1100,Physical Disablity,Countywide PD Service - Care,Direct Payments
Cambridgeshire County Council,13-Jun-19,51300936279,"-1,233.59",Redacted Personal Data ,SERVICE USER,PAYC3_442_133232,F1100,Physical Disablity,Countywide PD Service - Care,Direct Payments
Cambridgeshire County Council,13-Jun-19,51300936348,"-1,233.59",Redacted Personal Data ,SERVICE USER,PAYC3_442_133223,F1100,Physical Disablity,Countywide PD Service - Care,Direct Payments
Cambridgeshire County Council,13-Jun-19,51300936272,"-1,233.59",Redacted Personal Data ,SERVICE USER,PAYC3_442_133252,F1100,Physical Disablity,Countywide PD Service - Care,Direct Payments
Cambridgeshire County Council,18-Jun-19,51300988189,"-1,227.79",THE BRAMBLES (SOHAM) LTD,CARE ESTABLISHMENT,32720,E7145,LD - East Locality,LD - East Cambs - Care,Residential Care
Cambridgeshire County Council,18-Jun-19,51300988189,"-1,227.79",THE BRAMBLES (SOHAM) LTD,CARE ESTABLISHMENT,32720,E7145,LD - East Locality,LD - East Cambs - Care,Residential Care
Cambridgeshire County Council,18-Jun-19,51300988189,"-1,227.79",THE BRAMBLES (SOHAM) LTD,CARE ESTABLISHMENT,32720,E7145,LD - East Locality,LD - East Cambs - Care,Residential Care
Cambridgeshire County Council,18-Jun-19,51300988189,"-1,227.79",THE BRAMBLES (SOHAM) LTD,CARE ESTABLISHMENT,32720,E7145,LD - East Locality,LD - East Cambs - Care,Residential Care
Cambridgeshire County Council,18-Jun-19,51300988189,"-1,227.79",THE BRAMBLES (SOHAM) LTD,CARE ESTABLISHMENT,32720,E7145,LD - East Locality,LD - East Cambs - Care,Residential Care
Cambridgeshire County Council,18-Jun-19,51300988189,"-1,227.79",THE BRAMBLES (SOHAM) LTD,CARE ESTABLISHMENT,32720,E7145,LD - East Locality,LD - East Cambs - Care,Residential Care
Cambridgeshire County Council,18-Jun-19,51300988189,"-1,227.79",THE BRAMBLES (SOHAM) LTD,CARE ESTABLISHMENT,32720,E7145,LD - East Locality,LD - East Cambs - Care,Residential Care
Cambridgeshire County Council,18-Jun-19,51300988189,"-1,227.79",THE BRAMBLES (SOHAM) LTD,CARE ESTABLISHMENT,32720,E7145,LD - East Locality,LD - East Cambs - Care,Residential Care
Cambridgeshire County Council,18-Jun-19,51300988189,"-1,227.79",THE BRAMBLES (SOHAM) LTD,CARE ESTABLISHMENT,32720,E7145,LD - East Locality,LD - East Cambs - Care,Residential Care
Cambridgeshire County Council,18-Jun-19,51300988189,"-1,227.79",THE BRAMBLES (SOHAM) LTD,CARE ESTABLISHMENT,32720,E7145,LD - East Locality,LD - East Cambs - Care,Residential Care
Cambridgeshire County Council,18-Jun-19,51300988189,"-1,227.79",THE BRAMBLES (SOHAM) LTD,CARE ESTABLISHMENT,32720,E7145,LD - East Locality,LD - East Cambs - Care,Residential Care
Cambridgeshire County Council,18-Jun-19,51300988189,"-1,227.79",THE BRAMBLES (SOHAM) LTD,CARE ESTABLISHMENT,32720,E7145,LD - East Locality,LD - East Cambs - Care,Residential Care
Cambridgeshire County Council,18-Jun-19,51300988189,"-1,227.79",THE BRAMBLES (SOHAM) LTD,CARE ESTABLISHMENT,32720,E7145,LD - East Locality,LD - East Cambs - Care,Residential Care
Cambridgeshire County Council,18-Jun-19,51300988189,"-1,227.79",THE BRAMBLES (SOHAM) LTD,CARE ESTABLISHMENT,32720,E7145,LD - East Locality,LD - East Cambs - Care,Residential Care
Cambridgeshire County Council,18-Jun-19,51300988189,"-1,227.79",THE BRAMBLES (SOHAM) LTD,CARE ESTABLISHMENT,32720,E7145,LD - East Locality,LD - East Cambs - Care,Residential Care
Cambridgeshire County Council,18-Jun-19,51300988189,"-1,227.79",THE BRAMBLES (SOHAM) LTD,CARE ESTABLISHMENT,32720,E7145,LD - East Locality,LD - East Cambs - Care,Residential Care
Cambridgeshire County Council,18-Jun-19,51300988189,"-1,227.79",THE BRAMBLES (SOHAM) LTD,CARE ESTABLISHMENT,32720,E7145,LD - East Locality,LD - East Cambs - Care,Residential Care
Cambridgeshire County Council,18-Jun-19,51300988189,"-1,227.79",THE BRAMBLES (SOHAM) LTD,CARE ESTABLISHMENT,32720,E7145,LD - East Locality,LD - East Cambs - Care,Residential Care
Cambridgeshire County Council,18-Jun-19,51300988189,"-1,227.79",THE BRAMBLES (SOHAM) LTD,CARE ESTABLISHMENT,32720,E7145,LD - East Locality,LD - East Cambs - Care,Residential Care
Cambridgeshire County Council,18-Jun-19,51300988189,"-1,227.79",THE BRAMBLES (SOHAM) LTD,CARE ESTABLISHMENT,32720,E7145,LD - East Locality,LD - East Cambs - Care,Residential Care
Cambridgeshire County Council,18-Jun-19,51300988189,"-1,227.79",THE BRAMBLES (SOHAM) LTD,CARE ESTABLISHMENT,32720,E7145,LD - East Locality,LD - East Cambs - Care,Residential Care
Cambridgeshire County Council,18-Jun-19,51300988189,"-1,227.79",THE BRAMBLES (SOHAM) LTD,CARE ESTABLISHMENT,32720,E7145,LD - East Locality,LD - East Cambs - Care,Residential Care
Cambridgeshire County Council,18-Jun-19,51300988189,"-1,227.79",THE BRAMBLES (SOHAM) LTD,CARE ESTABLISHMENT,32720,E7145,LD - East Locality,LD - East Cambs - Care,Residential Care
Cambridgeshire County Council,18-Jun-19,51300988189,"-1,227.79",THE BRAMBLES (SOHAM) LTD,CARE ESTABLISHMENT,32720,E7145,LD - East Locality,LD - East Cambs - Care,Residential Care
Cambridgeshire County Council,18-Jun-19,51300988189,"-1,227.79",THE BRAMBLES (SOHAM) LTD,CARE ESTABLISHMENT,32720,E7145,LD - East Locality,LD - East Cambs - Care,Residential Care
Cambridgeshire County Council,18-Jun-19,51300988189,"-1,227.79",THE BRAMBLES (SOHAM) LTD,CARE ESTABLISHMENT,32720,E7145,LD - East Locality,LD - East Cambs - Care,Residential Care
Cambridgeshire County Council,18-Jun-19,51300988189,"-1,227.79",THE BRAMBLES (SOHAM) LTD,CARE ESTABLISHMENT,32720,E7145,LD - East Locality,LD - East Cambs - Care,Residential Care
Cambridgeshire County Council,18-Jun-19,51300988189,"-1,227.79",THE BRAMBLES (SOHAM) LTD,CARE ESTABLISHMENT,32720,E7145,LD - East Locality,LD - East Cambs - Care,Residential Care
Cambridgeshire County Council,18-Jun-19,51300988189,"-1,227.79",THE BRAMBLES (SOHAM) LTD,CARE ESTABLISHMENT,32720,E7145,LD - East Locality,LD - East Cambs - Care,Residential Care
Cambridgeshire County Council,18-Jun-19,51300988189,"-1,227.79",THE BRAMBLES (SOHAM) LTD,CARE ESTABLISHMENT,32720,E7145,LD - East Locality,LD - East Cambs - Care,Residential Care
Cambridgeshire County Council,18-Jun-19,51300988189,"-1,227.79",THE BRAMBLES (SOHAM) LTD,CARE ESTABLISHMENT,32720,E7145,LD - East Locality,LD - East Cambs - Care,Residential Care
Cambridgeshire County Council,18-Jun-19,51300988189,"-1,227.79",THE BRAMBLES (SOHAM) LTD,CARE ESTABLISHMENT,32720,E7145,LD - East Locality,LD - East Cambs - Care,Residential Care
Cambridgeshire County Council,18-Jun-19,51300988189,"-1,227.79",THE BRAMBLES (SOHAM) LTD,CARE ESTABLISHMENT,32720,E7145,LD - East Locality,LD - East Cambs - Care,Residential Care
Cambridgeshire County Council,18-Jun-19,51300988189,"-1,227.79",THE BRAMBLES (SOHAM) LTD,CARE ESTABLISHMENT,32720,E7145,LD - East Locality,LD - East Cambs - Care,Residential Care
Cambridgeshire County Council,18-Jun-19,51300988189,"-1,227.79",THE BRAMBLES (SOHAM) LTD,CARE ESTABLISHMENT,32720,E7145,LD - East Locality,LD - East Cambs - Care,Residential Care
Cambridgeshire County Council,18-Jun-19,51300988189,"-1,227.79",THE BRAMBLES (SOHAM) LTD,CARE ESTABLISHMENT,32720,E7145,LD - East Locality,LD - East Cambs - Care,Residential Care
Cambridgeshire County Council,06-Jun-19,51300963378,"-1,216.15",CONQUEST CARE HOMES PETERBOROUGH,CARE ESTABLISHMENT,PAYC3_443_51195,E7145,LD - Fenland Locality,LD - Fenland  - Special Needs,Residential Care
Cambridgeshire County Council,06-Jun-19,51300970824,"-1,198.04",CARETECH COMMUNITY SERVICES,CARE ESTABLISHMENT,PAYC3_443_949986,E7145,LD - South Locality,LD - South Cambs - Care,Residential Care
Cambridgeshire County Council,06-Jun-19,51300970820,"-1,198.04",CARETECH COMMUNITY SERVICES,CARE ESTABLISHMENT,PAYC3_443_950002,E7145,LD - South Locality,LD - South Cambs - Care,Residential Care
Cambridgeshire County Council,06-Jun-19,51300977500,"-1,198.04",CARETECH COMMUNITY SERVICES,CARE ESTABLISHMENT,PAYC3_444_945175,E7145,LD - South Locality,LD - South Cambs - Care,Residential Care
Cambridgeshire County Council,06-Jun-19,51300970795,"-1,198.04",CARETECH COMMUNITY SERVICES,CARE ESTABLISHMENT,PAYC3_443_950000,E7145,LD - South Locality,LD - South Cambs - Care,Residential Care
Cambridgeshire County Council,06-Jun-19,51300977520,"-1,198.04",CARETECH COMMUNITY SERVICES,CARE ESTABLISHMENT,PAYC3_444_945163,E7145,LD - South Locality,LD - South Cambs - Care,Residential Care
Cambridgeshire County Council,06-Jun-19,51300970792,"-1,198.04",CARETECH COMMUNITY SERVICES,CARE ESTABLISHMENT,PAYC3_443_949990,E7145,LD - South Locality,LD - South Cambs - Care,Residential Care
Cambridgeshire County Council,06-Jun-19,51300970828,"-1,198.04",CARETECH COMMUNITY SERVICES,CARE ESTABLISHMENT,PAYC3_443_949962,E7145,LD - South Locality,LD - South Cambs - Care,Residential Care
Cambridgeshire County Council,06-Jun-19,51300977514,"-1,198.04",CARETECH COMMUNITY SERVICES,CARE ESTABLISHMENT,PAYC3_444_945205,E7145,LD - South Locality,LD - South Cambs - Care,Residential Care
Cambridgeshire County Council,06-Jun-19,51300970800,"-1,198.04",CARETECH COMMUNITY SERVICES,CARE ESTABLISHMENT,PAYC3_443_949982,E7145,LD - South Locality,LD - South Cambs - Care,Residential Care
Cambridgeshire County Council,06-Jun-19,51300970838,"-1,198.04",CARETECH COMMUNITY SERVICES,CARE ESTABLISHMENT,PAYC3_443_949960,E7145,LD - South Locality,LD - South Cambs - Care,Residential Care
Cambridgeshire County Council,06-Jun-19,51300970809,"-1,198.04",CARETECH COMMUNITY SERVICES,CARE ESTABLISHMENT,PAYC3_443_949980,E7145,LD - South Locality,LD - South Cambs - Care,Residential Care
Cambridgeshire County Council,06-Jun-19,51300977502,"-1,198.04",CARETECH COMMUNITY SERVICES,CARE ESTABLISHMENT,PAYC3_444_945197,E7145,LD - South Locality,LD - South Cambs - Care,Residential Care
Cambridgeshire County Council,06-Jun-19,51300970786,"-1,198.04",CARETECH COMMUNITY SERVICES,CARE ESTABLISHMENT,PAYC3_443_949984,E7145,LD - South Locality,LD - South Cambs - Care,Residential Care
Cambridgeshire County Council,06-Jun-19,51300970822,"-1,198.04",CARETECH COMMUNITY SERVICES,CARE ESTABLISHMENT,PAYC3_443_949952,E7145,LD - South Locality,LD - South Cambs - Care,Residential Care
Cambridgeshire County Council,06-Jun-19,51300970803,"-1,198.04",CARETECH COMMUNITY SERVICES,CARE ESTABLISHMENT,PAYC3_443_949954,E7145,LD - South Locality,LD - South Cambs - Care,Residential Care
Cambridgeshire County Council,06-Jun-19,51300977545,"-1,198.04",CARETECH COMMUNITY SERVICES,CARE ESTABLISHMENT,PAYC3_444_945171,E7145,LD - South Locality,LD - South Cambs - Care,Residential Care
Cambridgeshire County Council,06-Jun-19,51300970815,"-1,198.04",CARETECH COMMUNITY SERVICES,CARE ESTABLISHMENT,PAYC3_443_949978,E7145,LD - South Locality,LD - South Cambs - Care,Residential Care
Cambridgeshire County Council,06-Jun-19,51300977548,"-1,198.04",CARETECH COMMUNITY SERVICES,CARE ESTABLISHMENT,PAYC3_444_945193,E7145,LD - South Locality,LD - South Cambs - Care,Residential Care
Cambridgeshire County Council,06-Jun-19,51300977543,"-1,198.04",CARETECH COMMUNITY SERVICES,CARE ESTABLISHMENT,PAYC3_444_945169,E7145,LD - South Locality,LD - South Cambs - Care,Residential Care
Cambridgeshire County Council,06-Jun-19,51300977518,"-1,198.04",CARETECH COMMUNITY SERVICES,CARE ESTABLISHMENT,PAYC3_444_945165,E7145,LD - South Locality,LD - South Cambs - Care,Residential Care
Cambridgeshire County Council,06-Jun-19,51300977535,"-1,198.04",CARETECH COMMUNITY SERVICES,CARE ESTABLISHMENT,PAYC3_444_945195,E7145,LD - South Locality,LD - South Cambs - Care,Residential Care
Cambridgeshire County Council,06-Jun-19,51300970799,"-1,198.04",CARETECH COMMUNITY SERVICES,CARE ESTABLISHMENT,PAYC3_443_949972,E7145,LD - South Locality,LD - South Cambs - Care,Residential Care
Cambridgeshire County Council,06-Jun-19,51300977503,"-1,198.04",CARETECH COMMUNITY SERVICES,CARE ESTABLISHMENT,PAYC3_444_945213,E7145,LD - South Locality,LD - South Cambs - Care,Residential Care
Cambridgeshire County Council,06-Jun-19,51300970819,"-1,198.04",CARETECH COMMUNITY SERVICES,CARE ESTABLISHMENT,PAYC3_443_949996,E7145,LD - South Locality,LD - South Cambs - Care,Residential Care
Cambridgeshire County Council,06-Jun-19,51300977530,"-1,198.04",CARETECH COMMUNITY SERVICES,CARE ESTABLISHMENT,PAYC3_444_945191,E7145,LD - South Locality,LD - South Cambs - Care,Residential Care
Cambridgeshire County Council,06-Jun-19,51300970798,"-1,198.04",CARETECH COMMUNITY SERVICES,CARE ESTABLISHMENT,PAYC3_443_949968,E7145,LD - South Locality,LD - South Cambs - Care,Residential Care
Cambridgeshire County Council,06-Jun-19,51300970787,"-1,198.04",CARETECH COMMUNITY SERVICES,CARE ESTABLISHMENT,PAYC3_443_949988,E7145,LD - South Locality,LD - South Cambs - Care,Residential Care
Cambridgeshire County Council,06-Jun-19,51300977542,"-1,198.04",CARETECH COMMUNITY SERVICES,CARE ESTABLISHMENT,PAYC3_444_945161,E7145,LD - South Locality,LD - South Cambs - Care,Residential Care
Cambridgeshire County Council,06-Jun-19,51300977546,"-1,198.04",CARETECH COMMUNITY SERVICES,CARE ESTABLISHMENT,PAYC3_444_945185,E7145,LD - South Locality,LD - South Cambs - Care,Residential Care
Cambridgeshire County Council,06-Jun-19,51300970830,"-1,198.04",CARETECH COMMUNITY SERVICES,CARE ESTABLISHMENT,PAYC3_443_949974,E7145,LD - South Locality,LD - South Cambs - Care,Residential Care
Cambridgeshire County Council,06-Jun-19,51300970842,"-1,198.04",CARETECH COMMUNITY SERVICES,CARE ESTABLISHMENT,PAYC3_443_950004,E7145,LD - South Locality,LD - South Cambs - Care,Residential Care
Cambridgeshire County Council,06-Jun-19,51300977513,"-1,198.04",CARETECH COMMUNITY SERVICES,CARE ESTABLISHMENT,PAYC3_444_945167,E7145,LD - South Locality,LD - South Cambs - Care,Residential Care
Cambridgeshire County Council,06-Jun-19,51300977540,"-1,198.04",CARETECH COMMUNITY SERVICES,CARE ESTABLISHMENT,PAYC3_444_945201,E7145,LD - South Locality,LD - South Cambs - Care,Residential Care
Cambridgeshire County Council,06-Jun-19,51300977536,"-1,198.04",CARETECH COMMUNITY SERVICES,CARE ESTABLISHMENT,PAYC3_444_945173,E7145,LD - South Locality,LD - South Cambs - Care,Residential Care
Cambridgeshire County Council,06-Jun-19,51300970785,"-1,198.04",CARETECH COMMUNITY SERVICES,CARE ESTABLISHMENT,PAYC3_443_949956,E7145,LD - South Locality,LD - South Cambs - Care,Residential Care
Cambridgeshire County Council,06-Jun-19,51300977515,"-1,198.04",CARETECH COMMUNITY SERVICES,CARE ESTABLISHMENT,PAYC3_444_945211,E7145,LD - South Locality,LD - South Cambs - Special Needs,Residential Care
Cambridgeshire County Council,06-Jun-19,51300977527,"-1,198.04",CARETECH COMMUNITY SERVICES,CARE ESTABLISHMENT,PAYC3_444_945179,E7145,LD - South Locality,LD - South Cambs - Special Needs,Residential Care
Cambridgeshire County Council,06-Jun-19,51300970789,"-1,198.04",CARETECH COMMUNITY SERVICES,CARE ESTABLISHMENT,PAYC3_443_949964,E7145,LD - South Locality,LD - South Cambs - Special Needs,Residential Care
Cambridgeshire County Council,06-Jun-19,51300977509,"-1,198.04",CARETECH COMMUNITY SERVICES,CARE ESTABLISHMENT,PAYC3_444_945177,E7145,LD - South Locality,LD - South Cambs - Special Needs,Residential Care
Cambridgeshire County Council,06-Jun-19,51300977519,"-1,198.04",CARETECH COMMUNITY SERVICES,CARE ESTABLISHMENT,PAYC3_444_945189,E7145,LD - South Locality,LD - South Cambs - Special Needs,Residential Care
Cambridgeshire County Council,06-Jun-19,51300977544,"-1,198.04",CARETECH COMMUNITY SERVICES,CARE ESTABLISHMENT,PAYC3_444_945209,E7145,LD - South Locality,LD - South Cambs - Special Needs,Residential Care
Cambridgeshire County Council,06-Jun-19,51300970810,"-1,198.04",CARETECH COMMUNITY SERVICES,CARE ESTABLISHMENT,PAYC3_443_949992,E7145,LD - South Locality,LD - South Cambs - Special Needs,Residential Care
Cambridgeshire County Council,06-Jun-19,51300977498,"-1,198.04",CARETECH COMMUNITY SERVICES,CARE ESTABLISHMENT,PAYC3_444_945183,E7145,LD - South Locality,LD - South Cambs - Special Needs,Residential Care
Cambridgeshire County Council,06-Jun-19,51300970827,"-1,198.04",CARETECH COMMUNITY SERVICES,CARE ESTABLISHMENT,PAYC3_443_949958,E7145,LD - South Locality,LD - South Cambs - Special Needs,Residential Care
Cambridgeshire County Council,06-Jun-19,51300970794,"-1,198.04",CARETECH COMMUNITY SERVICES,CARE ESTABLISHMENT,PAYC3_443_949970,E7145,LD - South Locality,LD - South Cambs - Special Needs,Residential Care
Cambridgeshire County Council,06-Jun-19,51300977532,"-1,198.04",CARETECH COMMUNITY SERVICES,CARE ESTABLISHMENT,PAYC3_444_945181,E7145,LD - South Locality,LD - South Cambs - Special Needs,Residential Care
Cambridgeshire County Council,06-Jun-19,51300977550,"-1,198.04",CARETECH COMMUNITY SERVICES,CARE ESTABLISHMENT,PAYC3_444_945203,E7145,LD - South Locality,LD - South Cambs - Special Needs,Residential Care
Cambridgeshire County Council,06-Jun-19,51300977547,"-1,198.04",CARETECH COMMUNITY SERVICES,CARE ESTABLISHMENT,PAYC3_444_945187,E7145,LD - South Locality,LD - South Cambs - Special Needs,Residential Care
Cambridgeshire County Council,06-Jun-19,51300977552,"-1,198.04",CARETECH COMMUNITY SERVICES,CARE ESTABLISHMENT,PAYC3_444_945207,E7145,LD - South Locality,LD - South Cambs - Special Needs,Residential Care
Cambridgeshire County Council,06-Jun-19,51300970816,"-1,198.04",CARETECH COMMUNITY SERVICES,CARE ESTABLISHMENT,PAYC3_443_949966,E7145,LD - South Locality,LD - South Cambs - Special Needs,Residential Care
Cambridgeshire County Council,06-Jun-19,51300977517,"-1,198.04",CARETECH COMMUNITY SERVICES,CARE ESTABLISHMENT,PAYC3_444_945199,E7145,LD - South Locality,LD - South Cambs - Special Needs,Residential Care
Cambridgeshire County Council,06-Jun-19,51300970796,"-1,198.04",CARETECH COMMUNITY SERVICES,CARE ESTABLISHMENT,PAYC3_443_949998,E7145,LD - South Locality,LD - South Cambs - Special Needs,Residential Care
Cambridgeshire County Council,06-Jun-19,51300970836,"-1,198.04",CARETECH COMMUNITY SERVICES,CARE ESTABLISHMENT,PAYC3_443_949976,E7145,LD - South Locality,LD - South Cambs - Special Needs,Residential Care
Cambridgeshire County Council,06-Jun-19,51300970817,"-1,198.04",CARETECH COMMUNITY SERVICES,CARE ESTABLISHMENT,PAYC3_443_949994,E7145,LD - South Locality,LD - South Cambs - Special Needs,Residential Care
Cambridgeshire County Council,21-Jun-19,51300985354,"-1,198.04",CARETECH COMMUNITY SERVICES,CARE ESTABLISHMENT,PAYC3_445_945225,E7145,LD - South Locality,LD - South Cambs - Care,Residential Care
Cambridgeshire County Council,21-Jun-19,51300985356,"-1,198.04",CARETECH COMMUNITY SERVICES,CARE ESTABLISHMENT,PAYC3_445_945255,E7145,LD - South Locality,LD - South Cambs - Care,Residential Care
Cambridgeshire County Council,21-Jun-19,51300985326,"-1,198.04",CARETECH COMMUNITY SERVICES,CARE ESTABLISHMENT,PAYC3_445_945247,E7145,LD - South Locality,LD - South Cambs - Care,Residential Care
Cambridgeshire County Council,21-Jun-19,51301010642,"-1,198.04",CARETECH COMMUNITY SERVICES,CARE ESTABLISHMENT,PAYC3_446_957498,E7145,LD - South Locality,LD - South Cambs - Care,Residential Care
Cambridgeshire County Council,21-Jun-19,51301010653,"-1,198.04",CARETECH COMMUNITY SERVICES,CARE ESTABLISHMENT,PAYC3_446_957540,E7145,LD - South Locality,LD - South Cambs - Care,Residential Care
Cambridgeshire County Council,21-Jun-19,51301010649,"-1,198.04",CARETECH COMMUNITY SERVICES,CARE ESTABLISHMENT,PAYC3_446_957496,E7145,LD - South Locality,LD - South Cambs - Care,Residential Care
Cambridgeshire County Council,21-Jun-19,51300985340,"-1,198.04",CARETECH COMMUNITY SERVICES,CARE ESTABLISHMENT,PAYC3_445_945233,E7145,LD - South Locality,LD - South Cambs - Care,Residential Care
Cambridgeshire County Council,21-Jun-19,51300985335,"-1,198.04",CARETECH COMMUNITY SERVICES,CARE ESTABLISHMENT,PAYC3_445_945235,E7145,LD - South Locality,LD - South Cambs - Care,Residential Care
Cambridgeshire County Council,21-Jun-19,51300985333,"-1,198.04",CARETECH COMMUNITY SERVICES,CARE ESTABLISHMENT,PAYC3_445_945223,E7145,LD - South Locality,LD - South Cambs - Care,Residential Care
Cambridgeshire County Council,21-Jun-19,51300985309,"-1,198.04",CARETECH COMMUNITY SERVICES,CARE ESTABLISHMENT,PAYC3_445_945241,E7145,LD - South Locality,LD - South Cambs - Care,Residential Care
Cambridgeshire County Council,21-Jun-19,51301010627,"-1,198.04",CARETECH COMMUNITY SERVICES,CARE ESTABLISHMENT,PAYC3_446_957518,E7145,LD - South Locality,LD - South Cambs - Care,Residential Care
Cambridgeshire County Council,21-Jun-19,51300985343,"-1,198.04",CARETECH COMMUNITY SERVICES,CARE ESTABLISHMENT,PAYC3_445_945219,E7145,LD - South Locality,LD - South Cambs - Care,Residential Care
Cambridgeshire County Council,21-Jun-19,51301010647,"-1,198.04",CARETECH COMMUNITY SERVICES,CARE ESTABLISHMENT,PAYC3_446_957534,E7145,LD - South Locality,LD - South Cambs - Care,Residential Care
Cambridgeshire County Council,21-Jun-19,51301010658,"-1,198.04",CARETECH COMMUNITY SERVICES,CARE ESTABLISHMENT,PAYC3_446_957522,E7145,LD - South Locality,LD - South Cambs - Care,Residential Care
Cambridgeshire County Council,21-Jun-19,51300985346,"-1,198.04",CARETECH COMMUNITY SERVICES,CARE ESTABLISHMENT,PAYC3_445_945207,E7145,LD - South Locality,LD - South Cambs - Care,Residential Care
Cambridgeshire County Council,21-Jun-19,51301010682,"-1,198.04",CARETECH COMMUNITY SERVICES,CARE ESTABLISHMENT,PAYC3_446_957504,E7145,LD - South Locality,LD - South Cambs - Care,Residential Care
Cambridgeshire County Council,21-Jun-19,51301010646,"-1,198.04",CARETECH COMMUNITY SERVICES,CARE ESTABLISHMENT,PAYC3_446_957508,E7145,LD - South Locality,LD - South Cambs - Care,Residential Care
Cambridgeshire County Council,21-Jun-19,51301010665,"-1,198.04",CARETECH COMMUNITY SERVICES,CARE ESTABLISHMENT,PAYC3_446_957536,E7145,LD - South Locality,LD - South Cambs - Care,Residential Care
Cambridgeshire County Council,21-Jun-19,51300985312,"-1,198.04",CARETECH COMMUNITY SERVICES,CARE ESTABLISHMENT,PAYC3_445_945213,E7145,LD - South Locality,LD - South Cambs - Care,Residential Care
Cambridgeshire County Council,21-Jun-19,51300985304,"-1,198.04",CARETECH COMMUNITY SERVICES,CARE ESTABLISHMENT,PAYC3_445_945217,E7145,LD - South Locality,LD - South Cambs - Care,Residential Care
Cambridgeshire County Council,21-Jun-19,51300985347,"-1,198.04",CARETECH COMMUNITY SERVICES,CARE ESTABLISHMENT,PAYC3_445_945229,E7145,LD - South Locality,LD - South Cambs - Care,Residential Care
Cambridgeshire County Council,21-Jun-19,51301010678,"-1,198.04",CARETECH COMMUNITY SERVICES,CARE ESTABLISHMENT,PAYC3_446_957514,E7145,LD - South Locality,LD - South Cambs - Care,Residential Care
Cambridgeshire County Council,21-Jun-19,51301010667,"-1,198.04",CARETECH COMMUNITY SERVICES,CARE ESTABLISHMENT,PAYC3_446_957512,E7145,LD - South Locality,LD - South Cambs - Care,Residential Care
Cambridgeshire County Council,21-Jun-19,51300985311,"-1,198.04",CARETECH COMMUNITY SERVICES,CARE ESTABLISHMENT,PAYC3_445_945249,E7145,LD - South Locality,LD - South Cambs - Care,Residential Care
Cambridgeshire County Council,21-Jun-19,51301010650,"-1,198.04",CARETECH COMMUNITY SERVICES,CARE ESTABLISHMENT,PAYC3_446_957530,E7145,LD - South Locality,LD - South Cambs - Care,Residential Care
Cambridgeshire County Council,21-Jun-19,51300985318,"-1,198.04",CARETECH COMMUNITY SERVICES,CARE ESTABLISHMENT,PAYC3_445_945253,E7145,LD - South Locality,LD - South Cambs - Care,Residential Care
Cambridgeshire County Council,21-Jun-19,51300985302,"-1,198.04",CARETECH COMMUNITY SERVICES,CARE ESTABLISHMENT,PAYC3_445_945251,E7145,LD - South Locality,LD - South Cambs - Special Needs,Residential Care
Cambridgeshire County Council,21-Jun-19,51301010631,"-1,198.04",CARETECH COMMUNITY SERVICES,CARE ESTABLISHMENT,PAYC3_446_957526,E7145,LD - South Locality,LD - South Cambs - Special Needs,Residential Care
Cambridgeshire County Council,21-Jun-19,51301010677,"-1,198.04",CARETECH COMMUNITY SERVICES,CARE ESTABLISHMENT,PAYC3_446_957500,E7145,LD - South Locality,LD - South Cambs - Special Needs,Residential Care
Cambridgeshire County Council,21-Jun-19,51301010668,"-1,198.04",CARETECH COMMUNITY SERVICES,CARE ESTABLISHMENT,PAYC3_446_957532,E7145,LD - South Locality,LD - South Cambs - Special Needs,Residential Care
Cambridgeshire County Council,21-Jun-19,51301010679,"-1,198.04",CARETECH COMMUNITY SERVICES,CARE ESTABLISHMENT,PAYC3_446_957524,E7145,LD - South Locality,LD - South Cambs - Special Needs,Residential Care
Cambridgeshire County Council,21-Jun-19,51301010663,"-1,198.04",CARETECH COMMUNITY SERVICES,CARE ESTABLISHMENT,PAYC3_446_957488,E7145,LD - South Locality,LD - South Cambs - Special Needs,Residential Care
Cambridgeshire County Council,21-Jun-19,51300985350,"-1,198.04",CARETECH COMMUNITY SERVICES,CARE ESTABLISHMENT,PAYC3_445_945209,E7145,LD - South Locality,LD - South Cambs - Special Needs,Residential Care
Cambridgeshire County Council,21-Jun-19,51301010670,"-1,198.04",CARETECH COMMUNITY SERVICES,CARE ESTABLISHMENT,PAYC3_446_957516,E7145,LD - South Locality,LD - South Cambs - Special Needs,Residential Care
Cambridgeshire County Council,21-Jun-19,51300985339,"-1,198.04",CARETECH COMMUNITY SERVICES,CARE ESTABLISHMENT,PAYC3_445_945215,E7145,LD - South Locality,LD - South Cambs - Special Needs,Residential Care
Cambridgeshire County Council,21-Jun-19,51300985308,"-1,198.04",CARETECH COMMUNITY SERVICES,CARE ESTABLISHMENT,PAYC3_445_945239,E7145,LD - South Locality,LD - South Cambs - Special Needs,Residential Care
Cambridgeshire County Council,21-Jun-19,51301010636,"-1,198.04",CARETECH COMMUNITY SERVICES,CARE ESTABLISHMENT,PAYC3_446_957506,E7145,LD - South Locality,LD - South Cambs - Special Needs,Residential Care
Cambridgeshire County Council,21-Jun-19,51301010683,"-1,198.04",CARETECH COMMUNITY SERVICES,CARE ESTABLISHMENT,PAYC3_446_957528,E7145,LD - South Locality,LD - South Cambs - Special Needs,Residential Care
Cambridgeshire County Council,21-Jun-19,51300985307,"-1,198.04",CARETECH COMMUNITY SERVICES,CARE ESTABLISHMENT,PAYC3_445_945231,E7145,LD - South Locality,LD - South Cambs - Special Needs,Residential Care
Cambridgeshire County Council,21-Jun-19,51300985348,"-1,198.04",CARETECH COMMUNITY SERVICES,CARE ESTABLISHMENT,PAYC3_445_945257,E7145,LD - South Locality,LD - South Cambs - Special Needs,Residential Care
Cambridgeshire County Council,21-Jun-19,51301010652,"-1,198.04",CARETECH COMMUNITY SERVICES,CARE ESTABLISHMENT,PAYC3_446_957494,E7145,LD - South Locality,LD - South Cambs - Special Needs,Residential Care
Cambridgeshire County Council,21-Jun-19,51300985334,"-1,198.04",CARETECH COMMUNITY SERVICES,CARE ESTABLISHMENT,PAYC3_445_945211,E7145,LD - South Locality,LD - South Cambs - Special Needs,Residential Care
Cambridgeshire County Council,21-Jun-19,51300985353,"-1,198.04",CARETECH COMMUNITY SERVICES,CARE ESTABLISHMENT,PAYC3_445_945259,E7145,LD - South Locality,LD - South Cambs - Special Needs,Residential Care
Cambridgeshire County Council,21-Jun-19,51300985336,"-1,198.04",CARETECH COMMUNITY SERVICES,CARE ESTABLISHMENT,PAYC3_445_945237,E7145,LD - South Locality,LD - South Cambs - Special Needs,Residential Care
Cambridgeshire County Council,21-Jun-19,51300985305,"-1,198.04",CARETECH COMMUNITY SERVICES,CARE ESTABLISHMENT,PAYC3_445_945221,E7145,LD - South Locality,LD - South Cambs - Special Needs,Residential Care
Cambridgeshire County Council,21-Jun-19,51301010699,"-1,198.04",CARETECH COMMUNITY SERVICES,CARE ESTABLISHMENT,PAYC3_446_957492,E7145,LD - South Locality,LD - South Cambs - Special Needs,Residential Care
Cambridgeshire County Council,21-Jun-19,51301010633,"-1,198.04",CARETECH COMMUNITY SERVICES,CARE ESTABLISHMENT,PAYC3_446_957502,E7145,LD - South Locality,LD - South Cambs - Special Needs,Residential Care
Cambridgeshire County Council,21-Jun-19,51301010694,"-1,198.04",CARETECH COMMUNITY SERVICES,CARE ESTABLISHMENT,PAYC3_446_957510,E7145,LD - South Locality,LD - South Cambs - Special Needs,Residential Care
Cambridgeshire County Council,21-Jun-19,51300985324,"-1,198.04",CARETECH COMMUNITY SERVICES,CARE ESTABLISHMENT,PAYC3_445_945243,E7145,LD - South Locality,LD - South Cambs - Special Needs,Residential Care
Cambridgeshire County Council,21-Jun-19,51300985319,"-1,198.04",CARETECH COMMUNITY SERVICES,CARE ESTABLISHMENT,PAYC3_445_945227,E7145,LD - South Locality,LD - South Cambs - Special Needs,Residential Care
Cambridgeshire County Council,21-Jun-19,51301010626,"-1,198.04",CARETECH COMMUNITY SERVICES,CARE ESTABLISHMENT,PAYC3_446_957490,E7145,LD - South Locality,LD - South Cambs - Special Needs,Residential Care
Cambridgeshire County Council,21-Jun-19,51301010659,"-1,198.04",CARETECH COMMUNITY SERVICES,CARE ESTABLISHMENT,PAYC3_446_957538,E7145,LD - South Locality,LD - South Cambs - Special Needs,Residential Care
Cambridgeshire County Council,21-Jun-19,51300985332,"-1,198.04",CARETECH COMMUNITY SERVICES,CARE ESTABLISHMENT,PAYC3_445_945245,E7145,LD - South Locality,LD - South Cambs - Special Needs,Residential Care
Cambridgeshire County Council,21-Jun-19,51301010664,"-1,198.04",CARETECH COMMUNITY SERVICES,CARE ESTABLISHMENT,PAYC3_446_957520,E7145,LD - South Locality,LD - South Cambs - Special Needs,Residential Care
Cambridgeshire County Council,21-Jun-19,51300997687,"-1,188.00",ATLAS HOME SUPPORT,CARE ESTABLISHMENT,PAYC3_446_1072623,E7170,AMH - City South,Cambridge South Mental Health,Supported Living
Cambridgeshire County Council,21-Jun-19,51300997691,"-1,188.00",ATLAS HOME SUPPORT,CARE ESTABLISHMENT,PAYC3_446_1072613,E7170,AMH - City South,Cambridge South Mental Health,Supported Living
Cambridgeshire County Council,21-Jun-19,51300997690,"-1,188.00",ATLAS HOME SUPPORT,CARE ESTABLISHMENT,PAYC3_446_1072615,E7170,AMH - City South,Cambridge South Mental Health,Supported Living
Cambridgeshire County Council,21-Jun-19,51300997698,"-1,188.00",ATLAS HOME SUPPORT,CARE ESTABLISHMENT,PAYC3_446_1072621,E7170,AMH - City South,Cambridge South Mental Health,Supported Living
Cambridgeshire County Council,21-Jun-19,51300997680,"-1,188.00",ATLAS HOME SUPPORT,CARE ESTABLISHMENT,PAYC3_446_1072625,E7170,AMH - City South,Cambridge South Mental Health,Supported Living
Cambridgeshire County Council,21-Jun-19,51300997688,"-1,188.00",ATLAS HOME SUPPORT,CARE ESTABLISHMENT,PAYC3_446_1072619,E7170,AMH - City South,Cambridge South Mental Health,Supported Living
Cambridgeshire County Council,21-Jun-19,51300997694,"-1,188.00",ATLAS HOME SUPPORT,CARE ESTABLISHMENT,PAYC3_446_1072617,E7170,AMH - City South,Cambridge South Mental Health,Supported Living
Cambridgeshire County Council,18-Jun-19,51300987508,"-1,172.94",VOYAGE,CARE ESTABLISHMENT,32457,E7145,LD - South Locality,LD - South Cambs - Care,Residential Care
Cambridgeshire County Council,11-Jun-19,51300978837,"-1,166.62",MILTON KEYNES COUNCIL,OTHER PUBLIC BODIES,4.25E+11,D4110,Disabled Services,Head of Disabled Services,Professional Fees and Hired Services
Cambridgeshire County Council,21-Jun-19,51300982134,"-1,128.95",ALDERTON HOUSE,CARE ESTABLISHMENT,PAYC3_445_1028055,E7145,LD - East Locality,LD - East Cambs - Care,Residential Care
Cambridgeshire County Council,21-Jun-19,51300959627,"-1,128.95",ALDERTON HOUSE,CARE ESTABLISHMENT,PAYC3_443_1035304,E7145,LD - East Locality,LD - East Cambs - Special Needs,Residential Care
Cambridgeshire County Council,21-Jun-19,51300995240,"-1,128.95",ALDERTON HOUSE,CARE ESTABLISHMENT,PAYC3_446_1046046,E7145,LD - East Locality,LD - East Cambs - Special Needs,Residential Care
Cambridgeshire County Council,21-Jun-19,51300973991,"-1,128.95",ALDERTON HOUSE,CARE ESTABLISHMENT,PAYC3_444_1028124,E7145,LD - East Locality,LD - East Cambs - Special Needs,Residential Care
Cambridgeshire County Council,18-Jun-19,51300987530,"-1,128.60",THE MARBROOK CENTRE,CARE ESTABLISHMENT,32516,E7130,OPMH - Hunts & Fens,Older People Mental Health Hunts,Nursing Care
Cambridgeshire County Council,18-Jun-19,51300987530,"-1,128.60",THE MARBROOK CENTRE,CARE ESTABLISHMENT,32516,E7130,OPMH - Hunts & Fens,Older People Mental Health Hunts,Nursing Care
Cambridgeshire County Council,18-Jun-19,51300988214,"-1,121.30",MACINTYRE CARE,CARE ESTABLISHMENT,32762,J6205,LD - City Locality,LD - City - Care,Residential Client Care Contributions
Cambridgeshire County Council,18-Jun-19,51300988214,"-1,121.30",MACINTYRE CARE,CARE ESTABLISHMENT,32762,J6205,LD - City Locality,LD - City - Care,Residential Client Care Contributions
Cambridgeshire County Council,18-Jun-19,51300988214,"-1,121.30",MACINTYRE CARE,CARE ESTABLISHMENT,32762,J6205,LD - City Locality,LD - City - Care,Residential Client Care Contributions
Cambridgeshire County Council,18-Jun-19,51300988214,"-1,121.30",MACINTYRE CARE,CARE ESTABLISHMENT,32762,J6205,LD - City Locality,LD - City - Care,Residential Client Care Contributions
Cambridgeshire County Council,18-Jun-19,51300988214,"-1,121.30",MACINTYRE CARE,CARE ESTABLISHMENT,32762,J6205,LD - City Locality,LD - City - Care,Residential Client Care Contributions
Cambridgeshire County Council,18-Jun-19,51300988214,"-1,121.30",MACINTYRE CARE,CARE ESTABLISHMENT,32762,J6205,LD - City Locality,LD - City - Care,Residential Client Care Contributions
Cambridgeshire County Council,18-Jun-19,51300988214,"-1,121.30",MACINTYRE CARE,CARE ESTABLISHMENT,32762,J6205,LD - City Locality,LD - City - Care,Residential Client Care Contributions
Cambridgeshire County Council,18-Jun-19,51300988214,"-1,121.30",MACINTYRE CARE,CARE ESTABLISHMENT,32762,J6205,LD - City Locality,LD - City - Care,Residential Client Care Contributions
Cambridgeshire County Council,18-Jun-19,51300988214,"-1,121.30",MACINTYRE CARE,CARE ESTABLISHMENT,32762,J6205,LD - City Locality,LD - City - Care,Residential Client Care Contributions
Cambridgeshire County Council,18-Jun-19,51300988214,"-1,121.30",MACINTYRE CARE,CARE ESTABLISHMENT,32762,J6205,LD - City Locality,LD - City - Care,Residential Client Care Contributions
Cambridgeshire County Council,18-Jun-19,51300988214,"-1,121.30",MACINTYRE CARE,CARE ESTABLISHMENT,32762,J6205,LD - City Locality,LD - City - Care,Residential Client Care Contributions
Cambridgeshire County Council,18-Jun-19,51300988214,"-1,121.30",MACINTYRE CARE,CARE ESTABLISHMENT,32762,J6205,LD - City Locality,LD - City - Care,Residential Client Care Contributions
Cambridgeshire County Council,18-Jun-19,51300988214,"-1,121.30",MACINTYRE CARE,CARE ESTABLISHMENT,32762,J6205,LD - City Locality,LD - City - Care,Residential Client Care Contributions
Cambridgeshire County Council,18-Jun-19,51300988214,"-1,121.30",MACINTYRE CARE,CARE ESTABLISHMENT,32762,J6205,LD - City Locality,LD - City - Care,Residential Client Care Contributions
Cambridgeshire County Council,18-Jun-19,51300988214,"-1,121.30",MACINTYRE CARE,CARE ESTABLISHMENT,32762,J6205,LD - City Locality,LD - City - Care,Residential Client Care Contributions
Cambridgeshire County Council,18-Jun-19,51300988214,"-1,121.30",MACINTYRE CARE,CARE ESTABLISHMENT,32762,J6205,LD - City Locality,LD - City - Care,Residential Client Care Contributions
Cambridgeshire County Council,18-Jun-19,51300988214,"-1,121.30",MACINTYRE CARE,CARE ESTABLISHMENT,32762,J6205,LD - City Locality,LD - City - Care,Residential Client Care Contributions
Cambridgeshire County Council,18-Jun-19,51300988214,"-1,121.30",MACINTYRE CARE,CARE ESTABLISHMENT,32762,J6205,LD - City Locality,LD - City - Care,Residential Client Care Contributions
Cambridgeshire County Council,18-Jun-19,51300988214,"-1,121.30",MACINTYRE CARE,CARE ESTABLISHMENT,32762,J6205,LD - City Locality,LD - City - Care,Residential Client Care Contributions
Cambridgeshire County Council,18-Jun-19,51300988214,"-1,121.30",MACINTYRE CARE,CARE ESTABLISHMENT,32762,J6205,LD - City Locality,LD - City - Care,Residential Client Care Contributions
Cambridgeshire County Council,18-Jun-19,51300988214,"-1,121.30",MACINTYRE CARE,CARE ESTABLISHMENT,32762,J6205,LD - City Locality,LD - City - Care,Residential Client Care Contributions
Cambridgeshire County Council,18-Jun-19,51300988214,"-1,121.30",MACINTYRE CARE,CARE ESTABLISHMENT,32762,J6205,LD - City Locality,LD - City - Care,Residential Client Care Contributions
Cambridgeshire County Council,18-Jun-19,51300988214,"-1,121.30",MACINTYRE CARE,CARE ESTABLISHMENT,32762,J6205,LD - City Locality,LD - City - Care,Residential Client Care Contributions
Cambridgeshire County Council,18-Jun-19,51300988214,"-1,121.30",MACINTYRE CARE,CARE ESTABLISHMENT,32762,J6205,LD - City Locality,LD - City - Care,Residential Client Care Contributions
Cambridgeshire County Council,18-Jun-19,51300988214,"-1,121.30",MACINTYRE CARE,CARE ESTABLISHMENT,32762,J6205,LD - City Locality,LD - City - Care,Residential Client Care Contributions
Cambridgeshire County Council,18-Jun-19,51300988214,"-1,121.30",MACINTYRE CARE,CARE ESTABLISHMENT,32762,J6205,LD - City Locality,LD - City - Care,Residential Client Care Contributions
Cambridgeshire County Council,18-Jun-19,51300988214,"-1,121.30",MACINTYRE CARE,CARE ESTABLISHMENT,32762,J6205,LD - City Locality,LD - City - Care,Residential Client Care Contributions
Cambridgeshire County Council,18-Jun-19,51300988214,"-1,121.30",MACINTYRE CARE,CARE ESTABLISHMENT,32762,J6205,LD - City Locality,LD - City - Care,Residential Client Care Contributions
Cambridgeshire County Council,18-Jun-19,51300988214,"-1,121.30",MACINTYRE CARE,CARE ESTABLISHMENT,32762,J6205,LD - City Locality,LD - City - Care,Residential Client Care Contributions
Cambridgeshire County Council,18-Jun-19,51300988214,"-1,121.30",MACINTYRE CARE,CARE ESTABLISHMENT,32762,J6205,LD - City Locality,LD - City - Care,Residential Client Care Contributions
Cambridgeshire County Council,18-Jun-19,51300988214,"-1,121.30",MACINTYRE CARE,CARE ESTABLISHMENT,32762,J6205,LD - City Locality,LD - City - Care,Residential Client Care Contributions
Cambridgeshire County Council,18-Jun-19,51300988214,"-1,121.30",MACINTYRE CARE,CARE ESTABLISHMENT,32762,J6205,LD - City Locality,LD - City - Care,Residential Client Care Contributions
Cambridgeshire County Council,18-Jun-19,51300988214,"-1,121.30",MACINTYRE CARE,CARE ESTABLISHMENT,32762,J6205,LD - City Locality,LD - City - Care,Residential Client Care Contributions
Cambridgeshire County Council,18-Jun-19,51300988217,"-1,119.15",DONEC (ELIZABETH FITROY SUPPORT),CARE ESTABLISHMENT,32765,E7145,LD - South Locality,LD - South Cambs - Care,Residential Care
Cambridgeshire County Council,18-Jun-19,51300988217,"-1,119.15",DONEC (ELIZABETH FITROY SUPPORT),CARE ESTABLISHMENT,32765,E7145,LD - South Locality,LD - South Cambs - Care,Residential Care
Cambridgeshire County Council,18-Jun-19,51300988217,"-1,119.15",DONEC (ELIZABETH FITROY SUPPORT),CARE ESTABLISHMENT,32765,E7145,LD - South Locality,LD - South Cambs - Care,Residential Care
Cambridgeshire County Council,18-Jun-19,51300988217,"-1,119.15",DONEC (ELIZABETH FITROY SUPPORT),CARE ESTABLISHMENT,32765,E7145,LD - South Locality,LD - South Cambs - Care,Residential Care
Cambridgeshire County Council,18-Jun-19,51300988217,"-1,119.15",DONEC (ELIZABETH FITROY SUPPORT),CARE ESTABLISHMENT,32765,E7145,LD - South Locality,LD - South Cambs - Care,Residential Care
Cambridgeshire County Council,18-Jun-19,51300988217,"-1,119.15",DONEC (ELIZABETH FITROY SUPPORT),CARE ESTABLISHMENT,32765,E7145,LD - South Locality,LD - South Cambs - Care,Residential Care
Cambridgeshire County Council,18-Jun-19,51300988217,"-1,119.15",DONEC (ELIZABETH FITROY SUPPORT),CARE ESTABLISHMENT,32765,E7145,LD - South Locality,LD - South Cambs - Care,Residential Care
Cambridgeshire County Council,18-Jun-19,51300988217,"-1,119.15",DONEC (ELIZABETH FITROY SUPPORT),CARE ESTABLISHMENT,32765,E7145,LD - South Locality,LD - South Cambs - Care,Residential Care
Cambridgeshire County Council,18-Jun-19,51300988217,"-1,119.15",DONEC (ELIZABETH FITROY SUPPORT),CARE ESTABLISHMENT,32765,E7145,LD - South Locality,LD - South Cambs - Care,Residential Care
Cambridgeshire County Council,18-Jun-19,51300988217,"-1,119.15",DONEC (ELIZABETH FITROY SUPPORT),CARE ESTABLISHMENT,32765,E7145,LD - South Locality,LD - South Cambs - Care,Residential Care
Cambridgeshire County Council,18-Jun-19,51300988217,"-1,119.15",DONEC (ELIZABETH FITROY SUPPORT),CARE ESTABLISHMENT,32765,E7145,LD - South Locality,LD - South Cambs - Care,Residential Care
Cambridgeshire County Council,18-Jun-19,51300988217,"-1,119.15",DONEC (ELIZABETH FITROY SUPPORT),CARE ESTABLISHMENT,32765,E7145,LD - South Locality,LD - South Cambs - Care,Residential Care
Cambridgeshire County Council,18-Jun-19,51300988217,"-1,119.15",DONEC (ELIZABETH FITROY SUPPORT),CARE ESTABLISHMENT,32765,E7145,LD - South Locality,LD - South Cambs - Care,Residential Care
Cambridgeshire County Council,18-Jun-19,51300988217,"-1,119.15",DONEC (ELIZABETH FITROY SUPPORT),CARE ESTABLISHMENT,32765,E7145,LD - South Locality,LD - South Cambs - Care,Residential Care
Cambridgeshire County Council,18-Jun-19,51300988217,"-1,119.15",DONEC (ELIZABETH FITROY SUPPORT),CARE ESTABLISHMENT,32765,E7145,LD - South Locality,LD - South Cambs - Care,Residential Care
Cambridgeshire County Council,18-Jun-19,51300988217,"-1,119.15",DONEC (ELIZABETH FITROY SUPPORT),CARE ESTABLISHMENT,32765,E7145,LD - South Locality,LD - South Cambs - Care,Residential Care
Cambridgeshire County Council,18-Jun-19,51300988217,"-1,119.15",DONEC (ELIZABETH FITROY SUPPORT),CARE ESTABLISHMENT,32765,E7145,LD - South Locality,LD - South Cambs - Care,Residential Care
Cambridgeshire County Council,18-Jun-19,51300988217,"-1,119.15",DONEC (ELIZABETH FITROY SUPPORT),CARE ESTABLISHMENT,32765,E7145,LD - South Locality,LD - South Cambs - Care,Residential Care
Cambridgeshire County Council,18-Jun-19,51300988217,"-1,119.15",DONEC (ELIZABETH FITROY SUPPORT),CARE ESTABLISHMENT,32765,E7145,LD - South Locality,LD - South Cambs - Care,Residential Care
Cambridgeshire County Council,18-Jun-19,51300988217,"-1,119.15",DONEC (ELIZABETH FITROY SUPPORT),CARE ESTABLISHMENT,32765,E7145,LD - South Locality,LD - South Cambs - Care,Residential Care
Cambridgeshire County Council,18-Jun-19,51300988217,"-1,119.15",DONEC (ELIZABETH FITROY SUPPORT),CARE ESTABLISHMENT,32765,E7145,LD - South Locality,LD - South Cambs - Care,Residential Care
Cambridgeshire County Council,18-Jun-19,51300988217,"-1,119.15",DONEC (ELIZABETH FITROY SUPPORT),CARE ESTABLISHMENT,32765,E7145,LD - South Locality,LD - South Cambs - Care,Residential Care
Cambridgeshire County Council,18-Jun-19,51300988217,"-1,119.15",DONEC (ELIZABETH FITROY SUPPORT),CARE ESTABLISHMENT,32765,E7145,LD - South Locality,LD - South Cambs - Care,Residential Care
Cambridgeshire County Council,18-Jun-19,51300988217,"-1,119.15",DONEC (ELIZABETH FITROY SUPPORT),CARE ESTABLISHMENT,32765,E7145,LD - South Locality,LD - South Cambs - Care,Residential Care
Cambridgeshire County Council,18-Jun-19,51300988217,"-1,119.15",DONEC (ELIZABETH FITROY SUPPORT),CARE ESTABLISHMENT,32765,E7145,LD - South Locality,LD - South Cambs - Care,Residential Care
Cambridgeshire County Council,21-Jun-19,51300958028,"-1,110.27",VOYAGE (LICHFIELD),CARE ESTABLISHMENT,PAYC3_443_904815,E7170,LD - Young Adults Team,LD - Young Adults - Care,Supported Living
Cambridgeshire County Council,06-Jun-19,51300812153,"-1,101.80",BROAD OAKS (MENCAP),CARE ESTABLISHMENT,PAYC3_434_980153,E7145,OP - Fenland Locality,Older People - Fenland,Residential Care
Cambridgeshire County Council,06-Jun-19,51300812204,"-1,101.80",BROAD OAKS (MENCAP),CARE ESTABLISHMENT,PAYC3_434_980152,E7145,OP - Fenland Locality,Older People - Fenland,Residential Care
Cambridgeshire County Council,06-Jun-19,51300812147,"-1,101.80",BROAD OAKS (MENCAP),CARE ESTABLISHMENT,PAYC3_434_980148,E7145,OP - Fenland Locality,Older People - Fenland,Residential Care
Cambridgeshire County Council,06-Jun-19,51300812165,"-1,101.80",BROAD OAKS (MENCAP),CARE ESTABLISHMENT,PAYC3_434_980147,E7145,OP - Fenland Locality,Older People - Fenland,Residential Care
Cambridgeshire County Council,06-Jun-19,51300812185,"-1,101.80",BROAD OAKS (MENCAP),CARE ESTABLISHMENT,PAYC3_434_980149,E7145,OP - Fenland Locality,Older People - Fenland,Residential Care
Cambridgeshire County Council,06-Jun-19,51300812237,"-1,101.80",BROAD OAKS (MENCAP),CARE ESTABLISHMENT,PAYC3_434_980145,E7145,OP - Fenland Locality,Older People - Fenland,Residential Care
Cambridgeshire County Council,06-Jun-19,51300812180,"-1,101.80",BROAD OAKS (MENCAP),CARE ESTABLISHMENT,PAYC3_434_980144,E7145,OP - Fenland Locality,Older People - Fenland,Residential Care
Cambridgeshire County Council,06-Jun-19,51300812159,"-1,101.80",BROAD OAKS (MENCAP),CARE ESTABLISHMENT,PAYC3_434_980146,E7145,OP - Fenland Locality,Older People - Fenland,Residential Care
Cambridgeshire County Council,21-Jun-19,51300970049,"-1,091.65",GUYATT HOUSE CARE LTD,CARE ESTABLISHMENT,PAYC3_443_1096068,E7150,LD - East Locality,LD - East Cambs - Special Needs,Domiciliary Care
Cambridgeshire County Council,21-Jun-19,51300977327,"-1,091.65",GUYATT HOUSE CARE LTD,CARE ESTABLISHMENT,PAYC3_444_1087525,E7150,LD - East Locality,LD - East Cambs - Special Needs,Domiciliary Care
Cambridgeshire County Council,21-Jun-19,51300985230,"-1,091.65",GUYATT HOUSE CARE LTD,CARE ESTABLISHMENT,PAYC3_445_1087515,E7150,LD - East Locality,LD - East Cambs - Special Needs,Domiciliary Care
Cambridgeshire County Council,21-Jun-19,51301009620,"-1,091.65",GUYATT HOUSE CARE LTD,CARE ESTABLISHMENT,PAYC3_446_1109741,E7150,LD - East Locality,LD - East Cambs - Special Needs,Domiciliary Care
Cambridgeshire County Council,21-Jun-19,51300966425,"-1,090.31",RENTON COURT (VOYAGE),CARE ESTABLISHMENT,PAYC3_443_1055040,E7170,LD - Hunts Locality,LD - Huntigndonshire  - Special Needs,Supported Living
Cambridgeshire County Council,21-Jun-19,51300970367,"-1,090.31",RENTON COURT (VOYAGE),CARE ESTABLISHMENT,PAYC3_443_1055036,E7170,LD - Hunts Locality,LD - Huntigndonshire  - Special Needs,Supported Living
Cambridgeshire County Council,18-Jun-19,51300988196,"-1,089.00",ROYAL MENCAP SOCIETY,CARE ESTABLISHMENT,32728,J6205,LD - South Locality,LD - South Cambs - Care,Residential Client Care Contributions
Cambridgeshire County Council,18-Jun-19,51300988196,"-1,089.00",ROYAL MENCAP SOCIETY,CARE ESTABLISHMENT,32728,J6205,LD - South Locality,LD - South Cambs - Care,Residential Client Care Contributions
Cambridgeshire County Council,18-Jun-19,51300988196,"-1,089.00",ROYAL MENCAP SOCIETY,CARE ESTABLISHMENT,32728,J6205,LD - South Locality,LD - South Cambs - Care,Residential Client Care Contributions
Cambridgeshire County Council,18-Jun-19,51300988196,"-1,089.00",ROYAL MENCAP SOCIETY,CARE ESTABLISHMENT,32728,J6205,LD - South Locality,LD - South Cambs - Care,Residential Client Care Contributions
Cambridgeshire County Council,18-Jun-19,51300988196,"-1,089.00",ROYAL MENCAP SOCIETY,CARE ESTABLISHMENT,32728,J6205,LD - South Locality,LD - South Cambs - Care,Residential Client Care Contributions
Cambridgeshire County Council,18-Jun-19,51300988196,"-1,089.00",ROYAL MENCAP SOCIETY,CARE ESTABLISHMENT,32728,J6205,LD - South Locality,LD - South Cambs - Care,Residential Client Care Contributions
Cambridgeshire County Council,18-Jun-19,51300988196,"-1,089.00",ROYAL MENCAP SOCIETY,CARE ESTABLISHMENT,32728,J6205,LD - South Locality,LD - South Cambs - Care,Residential Client Care Contributions
Cambridgeshire County Council,18-Jun-19,51300988196,"-1,089.00",ROYAL MENCAP SOCIETY,CARE ESTABLISHMENT,32728,J6205,LD - South Locality,LD - South Cambs - Care,Residential Client Care Contributions
Cambridgeshire County Council,18-Jun-19,51300988196,"-1,089.00",ROYAL MENCAP SOCIETY,CARE ESTABLISHMENT,32728,J6205,LD - South Locality,LD - South Cambs - Care,Residential Client Care Contributions
Cambridgeshire County Council,18-Jun-19,51300988196,"-1,089.00",ROYAL MENCAP SOCIETY,CARE ESTABLISHMENT,32728,J6205,LD - South Locality,LD - South Cambs - Care,Residential Client Care Contributions
Cambridgeshire County Council,18-Jun-19,51300988196,"-1,089.00",ROYAL MENCAP SOCIETY,CARE ESTABLISHMENT,32728,J6205,LD - South Locality,LD - South Cambs - Care,Residential Client Care Contributions
Cambridgeshire County Council,18-Jun-19,51300988196,"-1,089.00",ROYAL MENCAP SOCIETY,CARE ESTABLISHMENT,32728,J6205,LD - South Locality,LD - South Cambs - Care,Residential Client Care Contributions
Cambridgeshire County Council,18-Jun-19,51300988196,"-1,089.00",ROYAL MENCAP SOCIETY,CARE ESTABLISHMENT,32728,J6205,LD - South Locality,LD - South Cambs - Care,Residential Client Care Contributions
Cambridgeshire County Council,18-Jun-19,51300988196,"-1,089.00",ROYAL MENCAP SOCIETY,CARE ESTABLISHMENT,32728,J6205,LD - South Locality,LD - South Cambs - Care,Residential Client Care Contributions
Cambridgeshire County Council,18-Jun-19,51300988196,"-1,089.00",ROYAL MENCAP SOCIETY,CARE ESTABLISHMENT,32728,J6205,LD - South Locality,LD - South Cambs - Care,Residential Client Care Contributions
Cambridgeshire County Council,18-Jun-19,51300988196,"-1,089.00",ROYAL MENCAP SOCIETY,CARE ESTABLISHMENT,32728,J6205,LD - South Locality,LD - South Cambs - Care,Residential Client Care Contributions
Cambridgeshire County Council,18-Jun-19,51300988196,"-1,089.00",ROYAL MENCAP SOCIETY,CARE ESTABLISHMENT,32728,J6205,LD - South Locality,LD - South Cambs - Care,Residential Client Care Contributions
Cambridgeshire County Council,18-Jun-19,51300988196,"-1,089.00",ROYAL MENCAP SOCIETY,CARE ESTABLISHMENT,32728,J6205,LD - South Locality,LD - South Cambs - Care,Residential Client Care Contributions
Cambridgeshire County Council,18-Jun-19,51300988196,"-1,089.00",ROYAL MENCAP SOCIETY,CARE ESTABLISHMENT,32728,J6205,LD - South Locality,LD - South Cambs - Care,Residential Client Care Contributions
Cambridgeshire County Council,18-Jun-19,51300988196,"-1,089.00",ROYAL MENCAP SOCIETY,CARE ESTABLISHMENT,32728,J6205,LD - South Locality,LD - South Cambs - Care,Residential Client Care Contributions
Cambridgeshire County Council,18-Jun-19,51300988196,"-1,089.00",ROYAL MENCAP SOCIETY,CARE ESTABLISHMENT,32728,J6205,LD - South Locality,LD - South Cambs - Care,Residential Client Care Contributions
Cambridgeshire County Council,18-Jun-19,51300988196,"-1,089.00",ROYAL MENCAP SOCIETY,CARE ESTABLISHMENT,32728,J6205,LD - South Locality,LD - South Cambs - Care,Residential Client Care Contributions
Cambridgeshire County Council,18-Jun-19,51300988196,"-1,089.00",ROYAL MENCAP SOCIETY,CARE ESTABLISHMENT,32728,J6205,LD - South Locality,LD - South Cambs - Care,Residential Client Care Contributions
Cambridgeshire County Council,18-Jun-19,51300988196,"-1,089.00",ROYAL MENCAP SOCIETY,CARE ESTABLISHMENT,32728,J6205,LD - South Locality,LD - South Cambs - Care,Residential Client Care Contributions
Cambridgeshire County Council,18-Jun-19,51300988196,"-1,089.00",ROYAL MENCAP SOCIETY,CARE ESTABLISHMENT,32728,J6205,LD - South Locality,LD - South Cambs - Care,Residential Client Care Contributions
Cambridgeshire County Council,18-Jun-19,51300988196,"-1,089.00",ROYAL MENCAP SOCIETY,CARE ESTABLISHMENT,32728,J6205,LD - South Locality,LD - South Cambs - Care,Residential Client Care Contributions
Cambridgeshire County Council,18-Jun-19,51300988196,"-1,089.00",ROYAL MENCAP SOCIETY,CARE ESTABLISHMENT,32728,J6205,LD - South Locality,LD - South Cambs - Care,Residential Client Care Contributions
Cambridgeshire County Council,18-Jun-19,51300988196,"-1,089.00",ROYAL MENCAP SOCIETY,CARE ESTABLISHMENT,32728,J6205,LD - South Locality,LD - South Cambs - Care,Residential Client Care Contributions
Cambridgeshire County Council,18-Jun-19,51300988195,"-1,089.00",ROYAL MENCAP SOCIETY,CARE ESTABLISHMENT,32727,J6205,LD - City Locality,LD - City - Special Needs,Residential Client Care Contributions
Cambridgeshire County Council,18-Jun-19,51300988195,"-1,089.00",ROYAL MENCAP SOCIETY,CARE ESTABLISHMENT,32727,J6205,LD - City Locality,LD - City - Special Needs,Residential Client Care Contributions
Cambridgeshire County Council,18-Jun-19,51300988195,"-1,089.00",ROYAL MENCAP SOCIETY,CARE ESTABLISHMENT,32727,J6205,LD - City Locality,LD - City - Special Needs,Residential Client Care Contributions
Cambridgeshire County Council,18-Jun-19,51300988195,"-1,089.00",ROYAL MENCAP SOCIETY,CARE ESTABLISHMENT,32727,J6205,LD - City Locality,LD - City - Special Needs,Residential Client Care Contributions
Cambridgeshire County Council,18-Jun-19,51300988195,"-1,089.00",ROYAL MENCAP SOCIETY,CARE ESTABLISHMENT,32727,J6205,LD - City Locality,LD - City - Special Needs,Residential Client Care Contributions
Cambridgeshire County Council,18-Jun-19,51300988195,"-1,089.00",ROYAL MENCAP SOCIETY,CARE ESTABLISHMENT,32727,J6205,LD - City Locality,LD - City - Special Needs,Residential Client Care Contributions
Cambridgeshire County Council,18-Jun-19,51300988195,"-1,089.00",ROYAL MENCAP SOCIETY,CARE ESTABLISHMENT,32727,J6205,LD - City Locality,LD - City - Special Needs,Residential Client Care Contributions
Cambridgeshire County Council,18-Jun-19,51300988195,"-1,089.00",ROYAL MENCAP SOCIETY,CARE ESTABLISHMENT,32727,J6205,LD - City Locality,LD - City - Special Needs,Residential Client Care Contributions
Cambridgeshire County Council,18-Jun-19,51300988195,"-1,089.00",ROYAL MENCAP SOCIETY,CARE ESTABLISHMENT,32727,J6205,LD - City Locality,LD - City - Special Needs,Residential Client Care Contributions
Cambridgeshire County Council,18-Jun-19,51300988195,"-1,089.00",ROYAL MENCAP SOCIETY,CARE ESTABLISHMENT,32727,J6205,LD - City Locality,LD - City - Special Needs,Residential Client Care Contributions
Cambridgeshire County Council,18-Jun-19,51300988195,"-1,089.00",ROYAL MENCAP SOCIETY,CARE ESTABLISHMENT,32727,J6205,LD - City Locality,LD - City - Special Needs,Residential Client Care Contributions
Cambridgeshire County Council,18-Jun-19,51300988195,"-1,089.00",ROYAL MENCAP SOCIETY,CARE ESTABLISHMENT,32727,J6205,LD - City Locality,LD - City - Special Needs,Residential Client Care Contributions
Cambridgeshire County Council,18-Jun-19,51300988195,"-1,089.00",ROYAL MENCAP SOCIETY,CARE ESTABLISHMENT,32727,J6205,LD - City Locality,LD - City - Special Needs,Residential Client Care Contributions
Cambridgeshire County Council,18-Jun-19,51300988195,"-1,089.00",ROYAL MENCAP SOCIETY,CARE ESTABLISHMENT,32727,J6205,LD - City Locality,LD - City - Special Needs,Residential Client Care Contributions
Cambridgeshire County Council,18-Jun-19,51300988195,"-1,089.00",ROYAL MENCAP SOCIETY,CARE ESTABLISHMENT,32727,J6205,LD - City Locality,LD - City - Special Needs,Residential Client Care Contributions
Cambridgeshire County Council,18-Jun-19,51300988195,"-1,089.00",ROYAL MENCAP SOCIETY,CARE ESTABLISHMENT,32727,J6205,LD - City Locality,LD - City - Special Needs,Residential Client Care Contributions
Cambridgeshire County Council,18-Jun-19,51300988195,"-1,089.00",ROYAL MENCAP SOCIETY,CARE ESTABLISHMENT,32727,J6205,LD - City Locality,LD - City - Special Needs,Residential Client Care Contributions
Cambridgeshire County Council,18-Jun-19,51300988195,"-1,089.00",ROYAL MENCAP SOCIETY,CARE ESTABLISHMENT,32727,J6205,LD - City Locality,LD - City - Special Needs,Residential Client Care Contributions
Cambridgeshire County Council,18-Jun-19,51300988195,"-1,089.00",ROYAL MENCAP SOCIETY,CARE ESTABLISHMENT,32727,J6205,LD - City Locality,LD - City - Special Needs,Residential Client Care Contributions
Cambridgeshire County Council,18-Jun-19,51300988195,"-1,089.00",ROYAL MENCAP SOCIETY,CARE ESTABLISHMENT,32727,J6205,LD - City Locality,LD - City - Special Needs,Residential Client Care Contributions
Cambridgeshire County Council,18-Jun-19,51300988195,"-1,089.00",ROYAL MENCAP SOCIETY,CARE ESTABLISHMENT,32727,J6205,LD - City Locality,LD - City - Special Needs,Residential Client Care Contributions
Cambridgeshire County Council,18-Jun-19,51300988195,"-1,089.00",ROYAL MENCAP SOCIETY,CARE ESTABLISHMENT,32727,J6205,LD - City Locality,LD - City - Special Needs,Residential Client Care Contributions
Cambridgeshire County Council,18-Jun-19,51300988195,"-1,089.00",ROYAL MENCAP SOCIETY,CARE ESTABLISHMENT,32727,J6205,LD - City Locality,LD - City - Special Needs,Residential Client Care Contributions
Cambridgeshire County Council,18-Jun-19,51300988195,"-1,089.00",ROYAL MENCAP SOCIETY,CARE ESTABLISHMENT,32727,J6205,LD - City Locality,LD - City - Special Needs,Residential Client Care Contributions
Cambridgeshire County Council,18-Jun-19,51300988195,"-1,089.00",ROYAL MENCAP SOCIETY,CARE ESTABLISHMENT,32727,J6205,LD - City Locality,LD - City - Special Needs,Residential Client Care Contributions
Cambridgeshire County Council,18-Jun-19,51300988195,"-1,089.00",ROYAL MENCAP SOCIETY,CARE ESTABLISHMENT,32727,J6205,LD - City Locality,LD - City - Special Needs,Residential Client Care Contributions
Cambridgeshire County Council,18-Jun-19,51300988195,"-1,089.00",ROYAL MENCAP SOCIETY,CARE ESTABLISHMENT,32727,J6205,LD - City Locality,LD - City - Special Needs,Residential Client Care Contributions
Cambridgeshire County Council,18-Jun-19,51300988195,"-1,089.00",ROYAL MENCAP SOCIETY,CARE ESTABLISHMENT,32727,J6205,LD - City Locality,LD - City - Special Needs,Residential Client Care Contributions
Cambridgeshire County Council,13-Jun-19,51300936319,"-1,057.37",Redacted Personal Data ,SERVICE USER,PAYC3_442_133211,F1100,Physical Disablity,Countywide PD Service - Care,Direct Payments
Cambridgeshire County Council,13-Jun-19,51300936282,"-1,057.37",Redacted Personal Data ,SERVICE USER,PAYC3_442_133203,F1100,Physical Disablity,Countywide PD Service - Care,Direct Payments
Cambridgeshire County Council,21-Jun-19,51300958445,"-1,043.57",VOYAGE,CARE ESTABLISHMENT,PAYC3_443_1100828,E7145,LD - South Locality,LD - South Cambs - Special Needs,Residential Care
Cambridgeshire County Council,19-Jun-19,51300986370,"-1,038.00",CAMBRIDGE CITY COUNCIL,OTHER PUBLIC BODIES,CR901367,XD030,Cambourne Village College,Cambourne Village College,Mobile - Buildings
Cambridgeshire County Council,06-Jun-19,51300977504,"-1,026.89",CARETECH COMMUNITY SERVICES,CARE ESTABLISHMENT,PAYC3_444_945159,E7145,LD - South Locality,LD - South Cambs - Special Needs,Residential Care
Cambridgeshire County Council,06-Jun-19,51300970788,"-1,026.89",CARETECH COMMUNITY SERVICES,CARE ESTABLISHMENT,PAYC3_443_949950,E7145,LD - South Locality,LD - South Cambs - Special Needs,Residential Care
Cambridgeshire County Council,21-Jun-19,51301010625,"-1,026.89",CARETECH COMMUNITY SERVICES,CARE ESTABLISHMENT,PAYC3_446_957486,E7145,LD - South Locality,LD - South Cambs - Special Needs,Residential Care
Cambridgeshire County Council,21-Jun-19,51300985321,"-1,026.89",CARETECH COMMUNITY SERVICES,CARE ESTABLISHMENT,PAYC3_445_945205,E7145,LD - South Locality,LD - South Cambs - Special Needs,Residential Care
Cambridgeshire County Council,13-Jun-19,51300830589,"-1,025.00",THE GABLES (NURSING CARE ONLY),CARE ESTABLISHMENT,PAYC3_434_884972,E7130,Physical Disablity,Countywide PD Service - Care,Nursing Care
Cambridgeshire County Council,13-Jun-19,51300830597,"-1,025.00",THE GABLES (NURSING CARE ONLY),CARE ESTABLISHMENT,PAYC3_434_884965,E7130,Physical Disablity,Countywide PD Service - Care,Nursing Care
Cambridgeshire County Council,13-Jun-19,51300830596,"-1,025.00",THE GABLES (NURSING CARE ONLY),CARE ESTABLISHMENT,PAYC3_434_884973,E7130,Physical Disablity,Countywide PD Service - Care,Nursing Care
Cambridgeshire County Council,13-Jun-19,51300830588,"-1,025.00",THE GABLES (NURSING CARE ONLY),CARE ESTABLISHMENT,PAYC3_434_884963,E7130,Physical Disablity,Countywide PD Service - Care,Nursing Care
Cambridgeshire County Council,13-Jun-19,51300830580,"-1,025.00",THE GABLES (NURSING CARE ONLY),CARE ESTABLISHMENT,PAYC3_434_884968,E7130,Physical Disablity,Countywide PD Service - Care,Nursing Care
Cambridgeshire County Council,13-Jun-19,51300830598,"-1,025.00",THE GABLES (NURSING CARE ONLY),CARE ESTABLISHMENT,PAYC3_434_884964,E7130,Physical Disablity,Countywide PD Service - Care,Nursing Care
Cambridgeshire County Council,13-Jun-19,51300830590,"-1,025.00",THE GABLES (NURSING CARE ONLY),CARE ESTABLISHMENT,PAYC3_434_884967,E7130,Physical Disablity,Countywide PD Service - Care,Nursing Care
Cambridgeshire County Council,13-Jun-19,51300830587,"-1,025.00",THE GABLES (NURSING CARE ONLY),CARE ESTABLISHMENT,PAYC3_434_884966,E7130,Physical Disablity,Countywide PD Service - Care,Nursing Care
Cambridgeshire County Council,13-Jun-19,51300830583,"-1,025.00",THE GABLES (NURSING CARE ONLY),CARE ESTABLISHMENT,PAYC3_434_884971,E7130,Physical Disablity,Countywide PD Service - Care,Nursing Care
Cambridgeshire County Council,21-Jun-19,51300997685,"-1,018.29",ATLAS HOME SUPPORT,CARE ESTABLISHMENT,PAYC3_446_1072611,E7170,AMH - City South,Cambridge South Mental Health,Supported Living
Cambridgeshire County Council,06-Jun-19,51300835510,"-1,009.55",BROAD OAKS (MENCAP),CARE ESTABLISHMENT,PAYC3_434_980169,E7145,OP - Fenland Locality,Older People - Fenland,Residential Care
Cambridgeshire County Council,06-Jun-19,51300828120,"-1,009.55",BROAD OAKS (MENCAP),CARE ESTABLISHMENT,PAYC3_434_980157,E7145,OP - Fenland Locality,Older People - Fenland,Residential Care
Cambridgeshire County Council,06-Jun-19,51300828116,"-1,009.55",BROAD OAKS (MENCAP),CARE ESTABLISHMENT,PAYC3_434_980156,E7145,OP - Fenland Locality,Older People - Fenland,Residential Care
Cambridgeshire County Council,06-Jun-19,51300834786,"-1,009.55",BROAD OAKS (MENCAP),CARE ESTABLISHMENT,PAYC3_434_980187,E7145,OP - Fenland Locality,Older People - Fenland,Residential Care
Cambridgeshire County Council,06-Jun-19,51300835483,"-1,009.55",BROAD OAKS (MENCAP),CARE ESTABLISHMENT,PAYC3_434_980165,E7145,OP - Fenland Locality,Older People - Fenland,Residential Care
Cambridgeshire County Council,06-Jun-19,51300837341,"-1,009.55",BROAD OAKS (MENCAP),CARE ESTABLISHMENT,PAYC3_434_980174,E7145,OP - Fenland Locality,Older People - Fenland,Residential Care
Cambridgeshire County Council,06-Jun-19,51300835500,"-1,009.55",BROAD OAKS (MENCAP),CARE ESTABLISHMENT,PAYC3_434_980172,E7145,OP - Fenland Locality,Older People - Fenland,Residential Care
Cambridgeshire County Council,06-Jun-19,51300837343,"-1,009.55",BROAD OAKS (MENCAP),CARE ESTABLISHMENT,PAYC3_434_980178,E7145,OP - Fenland Locality,Older People - Fenland,Residential Care
Cambridgeshire County Council,06-Jun-19,51300837348,"-1,009.55",BROAD OAKS (MENCAP),CARE ESTABLISHMENT,PAYC3_434_980182,E7145,OP - Fenland Locality,Older People - Fenland,Residential Care
Cambridgeshire County Council,06-Jun-19,51300834772,"-1,009.55",BROAD OAKS (MENCAP),CARE ESTABLISHMENT,PAYC3_434_980192,E7145,OP - Fenland Locality,Older People - Fenland,Residential Care
Cambridgeshire County Council,06-Jun-19,51300835511,"-1,009.55",BROAD OAKS (MENCAP),CARE ESTABLISHMENT,PAYC3_434_980173,E7145,OP - Fenland Locality,Older People - Fenland,Residential Care
Cambridgeshire County Council,06-Jun-19,51300828112,"-1,009.55",BROAD OAKS (MENCAP),CARE ESTABLISHMENT,PAYC3_434_980162,E7145,OP - Fenland Locality,Older People - Fenland,Residential Care
Cambridgeshire County Council,06-Jun-19,51300828113,"-1,009.55",BROAD OAKS (MENCAP),CARE ESTABLISHMENT,PAYC3_434_980163,E7145,OP - Fenland Locality,Older People - Fenland,Residential Care
Cambridgeshire County Council,06-Jun-19,51300828119,"-1,009.55",BROAD OAKS (MENCAP),CARE ESTABLISHMENT,PAYC3_434_980158,E7145,OP - Fenland Locality,Older People - Fenland,Residential Care
Cambridgeshire County Council,06-Jun-19,51300834777,"-1,009.55",BROAD OAKS (MENCAP),CARE ESTABLISHMENT,PAYC3_434_980186,E7145,OP - Fenland Locality,Older People - Fenland,Residential Care
Cambridgeshire County Council,06-Jun-19,51300834779,"-1,009.55",BROAD OAKS (MENCAP),CARE ESTABLISHMENT,PAYC3_434_980193,E7145,OP - Fenland Locality,Older People - Fenland,Residential Care
Cambridgeshire County Council,06-Jun-19,51300837347,"-1,009.55",BROAD OAKS (MENCAP),CARE ESTABLISHMENT,PAYC3_434_980183,E7145,OP - Fenland Locality,Older People - Fenland,Residential Care
Cambridgeshire County Council,06-Jun-19,51300828117,"-1,009.55",BROAD OAKS (MENCAP),CARE ESTABLISHMENT,PAYC3_434_980159,E7145,OP - Fenland Locality,Older People - Fenland,Residential Care
Cambridgeshire County Council,06-Jun-19,51300834791,"-1,009.55",BROAD OAKS (MENCAP),CARE ESTABLISHMENT,PAYC3_434_980188,E7145,OP - Fenland Locality,Older People - Fenland,Residential Care
Cambridgeshire County Council,06-Jun-19,51300835494,"-1,009.55",BROAD OAKS (MENCAP),CARE ESTABLISHMENT,PAYC3_434_980168,E7145,OP - Fenland Locality,Older People - Fenland,Residential Care
Cambridgeshire County Council,06-Jun-19,51300837346,"-1,009.55",BROAD OAKS (MENCAP),CARE ESTABLISHMENT,PAYC3_434_980176,E7145,OP - Fenland Locality,Older People - Fenland,Residential Care
Cambridgeshire County Council,06-Jun-19,51300835506,"-1,009.55",BROAD OAKS (MENCAP),CARE ESTABLISHMENT,PAYC3_434_980164,E7145,OP - Fenland Locality,Older People - Fenland,Residential Care
Cambridgeshire County Council,06-Jun-19,51300837342,"-1,009.55",BROAD OAKS (MENCAP),CARE ESTABLISHMENT,PAYC3_434_980177,E7145,OP - Fenland Locality,Older People - Fenland,Residential Care
Cambridgeshire County Council,06-Jun-19,51300834783,"-1,009.55",BROAD OAKS (MENCAP),CARE ESTABLISHMENT,PAYC3_434_980184,E7145,OP - Fenland Locality,Older People - Fenland,Residential Care
Cambridgeshire County Council,06-Jun-19,51300828121,"-1,009.55",BROAD OAKS (MENCAP),CARE ESTABLISHMENT,PAYC3_434_980155,E7145,OP - Fenland Locality,Older People - Fenland,Residential Care
Cambridgeshire County Council,06-Jun-19,51300837349,"-1,009.55",BROAD OAKS (MENCAP),CARE ESTABLISHMENT,PAYC3_434_980179,E7145,OP - Fenland Locality,Older People - Fenland,Residential Care
Cambridgeshire County Council,06-Jun-19,51300828118,"-1,009.55",BROAD OAKS (MENCAP),CARE ESTABLISHMENT,PAYC3_434_980154,E7145,OP - Fenland Locality,Older People - Fenland,Residential Care
Cambridgeshire County Council,06-Jun-19,51300835498,"-1,009.55",BROAD OAKS (MENCAP),CARE ESTABLISHMENT,PAYC3_434_980167,E7145,OP - Fenland Locality,Older People - Fenland,Residential Care
Cambridgeshire County Council,06-Jun-19,51300835522,"-1,009.55",BROAD OAKS (MENCAP),CARE ESTABLISHMENT,PAYC3_434_980166,E7145,OP - Fenland Locality,Older People - Fenland,Residential Care
Cambridgeshire County Council,06-Jun-19,51300834784,"-1,009.55",BROAD OAKS (MENCAP),CARE ESTABLISHMENT,PAYC3_434_980189,E7145,OP - Fenland Locality,Older People - Fenland,Residential Care
Cambridgeshire County Council,06-Jun-19,51300837340,"-1,009.55",BROAD OAKS (MENCAP),CARE ESTABLISHMENT,PAYC3_434_980175,E7145,OP - Fenland Locality,Older People - Fenland,Residential Care
Cambridgeshire County Council,06-Jun-19,51300834781,"-1,009.55",BROAD OAKS (MENCAP),CARE ESTABLISHMENT,PAYC3_434_980185,E7145,OP - Fenland Locality,Older People - Fenland,Residential Care
Cambridgeshire County Council,18-Jun-19,51300978353,"-1,009.00",K RAVIVARUMAN T/A FAIR HAVEN CARE HOME,CARE ESTABLISHMENT,27639,E7145,OP - East Cambs Locality,East Cambs - O P Team,Residential Care
Cambridgeshire County Council,18-Jun-19,51300978353,"-1,009.00",K RAVIVARUMAN T/A FAIR HAVEN CARE HOME,CARE ESTABLISHMENT,27639,E7145,OP - East Cambs Locality,East Cambs - O P Team,Residential Care
Cambridgeshire County Council,18-Jun-19,51300978353,"-1,009.00",K RAVIVARUMAN T/A FAIR HAVEN CARE HOME,CARE ESTABLISHMENT,27639,E7145,OP - East Cambs Locality,East Cambs - O P Team,Residential Care
Cambridgeshire County Council,18-Jun-19,51300978353,"-1,009.00",K RAVIVARUMAN T/A FAIR HAVEN CARE HOME,CARE ESTABLISHMENT,27639,E7145,OP - East Cambs Locality,East Cambs - O P Team,Residential Care
Cambridgeshire County Council,18-Jun-19,51300978353,"-1,009.00",K RAVIVARUMAN T/A FAIR HAVEN CARE HOME,CARE ESTABLISHMENT,27639,E7145,OP - East Cambs Locality,East Cambs - O P Team,Residential Care
Cambridgeshire County Council,21-Jun-19,51300957660,"-1,003.23",DIMENSIONS (UK) LTD,CARE ESTABLISHMENT,PAYC3_443_1062121,E7170,LD - City Locality,LD - City - Special Needs,Supported Living
Cambridgeshire County Council,18-Jun-19,51300987788,-991.84,CHERRY HINTON NURSING HOME,CARE ESTABLISHMENT,31508,E7130,OP - City & South Locality,Older People - City & South,Nursing Care
Cambridgeshire County Council,18-Jun-19,51300987788,-991.84,CHERRY HINTON NURSING HOME,CARE ESTABLISHMENT,31508,E7130,OP - City & South Locality,Older People - City & South,Nursing Care
Cambridgeshire County Council,18-Jun-19,51300987788,-991.84,CHERRY HINTON NURSING HOME,CARE ESTABLISHMENT,31508,E7130,OP - City & South Locality,Older People - City & South,Nursing Care
Cambridgeshire County Council,18-Jun-19,51300987788,-991.84,CHERRY HINTON NURSING HOME,CARE ESTABLISHMENT,31508,E7130,OP - City & South Locality,Older People - City & South,Nursing Care
Cambridgeshire County Council,18-Jun-19,51300987788,-991.84,CHERRY HINTON NURSING HOME,CARE ESTABLISHMENT,31508,E7130,OP - City & South Locality,Older People - City & South,Nursing Care
Cambridgeshire County Council,18-Jun-19,51300987788,-991.84,CHERRY HINTON NURSING HOME,CARE ESTABLISHMENT,31508,E7130,OP - City & South Locality,Older People - City & South,Nursing Care
Cambridgeshire County Council,18-Jun-19,51300987788,-991.84,CHERRY HINTON NURSING HOME,CARE ESTABLISHMENT,31508,E7130,OP - City & South Locality,Older People - City & South,Nursing Care
Cambridgeshire County Council,18-Jun-19,51300987788,-991.84,CHERRY HINTON NURSING HOME,CARE ESTABLISHMENT,31508,E7130,OP - City & South Locality,Older People - City & South,Nursing Care
Cambridgeshire County Council,18-Jun-19,51300987788,-991.84,CHERRY HINTON NURSING HOME,CARE ESTABLISHMENT,31508,E7130,OP - City & South Locality,Older People - City & South,Nursing Care
Cambridgeshire County Council,18-Jun-19,51300987788,-991.84,CHERRY HINTON NURSING HOME,CARE ESTABLISHMENT,31508,E7130,OP - City & South Locality,Older People - City & South,Nursing Care
Cambridgeshire County Council,18-Jun-19,51300987788,-991.84,CHERRY HINTON NURSING HOME,CARE ESTABLISHMENT,31508,E7130,OP - City & South Locality,Older People - City & South,Nursing Care
Cambridgeshire County Council,18-Jun-19,51300987788,-991.84,CHERRY HINTON NURSING HOME,CARE ESTABLISHMENT,31508,E7130,OP - City & South Locality,Older People - City & South,Nursing Care
Cambridgeshire County Council,18-Jun-19,51300987788,-991.84,CHERRY HINTON NURSING HOME,CARE ESTABLISHMENT,31508,E7130,OP - City & South Locality,Older People - City & South,Nursing Care
Cambridgeshire County Council,18-Jun-19,51300987788,-991.84,CHERRY HINTON NURSING HOME,CARE ESTABLISHMENT,31508,E7130,OP - City & South Locality,Older People - City & South,Nursing Care
Cambridgeshire County Council,10-Jun-19,51300978349,-982.86,To The Moon and Back Foster Care Limited,CARE ESTABLISHMENT,1,E7120,LAC Placements,Placements - independent fostering,Agency Placements - In County
Cambridgeshire County Council,13-Jun-19,51300818401,-979.90,THE GABLES (NURSING CARE ONLY),CARE ESTABLISHMENT,PAYC3_434_884957,E7130,Physical Disablity,Countywide PD Service - Care,Nursing Care
Cambridgeshire County Council,13-Jun-19,51300818403,-979.90,THE GABLES (NURSING CARE ONLY),CARE ESTABLISHMENT,PAYC3_434_884956,E7130,Physical Disablity,Countywide PD Service - Care,Nursing Care
Cambridgeshire County Council,13-Jun-19,51300818399,-979.90,THE GABLES (NURSING CARE ONLY),CARE ESTABLISHMENT,PAYC3_434_884959,E7130,Physical Disablity,Countywide PD Service - Care,Nursing Care
Cambridgeshire County Council,13-Jun-19,51300818402,-979.90,THE GABLES (NURSING CARE ONLY),CARE ESTABLISHMENT,PAYC3_434_884958,E7130,Physical Disablity,Countywide PD Service - Care,Nursing Care
Cambridgeshire County Council,13-Jun-19,51300818404,-979.90,THE GABLES (NURSING CARE ONLY),CARE ESTABLISHMENT,PAYC3_434_884955,E7130,Physical Disablity,Countywide PD Service - Care,Nursing Care
Cambridgeshire County Council,13-Jun-19,51300818400,-979.90,THE GABLES (NURSING CARE ONLY),CARE ESTABLISHMENT,PAYC3_434_884960,E7130,Physical Disablity,Countywide PD Service - Care,Nursing Care
Cambridgeshire County Council,18-Jun-19,51300987530,-967.37,THE MARBROOK CENTRE,CARE ESTABLISHMENT,32516,E7130,OPMH - Hunts & Fens,Older People Mental Health Hunts,Nursing Care
Cambridgeshire County Council,26-Jun-19,51301011515,-966.00,GLEEDS BUILDING SURVEYING LTD,TRADE SUPPLIER,NTBS2661/003,Y1050,Schools - Primaries,Harston & Newton Comm Primary School;  (2018),Capital - Assets Under Construction
Cambridgeshire County Council,18-Jun-19,51300988190,-958.72,CARETECH COMMUNITY SERVICES,CARE ESTABLISHMENT,32721,E7145,LD - South Locality,LD - South Cambs - Care,Residential Care
Cambridgeshire County Council,18-Jun-19,51300988190,-958.72,CARETECH COMMUNITY SERVICES,CARE ESTABLISHMENT,32721,E7145,LD - South Locality,LD - South Cambs - Care,Residential Care
Cambridgeshire County Council,18-Jun-19,51300988190,-958.72,CARETECH COMMUNITY SERVICES,CARE ESTABLISHMENT,32721,E7145,LD - South Locality,LD - South Cambs - Care,Residential Care
Cambridgeshire County Council,18-Jun-19,51300988190,-958.72,CARETECH COMMUNITY SERVICES,CARE ESTABLISHMENT,32721,E7145,LD - South Locality,LD - South Cambs - Care,Residential Care
Cambridgeshire County Council,18-Jun-19,51300988190,-958.72,CARETECH COMMUNITY SERVICES,CARE ESTABLISHMENT,32721,E7145,LD - South Locality,LD - South Cambs - Care,Residential Care
Cambridgeshire County Council,18-Jun-19,51300988190,-958.72,CARETECH COMMUNITY SERVICES,CARE ESTABLISHMENT,32721,E7145,LD - South Locality,LD - South Cambs - Care,Residential Care
Cambridgeshire County Council,18-Jun-19,51300988190,-958.72,CARETECH COMMUNITY SERVICES,CARE ESTABLISHMENT,32721,E7145,LD - South Locality,LD - South Cambs - Care,Residential Care
Cambridgeshire County Council,18-Jun-19,51300988190,-958.72,CARETECH COMMUNITY SERVICES,CARE ESTABLISHMENT,32721,E7145,LD - South Locality,LD - South Cambs - Care,Residential Care
Cambridgeshire County Council,18-Jun-19,51300988190,-958.72,CARETECH COMMUNITY SERVICES,CARE ESTABLISHMENT,32721,E7145,LD - South Locality,LD - South Cambs - Care,Residential Care
Cambridgeshire County Council,18-Jun-19,51300988190,-958.72,CARETECH COMMUNITY SERVICES,CARE ESTABLISHMENT,32721,E7145,LD - South Locality,LD - South Cambs - Care,Residential Care
Cambridgeshire County Council,18-Jun-19,51300988190,-958.72,CARETECH COMMUNITY SERVICES,CARE ESTABLISHMENT,32721,E7145,LD - South Locality,LD - South Cambs - Care,Residential Care
Cambridgeshire County Council,18-Jun-19,51300988190,-958.72,CARETECH COMMUNITY SERVICES,CARE ESTABLISHMENT,32721,E7145,LD - South Locality,LD - South Cambs - Care,Residential Care
Cambridgeshire County Council,18-Jun-19,51300988190,-958.72,CARETECH COMMUNITY SERVICES,CARE ESTABLISHMENT,32721,E7145,LD - South Locality,LD - South Cambs - Care,Residential Care
Cambridgeshire County Council,18-Jun-19,51300988190,-958.72,CARETECH COMMUNITY SERVICES,CARE ESTABLISHMENT,32721,E7145,LD - South Locality,LD - South Cambs - Care,Residential Care
Cambridgeshire County Council,18-Jun-19,51300988190,-958.72,CARETECH COMMUNITY SERVICES,CARE ESTABLISHMENT,32721,E7145,LD - South Locality,LD - South Cambs - Care,Residential Care
Cambridgeshire County Council,18-Jun-19,51300988190,-958.72,CARETECH COMMUNITY SERVICES,CARE ESTABLISHMENT,32721,E7145,LD - South Locality,LD - South Cambs - Care,Residential Care
Cambridgeshire County Council,18-Jun-19,51300988190,-958.72,CARETECH COMMUNITY SERVICES,CARE ESTABLISHMENT,32721,E7145,LD - South Locality,LD - South Cambs - Care,Residential Care
Cambridgeshire County Council,18-Jun-19,51300988190,-958.72,CARETECH COMMUNITY SERVICES,CARE ESTABLISHMENT,32721,E7145,LD - South Locality,LD - South Cambs - Care,Residential Care
Cambridgeshire County Council,18-Jun-19,51300988190,-958.72,CARETECH COMMUNITY SERVICES,CARE ESTABLISHMENT,32721,E7145,LD - South Locality,LD - South Cambs - Care,Residential Care
Cambridgeshire County Council,18-Jun-19,51300988190,-958.72,CARETECH COMMUNITY SERVICES,CARE ESTABLISHMENT,32721,E7145,LD - South Locality,LD - South Cambs - Care,Residential Care
Cambridgeshire County Council,18-Jun-19,51300988190,-958.72,CARETECH COMMUNITY SERVICES,CARE ESTABLISHMENT,32721,E7145,LD - South Locality,LD - South Cambs - Care,Residential Care
Cambridgeshire County Council,18-Jun-19,51300988190,-958.72,CARETECH COMMUNITY SERVICES,CARE ESTABLISHMENT,32721,E7145,LD - South Locality,LD - South Cambs - Care,Residential Care
Cambridgeshire County Council,18-Jun-19,51300988190,-958.72,CARETECH COMMUNITY SERVICES,CARE ESTABLISHMENT,32721,E7145,LD - South Locality,LD - South Cambs - Care,Residential Care
Cambridgeshire County Council,18-Jun-19,51300988190,-958.72,CARETECH COMMUNITY SERVICES,CARE ESTABLISHMENT,32721,E7145,LD - South Locality,LD - South Cambs - Care,Residential Care
Cambridgeshire County Council,18-Jun-19,51300988190,-958.72,CARETECH COMMUNITY SERVICES,CARE ESTABLISHMENT,32721,E7145,LD - South Locality,LD - South Cambs - Care,Residential Care
Cambridgeshire County Council,18-Jun-19,51300988190,-958.72,CARETECH COMMUNITY SERVICES,CARE ESTABLISHMENT,32721,E7145,LD - South Locality,LD - South Cambs - Care,Residential Care
Cambridgeshire County Council,18-Jun-19,51300988190,-958.72,CARETECH COMMUNITY SERVICES,CARE ESTABLISHMENT,32721,E7145,LD - South Locality,LD - South Cambs - Care,Residential Care
Cambridgeshire County Council,18-Jun-19,51300988190,-958.72,CARETECH COMMUNITY SERVICES,CARE ESTABLISHMENT,32721,E7145,LD - South Locality,LD - South Cambs - Care,Residential Care
Cambridgeshire County Council,18-Jun-19,51300988190,-958.72,CARETECH COMMUNITY SERVICES,CARE ESTABLISHMENT,32721,E7145,LD - South Locality,LD - South Cambs - Care,Residential Care
Cambridgeshire County Council,18-Jun-19,51300988190,-958.72,CARETECH COMMUNITY SERVICES,CARE ESTABLISHMENT,32721,E7145,LD - South Locality,LD - South Cambs - Care,Residential Care
Cambridgeshire County Council,18-Jun-19,51300988190,-958.72,CARETECH COMMUNITY SERVICES,CARE ESTABLISHMENT,32721,E7145,LD - South Locality,LD - South Cambs - Care,Residential Care
Cambridgeshire County Council,18-Jun-19,51300988190,-958.72,CARETECH COMMUNITY SERVICES,CARE ESTABLISHMENT,32721,E7145,LD - South Locality,LD - South Cambs - Care,Residential Care
Cambridgeshire County Council,18-Jun-19,51300988190,-958.72,CARETECH COMMUNITY SERVICES,CARE ESTABLISHMENT,32721,E7145,LD - South Locality,LD - South Cambs - Care,Residential Care
Cambridgeshire County Council,18-Jun-19,51300988190,-958.72,CARETECH COMMUNITY SERVICES,CARE ESTABLISHMENT,32721,E7145,LD - South Locality,LD - South Cambs - Care,Residential Care
Cambridgeshire County Council,18-Jun-19,51300988190,-958.72,CARETECH COMMUNITY SERVICES,CARE ESTABLISHMENT,32721,E7145,LD - South Locality,LD - South Cambs - Care,Residential Care
Cambridgeshire County Council,18-Jun-19,51300988190,-958.72,CARETECH COMMUNITY SERVICES,CARE ESTABLISHMENT,32721,E7145,LD - South Locality,LD - South Cambs - Care,Residential Care
Cambridgeshire County Council,18-Jun-19,51300988190,-958.72,CARETECH COMMUNITY SERVICES,CARE ESTABLISHMENT,32721,E7145,LD - South Locality,LD - South Cambs - Care,Residential Care
Cambridgeshire County Council,18-Jun-19,51300988190,-958.72,CARETECH COMMUNITY SERVICES,CARE ESTABLISHMENT,32721,E7145,LD - South Locality,LD - South Cambs - Care,Residential Care
Cambridgeshire County Council,18-Jun-19,51300988190,-958.72,CARETECH COMMUNITY SERVICES,CARE ESTABLISHMENT,32721,E7145,LD - South Locality,LD - South Cambs - Care,Residential Care
Cambridgeshire County Council,18-Jun-19,51300988190,-958.72,CARETECH COMMUNITY SERVICES,CARE ESTABLISHMENT,32721,E7145,LD - South Locality,LD - South Cambs - Care,Residential Care
Cambridgeshire County Council,18-Jun-19,51300988190,-958.72,CARETECH COMMUNITY SERVICES,CARE ESTABLISHMENT,32721,E7145,LD - South Locality,LD - South Cambs - Care,Residential Care
Cambridgeshire County Council,18-Jun-19,51300988190,-958.72,CARETECH COMMUNITY SERVICES,CARE ESTABLISHMENT,32721,E7145,LD - South Locality,LD - South Cambs - Care,Residential Care
Cambridgeshire County Council,18-Jun-19,51300988190,-958.72,CARETECH COMMUNITY SERVICES,CARE ESTABLISHMENT,32721,E7145,LD - South Locality,LD - South Cambs - Care,Residential Care
Cambridgeshire County Council,18-Jun-19,51300988190,-958.72,CARETECH COMMUNITY SERVICES,CARE ESTABLISHMENT,32721,E7145,LD - South Locality,LD - South Cambs - Care,Residential Care
Cambridgeshire County Council,18-Jun-19,51300988190,-958.72,CARETECH COMMUNITY SERVICES,CARE ESTABLISHMENT,32721,E7145,LD - South Locality,LD - South Cambs - Care,Residential Care
Cambridgeshire County Council,18-Jun-19,51300988190,-958.72,CARETECH COMMUNITY SERVICES,CARE ESTABLISHMENT,32721,E7145,LD - South Locality,LD - South Cambs - Care,Residential Care
Cambridgeshire County Council,18-Jun-19,51300988190,-958.72,CARETECH COMMUNITY SERVICES,CARE ESTABLISHMENT,32721,E7145,LD - South Locality,LD - South Cambs - Care,Residential Care
Cambridgeshire County Council,18-Jun-19,51300988190,-958.72,CARETECH COMMUNITY SERVICES,CARE ESTABLISHMENT,32721,E7145,LD - South Locality,LD - South Cambs - Care,Residential Care
Cambridgeshire County Council,18-Jun-19,51300988190,-958.72,CARETECH COMMUNITY SERVICES,CARE ESTABLISHMENT,32721,E7145,LD - South Locality,LD - South Cambs - Care,Residential Care
Cambridgeshire County Council,18-Jun-19,51300988190,-958.72,CARETECH COMMUNITY SERVICES,CARE ESTABLISHMENT,32721,E7145,LD - South Locality,LD - South Cambs - Care,Residential Care
Cambridgeshire County Council,18-Jun-19,51300988190,-958.72,CARETECH COMMUNITY SERVICES,CARE ESTABLISHMENT,32721,E7145,LD - South Locality,LD - South Cambs - Care,Residential Care
Cambridgeshire County Council,18-Jun-19,51300988190,-958.72,CARETECH COMMUNITY SERVICES,CARE ESTABLISHMENT,32721,E7145,LD - South Locality,LD - South Cambs - Care,Residential Care
Cambridgeshire County Council,18-Jun-19,51300988190,-958.72,CARETECH COMMUNITY SERVICES,CARE ESTABLISHMENT,32721,E7145,LD - South Locality,LD - South Cambs - Care,Residential Care
Cambridgeshire County Council,18-Jun-19,51300988190,-958.72,CARETECH COMMUNITY SERVICES,CARE ESTABLISHMENT,32721,E7145,LD - South Locality,LD - South Cambs - Care,Residential Care
Cambridgeshire County Council,18-Jun-19,51300988190,-958.72,CARETECH COMMUNITY SERVICES,CARE ESTABLISHMENT,32721,E7145,LD - South Locality,LD - South Cambs - Care,Residential Care
Cambridgeshire County Council,18-Jun-19,51300988190,-958.72,CARETECH COMMUNITY SERVICES,CARE ESTABLISHMENT,32721,E7145,LD - South Locality,LD - South Cambs - Care,Residential Care
Cambridgeshire County Council,18-Jun-19,51300988190,-958.72,CARETECH COMMUNITY SERVICES,CARE ESTABLISHMENT,32721,E7145,LD - South Locality,LD - South Cambs - Care,Residential Care
Cambridgeshire County Council,18-Jun-19,51300988190,-958.72,CARETECH COMMUNITY SERVICES,CARE ESTABLISHMENT,32721,E7145,LD - South Locality,LD - South Cambs - Care,Residential Care
Cambridgeshire County Council,18-Jun-19,51300988190,-958.72,CARETECH COMMUNITY SERVICES,CARE ESTABLISHMENT,32721,E7145,LD - South Locality,LD - South Cambs - Care,Residential Care
Cambridgeshire County Council,18-Jun-19,51300988190,-958.72,CARETECH COMMUNITY SERVICES,CARE ESTABLISHMENT,32721,E7145,LD - South Locality,LD - South Cambs - Care,Residential Care
Cambridgeshire County Council,18-Jun-19,51300988190,-958.72,CARETECH COMMUNITY SERVICES,CARE ESTABLISHMENT,32721,E7145,LD - South Locality,LD - South Cambs - Care,Residential Care
Cambridgeshire County Council,18-Jun-19,51300988190,-958.72,CARETECH COMMUNITY SERVICES,CARE ESTABLISHMENT,32721,E7145,LD - South Locality,LD - South Cambs - Care,Residential Care
Cambridgeshire County Council,18-Jun-19,51300988190,-958.72,CARETECH COMMUNITY SERVICES,CARE ESTABLISHMENT,32721,E7145,LD - South Locality,LD - South Cambs - Care,Residential Care
Cambridgeshire County Council,18-Jun-19,51300988190,-958.72,CARETECH COMMUNITY SERVICES,CARE ESTABLISHMENT,32721,E7145,LD - South Locality,LD - South Cambs - Care,Residential Care
Cambridgeshire County Council,18-Jun-19,51300988190,-958.72,CARETECH COMMUNITY SERVICES,CARE ESTABLISHMENT,32721,E7145,LD - South Locality,LD - South Cambs - Care,Residential Care
Cambridgeshire County Council,18-Jun-19,51300988190,-958.72,CARETECH COMMUNITY SERVICES,CARE ESTABLISHMENT,32721,E7145,LD - South Locality,LD - South Cambs - Care,Residential Care
Cambridgeshire County Council,18-Jun-19,51300988190,-958.72,CARETECH COMMUNITY SERVICES,CARE ESTABLISHMENT,32721,E7145,LD - South Locality,LD - South Cambs - Care,Residential Care
Cambridgeshire County Council,18-Jun-19,51300988190,-958.72,CARETECH COMMUNITY SERVICES,CARE ESTABLISHMENT,32721,E7145,LD - South Locality,LD - South Cambs - Care,Residential Care
Cambridgeshire County Council,18-Jun-19,51300987279,-950.00,ASKHAM HALL,CARE ESTABLISHMENT,32569,E7130,OP - Fenland Locality,Older People - Fenland,Nursing Care
Cambridgeshire County Council,18-Jun-19,51300987279,-950.00,ASKHAM HALL,CARE ESTABLISHMENT,32569,E7130,OP - Fenland Locality,Older People - Fenland,Nursing Care
Cambridgeshire County Council,18-Jun-19,51300987279,-950.00,ASKHAM HALL,CARE ESTABLISHMENT,32569,E7130,OP - Fenland Locality,Older People - Fenland,Nursing Care
Cambridgeshire County Council,06-Jun-19,51300812203,-944.40,BROAD OAKS (MENCAP),CARE ESTABLISHMENT,PAYC3_434_980151,E7145,OP - Fenland Locality,Older People - Fenland,Residential Care
Cambridgeshire County Council,21-Jun-19,51300962870,-943.54,BROAD OAKS VCT LTD,CARE ESTABLISHMENT,PAYC3_443_970080,E7145,LD - Fenland Locality,LD - Fenland  - Special Needs,Residential Care
Cambridgeshire County Council,21-Jun-19,51300963323,-943.54,BROAD OAKS VCT LTD,CARE ESTABLISHMENT,PAYC3_443_970071,E7145,LD - Fenland Locality,LD - Fenland  - Special Needs,Residential Care
Cambridgeshire County Council,18-Jun-19,51300913456,-929.20,ALDERWOOD LLA LTD,CARE ESTABLISHMENT,27140,E7145,LD - Hunts Locality,LD - Huntigndonshire  - Special Needs,Residential Care
